Workbook

Sheet YARIŞMA BİLGİLERİ
A18: Yarışma Bilgileri
A19: Yarışma Adı : | F19: KOÇ TOPLULUĞU SPOR ŞENLİĞİ PUANLI ATLETİZM YARIŞLARI
A20: Yarışmanın Yapıldığı İl : | F20: İstanbul
A21: Kategori : | F21: Kadınlar
A22: Tarih : | F22: 2017-04-15
A23: Katılan Sporcu Sayısı :
A24: Katılan Takım Sayısı :

Sheet YARIŞMA PROGRAMI
H1: Diskalifiye Nedenleri ve Kural Numaraları
B2: ='YARIŞMA BİLGİLERİ'!F19 -> KOÇ TOPLULUĞU SPOR ŞENLİĞİ PUANLI ATLETİZM YARIŞLARI
B3: YARIŞMA PROGRAMI
B4: Bakmak istediğiniz branş üzerine "Tıkla"yınız… | H4: KURAL 125.5 : Yarışmalar esnasında sportmenlik dışı davranışlarda bulunan sporcu IAAF Kural 125.5 gereği diskalifiye edilecektir. Sporcunun yarışmanın devamındaki diğer branşlara katılması da engellenecektir. “Bu kurala göre diskalifiye edilen atletin, diskalifiye edildiği yarıştaki dereceleri geçersizdir.” Yarışma sonucunda o atletin karşısında sadece “DQ 125.5” yazacak. Tüm uyarılar ve diskalifikasyonlar (yani sarı ve kırmızı kartlar) yarışma sekreterliğine ve tüm başhakemlere bildirilecektir.
B5: ='YARIŞMA BİLGİLERİ'!F21 -> Kadınlar | H5: KURAL 144.2 : Yarışma sırasında kurallar dışında yardım alan veya yardım veren atlet, başhakem tarafından önce sarı kartla uyarılır, tekrarı halinde IAAF Kural 144.2’ye göre diskalifiye edilir. Yarışma alanında telefon, telsiz, radyo, kasetçalar vb. cihazlar kullanılması, atlete avantaj sağlayacak şekilde yay, tekerlek vb. donanıma sahip ayakkabıların giyilmesi, atma aletlerinin normal ölçülerine eklerin yapılması, “kural dışı yardım” kabul edilir. Mesafe koşularında tur yemiş ya da tur yemek üzere olan atletlerin tempo vermesi, IAAF Kural 144.2 çerçevesinde her iki atletin de diskalifiye edilmesini gerektirir.
B6: SAAT | C6: BRANŞ | H6: KURAL 162.5 :Yerlerinize ya da dikkat komutundan sonra makul bir sürede pozisyon almayan ve yerlerinize komutundan sonra sesle ya da başka şekilde diğer atlet(ler)i rahatsız eden atlet(ler) önce sarı kart, tekrarı halinde kırmızı kart görür.” Eğer başhakem, starterin kararıyla mutabık değilse, tüm atletlere yeşil kart gösterilir. Bu kural sadece starteri/start başhakemini ilgilendirir.
B7: 2017-04-15T11:10:00 | C7: 100 Metre | H7: KURAL 162.7 : Hatalı çıkış yapan her atlet diskalifiye edilir. Yarışmada ilk hatalı çıkışı yapan sporcu dahil, hatalı çıkış yapan tüm atletler IAAF Kural 162.7 gereği diskalifiye edilecektir.
B8: 15 Nisan 2017 - 12:45 | C8: 200 Metre | H8: KURAL 163.2 : Yarışma içerisinde bir sporcunun iterek veya çelme takarak, kasıtlı olarak bir başka sporcunun düşmesine neden olması diskalifiye sebebidir. Bunu yapan sporcu IAAF Kural 163.2 gereği diskalifiye edilecektir. (Bu tip olaylarda yardımcı hakem sarı bayrağını kaldıracak ve başhakemi bilgilendirecektir. Diskalifiye olup olmayacağına başhakem karar verecektir.)
B9: 2017-04-15T15:15:00 | C9: 800 Metre | H9: KURAL 163.3 : Kulvarlı koşuların tamamında sporcu, yarışmayı çıkıştan varışa kadar kendi kulvarında koşmak zorundadır. Virajda kendi kulvarının solundaki kulvara geçen ya da o kulvarın çizgisine temas eden atlet, IAAF Kural 163.3 gereği diskalifiye edilecektir. Ancak sporcu yarışma içerisinde başkası tarafından itilmek veya dengesinin bozulması sonucu kulvar değiştirmek zorunda kalırsa ve bu durum kendisine avantaj sağlamazsa diskalifiye söz konusu olmayacaktır. Düzlükte kendi kulvarının dışına çıkan ve kendisine mesafe avantajı sağlamayan atlet, bir diğer kulvardaki atleti engellememişse diskalifiye edilmez. Virajda kendi kulvarının sağındaki kulvara geçen ya da o kulvarın çizgisiyle temas eden atlet, o kulvarda koşan atleti engellememişse diskalifiye edilmez.
B10: 15 Nisan 2017 - 10:15 | C10: Yüksek Atlama | H10: KURAL 163.3 : 800 metre koşusunda sporcular kendi kulvarlarını terk edecekleri çizgiye kadar, kulvarlarında koşmak zorundadır. Bu işaretli bölüme gelmeden kulvarını terk eden sporcu IAAF Kural 163.3 gereği diskalifiye edilecektir.
B11: 2017-04-15T12:15:00 | C11: 400 Metre | H11: KURAL 163.3 : 4*400 metre bayrak yarışmasında ikinci sıradaki sporcu kulvar farkı sona erinceye kadar (ilk dönemeç) kendi kulvarında koşacaktır. Bu noktaya gelene kadar kulvar ihlali yapan sporcunun takımı IAAF Kural 163.3 gereği diskalifiye edilecektir
B12: 2017-04-15T10:45:00 | C12: 3000 Metre | H12: KURAL 168.7 : Engel yarışmalarında engel geçişi esnasında ayağını engelin üst kısmının yatay düzeyinin aşağısından geçiren, eli veya ayağı ile engeli kasten deviren ve her ne sebeple olursa olsun engel üzerinden geçmeyen sporcu IAAF Kural 168.7 gereği diskalifiye edilecektir.
B13: 2017-04-15T10:15:00 | C13: Uzun Atlama | H13: KURAL 170.9 : 4*400 metre bayrak yarışmasında 3. ve 4. sporcular; kendilerinden önceki takım elemanlarının 200 metreyi geçiş durumuna göre sıralanacaklar ve bu sıralamayı bayrak değişim anına kadar değiştirdikleri takdirde takımları IAAF Kural 170.9 gereği diskalifiye edilecektir.
B14: 2017-04-15T10:15:00 | C14: Gülle Atma | H14: KURAL 170.13 : Bayrak yarışmalarında bayrağın yere düşmesi halinde, bayrağı düşüren atlet alacaktır. Bayrağı düşüren atletin dışında bir atletin alması, IAAF Kural 170.13’e göre takımın diskalifiye edilmesine neden olur. Bayrağı düşüren atlet, bayrağı yerden alırken koşulan mesafeyi kısaltır ya da bir başka kulvardaki atleti engellerse, yine bu kural çerçevesinde takımı diskalifiye edilir.
B15: 15 Nisan 2017 - 14:14 | C15: 100 Metre Final | H15: KURAL 170.14 : Bayrak yarışmalarında bayrağın değişim sahasının dışında değiştirilmesi durumunda hatalı değişimi yapan takım IAAF Kural 170.14 gereği diskalifiye edilecektir. Bu noktada dikkat edilmesi gereken en önemli husus sporcunun değil, bayrağın değişim alanı içerisinde olmasıdır.
B16: 2017-04-15T15:30:00 | C16: 4x100 Metre
B17: 2017-04-15T14:45:00 | C17: İsveç Bayrak
B18: 2017-04-15T15:30:00 | C18: Genel Puan Durumu | H18: Uluslararası kısaltmalar
H19: DNS : Yarışa başlamadı
H20: DNF : Yarışı tamamlamadı
H21: DQ : Diskalifiye
H22: NM : Geçerli derecesi yok

Sheet PUAN (hidden)
A1: GENÇ VE YILDIZ ERKEKLER PUAN TABLOSU
A2: KOŞULAR | U2: BAYRAK | X2: PUAN | Y2: ATLAMALAR | AC2: ATMALAR | AF2: PUAN
A3: 100m | C3: 200m | D3: PUAN | E3: 300m Yıldız | F3: PUAN | G3: 400m | H3: PUAN | I3: 100 m H 110m H | J3: PUAN | K3: 300m H | L3: PUAN | M3: 800m | N3: PUAN | O3: 1500m | P3: PUAN | Q3: 2000m Yıldız | R3: PUAN | S3: 3000m | T3: PUAN | U3: 4X100M Yıldız | V3: PUAN | W3: İsveç Bayrak | Y3: Yüksek | Z3: Uzun | AA3: Üçadım | AB3: Sırık | AC3: Gülle | AD3: Disk | AE3: Cirit
A4: DERECE | C4: DERECE | E4: DERECE | G4: DERECE | I4: DERECE | K4: DERECE | M4: DERECE | O4: DERECE | Q4: DERECE | S4: DERECE | U4: DERECE | W4: DERECE | Y4: DERECE | Z4: DERECE | AA4: DERECE | AB4: DERECE | AC4: DERECE | AD4: DERECE | AE4: DERECE
Y5: 1 | Z5: 1 | AA5: 1 | AB5: 1 | AC5: 1 | AD5: 1 | AE5: 1 | AF5: 0
A6: 1040 | C6: 2089 | D6: 100 | E6: 3600 | F6: 100 | G6: 4644 | H6: 100 | I6: 1380 | J6: 100 | K6: 3614 | L6: 100 | M6: 14824 | N6: 100 | O6: 34624 | P6: 100 | Q6: 54524 | R6: 100 | S6: 81024 | T6: 100 | U6: 4764 | V6: 100 | W6: 15624 | X6: 100 | Y6: 98 | Z6: 310 | AA6: 760 | AB6: 130 | AC6: 430 | AD6: 1000 | AE6: 1000 | AF6: 1
A7: 1042 | C7: 2094 | D7: 99 | E7: 3620 | F7: 99 | G7: 4654 | H7: 99 | I7: 1384 | J7: 99 | K7: 3619 | L7: 99 | M7: 14844 | N7: 99 | O7: 34654 | P7: 99 | Q7: 54624 | R7: 99 | S7: 81124 | T7: 99 | U7: 4774 | V7: 99 | W7: 15654 | X7: 99 | Y7: 100 | Z7: 317 | AA7: 754 | AB7: 140 | AC7: 447 | AD7: 1060 | AE7: 1120 | AF7: 2
A8: 1044 | C8: 2099 | D8: 98 | E8: 3640 | F8: 98 | G8: 4664 | H8: 98 | I8: 1388 | J8: 98 | K8: 3624 | L8: 98 | M8: 14864 | N8: 98 | O8: 34684 | P8: 98 | Q8: 54724 | R8: 98 | S8: 81224 | T8: 98 | U8: 4784 | V8: 98 | W8: 15684 | X8: 98 | Y8: 102 | Z8: 324 | AA8: 768 | AB8: 145 | AC8: 464 | AD8: 1120 | AE8: 1200 | AF8: 3
A9: 1046 | C9: 2104 | D9: 97 | E9: 3660 | F9: 97 | G9: 4674 | H9: 97 | I9: 1392 | J9: 97 | K9: 3629 | L9: 97 | M9: 14884 | N9: 97 | O9: 34714 | P9: 97 | Q9: 54824 | R9: 97 | S9: 81324 | T9: 97 | U9: 4794 | V9: 97 | W9: 15714 | X9: 97 | Y9: 104 | Z9: 331 | AA9: 782 | AB9: 150 | AC9: 481 | AD9: 1180 | AE9: 1280 | AF9: 4
A10: 1048 | C10: 2109 | D10: 96 | E10: 3680 | F10: 96 | G10: 4684 | H10: 96 | I10: 1396 | J10: 96 | K10: 3634 | L10: 96 | M10: 14904 | N10: 96 | O10: 34744 | P10: 96 | Q10: 54924 | R10: 96 | S10: 81424 | T10: 96 | U10: 4804 | V10: 96 | W10: 15744 | X10: 96 | Y10: 106 | Z10: 338 | AA10: 796 | AB10: 155 | AC10: 498 | AD10: 1240 | AE10: 1360 | AF10: 5
A11: 1050 | C11: 2114 | D11: 95 | E11: 3700 | F11: 95 | G11: 4694 | H11: 95 | I11: 1400 | J11: 95 | K11: 3639 | L11: 95 | M11: 14924 | N11: 95 | O11: 34774 | P11: 95 | Q11: 55024 | R11: 95 | S11: 81524 | T11: 95 | U11: 4814 | V11: 95 | W11: 15774 | X11: 95 | Y11: 108 | Z11: 345 | AA11: 808 | AB11: 160 | AC11: 515 | AD11: 1300 | AE11: 1440 | AF11: 6
A12: 1052 | C12: 2119 | D12: 94 | E12: 3720 | F12: 94 | G12: 4704 | H12: 94 | I12: 1404 | J12: 94 | K12: 3644 | L12: 94 | M12: 14944 | N12: 94 | O12: 34814 | P12: 94 | Q12: 55124 | R12: 94 | S12: 81624 | T12: 94 | U12: 4824 | V12: 94 | W12: 15804 | X12: 94 | Y12: 110 | Z12: 352 | AA12: 822 | AB12: 165 | AC12: 532 | AD12: 1360 | AE12: 1520 | AF12: 7
A13: 1054 | C13: 2124 | D13: 93 | E13: 3740 | F13: 93 | G13: 4714 | H13: 93 | I13: 1408 | J13: 93 | K13: 3649 | L13: 93 | M13: 14964 | N13: 93 | O13: 34854 | P13: 93 | Q13: 55224 | R13: 93 | S13: 81724 | T13: 93 | U13: 4834 | V13: 93 | W13: 15834 | X13: 93 | Y13: 112 | Z13: 359 | AA13: 836 | AB13: 170 | AC13: 548 | AD13: 1420 | AE13: 1600 | AF13: 8
A14: 1056 | C14: 2129 | D14: 92 | E14: 3760 | F14: 92 | G14: 4724 | H14: 92 | I14: 1412 | J14: 92 | K14: 3654 | L14: 92 | M14: 14984 | N14: 92 | O14: 34894 | P14: 92 | Q14: 55324 | R14: 92 | S14: 81824 | T14: 92 | U14: 4844 | V14: 92 | W14: 15864 | X14: 92 | Y14: 114 | Z14: 366 | AA14: 848 | AB14: 175 | AC14: 564 | AD14: 1480 | AE14: 1680 | AF14: 9
A15: 1058 | C15: 2134 | D15: 91 | E15: 3780 | F15: 91 | G15: 4734 | H15: 91 | I15: 1416 | J15: 91 | K15: 3659 | L15: 91 | M15: 15004 | N15: 91 | O15: 34934 | P15: 91 | Q15: 55424 | R15: 91 | S15: 81924 | T15: 91 | U15: 4854 | V15: 91 | W15: 15894 | X15: 91 | Y15: 116 | Z15: 373 | AA15: 860 | AB15: 180 | AC15: 580 | AD15: 1540 | AE15: 1750 | AF15: 10
A16: 1060 | C16: 2139 | D16: 90 | E16: 3800 | F16: 90 | G16: 4744 | H16: 90 | I16: 1420 | J16: 90 | K16: 3664 | L16: 90 | M16: 15034 | N16: 90 | O16: 34974 | P16: 90 | Q16: 55524 | R16: 90 | S16: 82024 | T16: 90 | U16: 4864 | V16: 90 | W16: 15924 | X16: 90 | Y16: 118 | Z16: 380 | AA16: 872 | AB16: 185 | AC16: 596 | AD16: 1600 | AE16: 1820 | AF16: 11
A17: 1062 | C17: 2144 | D17: 89 | E17: 3820 | F17: 89 | G17: 4754 | H17: 89 | I17: 1424 | J17: 89 | K17: 3674 | L17: 89 | M17: 15064 | N17: 89 | O17: 35024 | P17: 89 | Q17: 55624 | R17: 89 | S17: 82124 | T17: 89 | U17: 4874 | V17: 89 | W17: 15954 | X17: 89 | Y17: 120 | Z17: 387 | AA17: 884 | AB17: 190 | AC17: 612 | AD17: 1650 | AE17: 1890 | AF17: 12
A18: 1064 | C18: 2149 | D18: 88 | E18: 3840 | F18: 88 | G18: 4764 | H18: 88 | I18: 1428 | J18: 88 | K18: 3684 | L18: 88 | M18: 15094 | N18: 88 | O18: 35074 | P18: 88 | Q18: 55724 | R18: 88 | S18: 82224 | T18: 88 | U18: 4884 | V18: 88 | W18: 15984 | X18: 88 | Y18: 122 | Z18: 394 | AA18: 896 | AB18: 195 | AC18: 628 | AD18: 1700 | AE18: 1960 | AF18: 13
A19: 1066 | C19: 2154 | D19: 87 | E19: 3860 | F19: 87 | G19: 4774 | H19: 87 | I19: 1432 | J19: 87 | K19: 3694 | L19: 87 | M19: 15124 | N19: 87 | O19: 35124 | P19: 87 | Q19: 55824 | R19: 87 | S19: 82324 | T19: 87 | U19: 4894 | V19: 87 | W19: 20014 | X19: 87 | Y19: 124 | Z19: 401 | AA19: 908 | AB19: 200 | AC19: 644 | AD19: 1750 | AE19: 2030 | AF19: 14
A20: 1068 | C20: 2159 | D20: 86 | E20: 3880 | F20: 86 | G20: 4784 | H20: 86 | I20: 1436 | J20: 86 | K20: 3704 | L20: 86 | M20: 15154 | N20: 86 | O20: 35174 | P20: 86 | Q20: 55924 | R20: 86 | S20: 82424 | T20: 86 | U20: 4914 | V20: 86 | W20: 20044 | X20: 86 | Y20: 126 | Z20: 408 | AA20: 920 | AB20: 205 | AC20: 660 | AD20: 1800 | AE20: 2100 | AF20: 15
A21: 1070 | C21: 2164 | D21: 85 | E21: 3900 | F21: 85 | G21: 4794 | H21: 85 | I21: 1440 | J21: 85 | K21: 3714 | L21: 85 | M21: 15184 | N21: 85 | O21: 35224 | P21: 85 | Q21: 60024 | R21: 85 | S21: 82524 | T21: 85 | U21: 4934 | V21: 85 | W21: 20074 | X21: 85 | Y21: 128 | Z21: 415 | AA21: 932 | AB21: 210 | AC21: 676 | AD21: 1850 | AE21: 2170 | AF21: 16
A22: 1072 | C22: 2169 | D22: 84 | E22: 3920 | F22: 84 | G22: 4804 | H22: 84 | I22: 1444 | J22: 84 | K22: 3724 | L22: 84 | M22: 15214 | N22: 84 | O22: 35274 | P22: 84 | Q22: 60124 | R22: 84 | S22: 82624 | T22: 84 | U22: 4954 | V22: 84 | W22: 20104 | X22: 84 | Y22: 130 | Z22: 422 | AA22: 944 | AB22: 215 | AC22: 692 | AD22: 1900 | AE22: 2240 | AF22: 17
A23: 1074 | C23: 2174 | D23: 83 | E23: 3940 | F23: 83 | G23: 4814 | H23: 83 | I23: 1449 | J23: 83 | K23: 3734 | L23: 83 | M23: 15244 | N23: 83 | O23: 35324 | P23: 83 | Q23: 60224 | R23: 83 | S23: 82824 | T23: 83 | U23: 4974 | V23: 83 | W23: 20134 | X23: 83 | Y23: 132 | Z23: 429 | AA23: 956 | AB23: 220 | AC23: 708 | AD23: 1950 | AE23: 2310 | AF23: 18
A24: 1076 | C24: 2179 | D24: 82 | E24: 3960 | F24: 82 | G24: 4824 | H24: 82 | I24: 1454 | J24: 82 | K24: 3744 | L24: 82 | M24: 15274 | N24: 82 | O24: 35374 | P24: 82 | Q24: 60324 | R24: 82 | S24: 83024 | T24: 82 | U24: 4994 | V24: 82 | W24: 20164 | X24: 82 | Y24: 134 | Z24: 436 | AA24: 968 | AB24: 225 | AC24: 724 | AD24: 2000 | AE24: 2380 | AF24: 19
A25: 1078 | C25: 2184 | D25: 81 | E25: 3980 | F25: 81 | G25: 4834 | H25: 81 | I25: 1459 | J25: 81 | K25: 3754 | L25: 81 | M25: 15304 | N25: 81 | O25: 35424 | P25: 81 | Q25: 60424 | R25: 81 | S25: 83224 | T25: 81 | U25: 5014 | V25: 81 | W25: 20204 | X25: 81 | Y25: 136 | Z25: 443 | AA25: 980 | AB25: 230 | AC25: 740 | AD25: 2050 | AE25: 2450 | AF25: 20
A26: 1080 | C26: 2189 | D26: 80 | E26: 4000 | F26: 80 | G26: 4844 | H26: 80 | I26: 1464 | J26: 80 | K26: 3764 | L26: 80 | M26: 15334 | N26: 80 | O26: 35484 | P26: 80 | Q26: 60524 | R26: 80 | S26: 83424 | T26: 80 | U26: 5034 | V26: 80 | W26: 20234 | X26: 80 | Y26: 138 | Z26: 450 | AA26: 992 | AB26: 234 | AC26: 756 | AD26: 2100 | AE26: 2520 | AF26: 21
A27: 1082 | C27: 2194 | D27: 79 | E27: 4020 | F27: 79 | G27: 4854 | H27: 79 | I27: 1469 | J27: 79 | K27: 3774 | L27: 79 | M27: 15364 | N27: 79 | O27: 35544 | P27: 79 | Q27: 60624 | R27: 79 | S27: 83624 | T27: 79 | U27: 5054 | V27: 79 | W27: 20264 | X27: 79 | Y27: 140 | Z27: 456 | AA27: 1004 | AB27: 238 | AC27: 772 | AD27: 2150 | AE27: 2590 | AF27: 22
A28: 1084 | C28: 2199 | D28: 78 | E28: 4040 | F28: 78 | G28: 4864 | H28: 78 | I28: 1474 | J28: 78 | K28: 3784 | L28: 78 | M28: 15394 | N28: 78 | O28: 35604 | P28: 78 | Q28: 60724 | R28: 78 | S28: 83824 | T28: 78 | U28: 5074 | V28: 78 | W28: 20304 | X28: 78 | Y28: 142 | Z28: 462 | AA28: 1016 | AB28: 242 | AC28: 788 | AD28: 2200 | AE28: 2660 | AF28: 23
A29: 1086 | C29: 2204 | D29: 77 | E29: 4060 | F29: 77 | G29: 4874 | H29: 77 | I29: 1479 | J29: 77 | K29: 3794 | L29: 77 | M29: 15424 | N29: 77 | O29: 35664 | P29: 77 | Q29: 60824 | R29: 77 | S29: 84024 | T29: 77 | U29: 5094 | V29: 77 | W29: 20344 | X29: 77 | Y29: 144 | Z29: 468 | AA29: 1028 | AB29: 246 | AC29: 804 | AD29: 2250 | AE29: 2730 | AF29: 24
A30: 1088 | C30: 2209 | D30: 76 | E30: 4080 | F30: 76 | G30: 4884 | H30: 76 | I30: 1484 | J30: 76 | K30: 3804 | L30: 76 | M30: 15454 | N30: 76 | O30: 35724 | P30: 76 | Q30: 60924 | R30: 76 | S30: 84224 | T30: 76 | U30: 5114 | V30: 76 | W30: 20384 | X30: 76 | Y30: 146 | Z30: 474 | AA30: 1040 | AB30: 250 | AC30: 820 | AD30: 2300 | AE30: 2800 | AF30: 25
A31: 1090 | C31: 2214 | D31: 75 | E31: 4100 | F31: 75 | G31: 4894 | H31: 75 | I31: 1489 | J31: 75 | K31: 3814 | L31: 75 | M31: 15484 | N31: 75 | O31: 35784 | P31: 75 | Q31: 61024 | R31: 75 | S31: 84424 | T31: 75 | U31: 5134 | V31: 75 | W31: 20424 | X31: 75 | Y31: 148 | Z31: 480 | AA31: 1049 | AB31: 254 | AC31: 836 | AD31: 2325 | AE31: 2855 | AF31: 26
A32: 1093 | C32: 2219 | D32: 74 | E32: 4120 | F32: 74 | G32: 4914 | H32: 74 | I32: 1494 | J32: 74 | K32: 3829 | L32: 74 | M32: 15524 | N32: 74 | O32: 35884 | P32: 74 | Q32: 61124 | R32: 74 | S32: 84624 | T32: 74 | U32: 5154 | V32: 74 | W32: 20464 | X32: 74 | Y32: 150 | Z32: 486 | AA32: 1058 | AB32: 258 | AC32: 852 | AD32: 2350 | AE32: 2890 | AF32: 27
A33: 1096 | C33: 2224 | D33: 73 | E33: 4140 | F33: 73 | G33: 4934 | H33: 73 | I33: 1499 | J33: 73 | K33: 3844 | L33: 73 | M33: 15564 | N33: 73 | O33: 35984 | P33: 73 | Q33: 61224 | R33: 73 | S33: 84824 | T33: 73 | U33: 5174 | V33: 73 | W33: 20504 | X33: 73 | Y33: 152 | Z33: 492 | AA33: 1067 | AB33: 262 | AC33: 868 | AD33: 2400 | AE33: 2960 | AF33: 28
A34: 1099 | C34: 2234 | D34: 72 | E34: 4160 | F34: 72 | G34: 4954 | H34: 72 | I34: 1504 | J34: 72 | K34: 3859 | L34: 72 | M34: 15604 | N34: 72 | O34: 40084 | P34: 72 | Q34: 61324 | R34: 72 | S34: 85024 | T34: 72 | U34: 5194 | V34: 72 | W34: 20544 | X34: 72 | Y34: 154 | Z34: 498 | AA34: 1076 | AB34: 266 | AC34: 884 | AD34: 2450 | AE34: 3030 | AF34: 29
A35: 1102 | C35: 2244 | D35: 71 | E35: 4180 | F35: 71 | G35: 4974 | H35: 71 | I35: 1509 | J35: 71 | K35: 3874 | L35: 71 | M35: 15644 | N35: 71 | O35: 40184 | P35: 71 | Q35: 61424 | R35: 71 | S35: 85224 | T35: 71 | U35: 5214 | V35: 71 | W35: 20584 | X35: 71 | Y35: 156 | Z35: 504 | AA35: 1085 | AB35: 270 | AC35: 900 | AD35: 2500 | AE35: 3100 | AF35: 30
A36: 1105 | C36: 2254 | D36: 70 | E36: 4200 | F36: 70 | G36: 4994 | H36: 70 | I36: 1514 | J36: 70 | K36: 3889 | L36: 70 | M36: 15694 | N36: 70 | O36: 40284 | P36: 70 | Q36: 61524 | R36: 70 | S36: 85424 | T36: 70 | U36: 5234 | V36: 70 | W36: 20624 | X36: 70 | Y36: 157 | Z36: 510 | AA36: 1094 | AB36: 274 | AC36: 916 | AD36: 2550 | AE36: 3170 | AF36: 31
A37: 1108 | C37: 2264 | D37: 69 | E37: 4220 | F37: 69 | G37: 5014 | H37: 69 | I37: 1519 | J37: 69 | K37: 3904 | L37: 69 | M37: 15744 | N37: 69 | O37: 40384 | P37: 69 | Q37: 61624 | R37: 69 | S37: 85624 | T37: 69 | U37: 5254 | V37: 69 | W37: 20664 | X37: 69 | Y37: 158 | Z37: 516 | AA37: 1103 | AB37: 278 | AC37: 932 | AD37: 2600 | AE37: 3240 | AF37: 32
A38: 1111 | C38: 2274 | D38: 68 | E38: 4240 | F38: 68 | G38: 5034 | H38: 68 | I38: 1524 | J38: 68 | K38: 3919 | L38: 68 | M38: 15794 | N38: 68 | O38: 40484 | P38: 68 | Q38: 61724 | R38: 68 | S38: 85824 | T38: 68 | U38: 5274 | V38: 68 | W38: 20704 | X38: 68 | Y38: 159 | Z38: 521 | AA38: 1112 | AB38: 282 | AC38: 948 | AD38: 2650 | AE38: 3310 | AF38: 33
A39: 1114 | C39: 2284 | D39: 67 | E39: 4260 | F39: 67 | G39: 5054 | H39: 67 | I39: 1529 | J39: 67 | K39: 3934 | L39: 67 | M39: 15844 | N39: 67 | O39: 40584 | P39: 67 | Q39: 61824 | R39: 67 | S39: 90024 | T39: 67 | U39: 5294 | V39: 67 | W39: 20744 | X39: 67 | Y39: 160 | Z39: 526 | AA39: 1121 | AB39: 286 | AC39: 964 | AD39: 2700 | AE39: 3380 | AF39: 34
A40: 1117 | C40: 2294 | D40: 66 | E40: 4280 | F40: 66 | G40: 5074 | H40: 66 | I40: 1534 | J40: 66 | K40: 3949 | L40: 66 | M40: 15894 | N40: 66 | O40: 40684 | P40: 66 | Q40: 61924 | R40: 66 | S40: 90224 | T40: 66 | U40: 5314 | V40: 66 | W40: 20784 | X40: 66 | Y40: 161 | Z40: 531 | AA40: 1130 | AB40: 290 | AC40: 980 | AD40: 2750 | AE40: 3450 | AF40: 35
A41: 1120 | C41: 2304 | D41: 65 | E41: 4300 | F41: 65 | G41: 5094 | H41: 65 | I41: 1539 | J41: 65 | K41: 3964 | L41: 65 | M41: 15944 | N41: 65 | O41: 40784 | P41: 65 | Q41: 62024 | R41: 65 | S41: 90424 | T41: 65 | U41: 5334 | V41: 65 | W41: 20824 | X41: 65 | Y41: 162 | Z41: 536 | AA41: 1139 | AB41: 294 | AC41: 995 | AD41: 2800 | AE41: 3520 | AF41: 36
A42: 1123 | C42: 2314 | D42: 64 | E42: 4310 | F42: 64 | G42: 5114 | H42: 64 | I42: 1544 | J42: 64 | K42: 3979 | L42: 64 | M42: 15994 | N42: 64 | O42: 40884 | P42: 64 | Q42: 62124 | R42: 64 | S42: 90624 | T42: 64 | U42: 5354 | V42: 64 | W42: 20864 | X42: 64 | Y42: 163 | Z42: 541 | AA42: 1148 | AB42: 298 | AC42: 1010 | AD42: 2850 | AE42: 3590 | AF42: 37
A43: 1126 | C43: 2324 | D43: 63 | E43: 4320 | F43: 63 | G43: 5134 | H43: 63 | I43: 1554 | J43: 63 | K43: 3994 | L43: 63 | M43: 20244 | N43: 63 | O43: 40984 | P43: 63 | Q43: 62224 | R43: 63 | S43: 90824 | T43: 63 | U43: 5374 | V43: 63 | W43: 20904 | X43: 63 | Y43: 164 | Z43: 546 | AA43: 1157 | AB43: 302 | AC43: 1025 | AD43: 2900 | AE43: 3660 | AF43: 38
A44: 1129 | C44: 2334 | D44: 62 | E44: 4330 | F44: 62 | G44: 5154 | H44: 62 | I44: 1564 | J44: 62 | K44: 4009 | L44: 62 | M44: 20104 | N44: 62 | O44: 41084 | P44: 62 | Q44: 62324 | R44: 62 | S44: 91024 | T44: 62 | U44: 5394 | V44: 62 | W44: 20944 | X44: 62 | Y44: 165 | Z44: 551 | AA44: 1166 | AB44: 306 | AC44: 1040 | AD44: 2950 | AE44: 3730 | AF44: 39
A45: 1132 | C45: 2344 | D45: 61 | E45: 4340 | F45: 61 | G45: 5174 | H45: 61 | I45: 1574 | J45: 61 | K45: 4024 | L45: 61 | M45: 20164 | N45: 61 | O45: 41184 | P45: 61 | Q45: 62424 | R45: 61 | S45: 91224 | T45: 61 | U45: 5424 | V45: 61 | W45: 20984 | X45: 61 | Y45: 166 | Z45: 556 | AA45: 1175 | AB45: 310 | AC45: 1055 | AD45: 3000 | AE45: 3800 | AF45: 40
A46: 1135 | C46: 2354 | D46: 60 | E46: 4350 | F46: 60 | G46: 5194 | H46: 60 | I46: 1584 | J46: 60 | K46: 4039 | L46: 60 | M46: 20224 | N46: 60 | O46: 41284 | P46: 60 | Q46: 62524 | R46: 60 | S46: 91424 | T46: 60 | U46: 5454 | V46: 60 | W46: 21024 | X46: 60 | Y46: 167 | Z46: 560 | AA46: 1184 | AB46: 314 | AC46: 1070 | AD46: 3050 | AE46: 3870 | AF46: 41
A47: 1139 | C47: 2364 | D47: 59 | E47: 4360 | F47: 59 | G47: 5214 | H47: 59 | I47: 1594 | J47: 59 | K47: 4054 | L47: 59 | M47: 20284 | N47: 59 | O47: 41384 | P47: 59 | Q47: 62624 | R47: 59 | S47: 91624 | T47: 59 | U47: 5484 | V47: 59 | W47: 21064 | X47: 59 | Y47: 168 | Z47: 564 | AA47: 1193 | AB47: 318 | AC47: 1085 | AD47: 3100 | AE47: 3940 | AF47: 42
A48: 1143 | C48: 2374 | D48: 58 | E48: 4370 | F48: 58 | G48: 5234 | H48: 58 | I48: 1604 | J48: 58 | K48: 4074 | L48: 58 | M48: 20344 | N48: 58 | O48: 41484 | P48: 58 | Q48: 62724 | R48: 58 | S48: 91824 | T48: 58 | U48: 5514 | V48: 58 | W48: 21104 | X48: 58 | Y48: 169 | Z48: 568 | AA48: 1202 | AB48: 322 | AC48: 1100 | AD48: 3150 | AE48: 4010 | AF48: 43
A49: 1147 | C49: 2384 | D49: 57 | E49: 4380 | F49: 57 | G49: 5254 | H49: 57 | I49: 1614 | J49: 57 | K49: 4094 | L49: 57 | M49: 20404 | N49: 57 | O49: 41584 | P49: 57 | Q49: 62824 | R49: 57 | S49: 92024 | T49: 57 | U49: 5544 | V49: 57 | W49: 21144 | X49: 57 | Y49: 170 | Z49: 572 | AA49: 1211 | AB49: 326 | AC49: 1115 | AD49: 3200 | AE49: 4080 | AF49: 44
A50: 1151 | C50: 2394 | D50: 56 | E50: 4390 | F50: 56 | G50: 5274 | H50: 56 | I50: 1624 | J50: 56 | K50: 4114 | L50: 56 | M50: 20464 | N50: 56 | O50: 41684 | P50: 56 | Q50: 62924 | R50: 56 | S50: 92224 | T50: 56 | U50: 5574 | V50: 56 | W50: 21184 | X50: 56 | Y50: 171 | Z50: 576 | AA50: 1220 | AB50: 330 | AC50: 1130 | AD50: 3250 | AE50: 4150 | AF50: 45
A51: 1155 | C51: 2404 | D51: 55 | E51: 4400 | F51: 55 | G51: 5294 | H51: 55 | I51: 1634 | J51: 55 | K51: 4134 | L51: 55 | M51: 20524 | N51: 55 | O51: 41784 | P51: 55 | Q51: 63024 | R51: 55 | S51: 92424 | T51: 55 | U51: 5604 | V51: 55 | W51: 21224 | X51: 55 | Y51: 172 | Z51: 580 | AA51: 1229 | AB51: 334 | AC51: 1145 | AD51: 3300 | AE51: 4220 | AF51: 46
A52: 1159 | C52: 2414 | D52: 54 | E52: 4410 | F52: 54 | G52: 5314 | H52: 54 | I52: 1644 | J52: 54 | K52: 4154 | L52: 54 | M52: 20584 | N52: 54 | O52: 41884 | P52: 54 | Q52: 63124 | R52: 54 | S52: 92624 | T52: 54 | U52: 5634 | V52: 54 | W52: 21264 | X52: 54 | Y52: 173 | Z52: 584 | AA52: 1238 | AB52: 338 | AC52: 1160 | AD52: 3350 | AE52: 4290 | AF52: 47
A53: 1164 | C53: 2424 | D53: 53 | E53: 4420 | F53: 53 | G53: 5334 | H53: 53 | I53: 1654 | J53: 53 | K53: 4174 | L53: 53 | M53: 20644 | N53: 53 | O53: 41984 | P53: 53 | Q53: 63224 | R53: 53 | S53: 92824 | T53: 53 | U53: 5664 | V53: 53 | W53: 21304 | X53: 53 | Y53: 174 | Z53: 588 | AA53: 1247 | AB53: 342 | AC53: 1175 | AD53: 3400 | AE53: 4360 | AF53: 48
A54: 1169 | C54: 2434 | D54: 52 | E54: 4430 | F54: 52 | G54: 5354 | H54: 52 | I54: 1664 | J54: 52 | K54: 4194 | L54: 52 | M54: 20704 | N54: 52 | O54: 42084 | P54: 52 | Q54: 63324 | R54: 52 | S54: 93024 | T54: 52 | U54: 5694 | V54: 52 | W54: 21344 | X54: 52 | Y54: 175 | Z54: 592 | AA54: 1256 | AB54: 346 | AC54: 1190 | AD54: 3450 | AE54: 4430 | AF54: 49
A55: 1174 | C55: 2444 | D55: 51 | E55: 4440 | F55: 51 | G55: 5374 | H55: 51 | I55: 1674 | J55: 51 | K55: 4214 | L55: 51 | M55: 20764 | N55: 51 | O55: 42204 | P55: 51 | Q55: 63424 | R55: 51 | S55: 93324 | T55: 51 | U55: 5724 | V55: 51 | W55: 21384 | X55: 51 | Y55: 176 | Z55: 596 | AA55: 1265 | AB55: 350 | AC55: 1205 | AD55: 3500 | AE55: 4500 | AF55: 50
A56: 1179 | C56: 2454 | D56: 50 | E56: 4450 | F56: 50 | G56: 5394 | H56: 50 | I56: 1684 | J56: 50 | K56: 4234 | L56: 50 | M56: 20824 | N56: 50 | O56: 42324 | P56: 50 | Q56: 63524 | R56: 50 | S56: 93624 | T56: 50 | U56: 5754 | V56: 50 | W56: 21424 | X56: 50 | Y56: 177 | Z56: 600 | AA56: 1273 | AB56: 354 | AC56: 1220 | AD56: 3550 | AE56: 4570 | AF56: 51
A57: 1184 | C57: 2464 | D57: 49 | E57: 4460 | F57: 49 | G57: 5424 | H57: 49 | I57: 1694 | J57: 49 | K57: 4254 | L57: 49 | M57: 20904 | N57: 49 | O57: 42474 | P57: 49 | Q57: 63624 | R57: 49 | S57: 93924 | T57: 49 | U57: 5784 | V57: 49 | W57: 21484 | X57: 49 | Y57: 178 | Z57: 604 | AA57: 1281 | AB57: 358 | AC57: 1235 | AD57: 3600 | AE57: 4640 | AF57: 52
A58: 1189 | C58: 2474 | D58: 48 | E58: 4470 | F58: 48 | G58: 5454 | H58: 48 | I58: 1704 | J58: 48 | K58: 4274 | L58: 48 | M58: 20984 | N58: 48 | O58: 42624 | P58: 48 | Q58: 63724 | R58: 48 | S58: 94224 | T58: 48 | U58: 5824 | V58: 48 | W58: 21544 | X58: 48 | Y58: 179 | Z58: 608 | AA58: 1289 | AB58: 362 | AC58: 1250 | AD58: 3650 | AE58: 4710 | AF58: 53
A59: 1194 | C59: 2484 | D59: 47 | E59: 4480 | F59: 47 | G59: 5484 | H59: 47 | I59: 1714 | J59: 47 | K59: 4294 | L59: 47 | M59: 21064 | N59: 47 | O59: 42774 | P59: 47 | Q59: 63824 | R59: 47 | S59: 94524 | T59: 47 | U59: 5864 | V59: 47 | W59: 21604 | X59: 47 | Y59: 180 | Z59: 612 | AA59: 1297 | AB59: 366 | AC59: 1265 | AD59: 3700 | AE59: 4780 | AF59: 54
A60: 1199 | C60: 2494 | D60: 46 | E60: 4490 | F60: 46 | G60: 5514 | H60: 46 | I60: 1724 | J60: 46 | K60: 4324 | L60: 46 | M60: 21144 | N60: 46 | O60: 42924 | P60: 46 | Q60: 63924 | R60: 46 | S60: 94824 | T60: 46 | U60: 5904 | V60: 46 | W60: 21664 | X60: 46 | Y60: 181 | Z60: 616 | AA60: 1305 | AB60: 370 | AC60: 1280 | AD60: 3750 | AE60: 4850 | AF60: 55
A61: 1204 | C61: 2504 | D61: 45 | E61: 4500 | F61: 45 | G61: 5544 | H61: 45 | I61: 1734 | J61: 45 | K61: 4354 | L61: 45 | M61: 21224 | N61: 45 | O61: 43074 | P61: 45 | Q61: 64024 | R61: 45 | S61: 95124 | T61: 45 | U61: 5944 | V61: 45 | W61: 21724 | X61: 45 | Y61: 182 | Z61: 620 | AA61: 1313 | AB61: 374 | AC61: 1295 | AD61: 3800 | AE61: 4920 | AF61: 56
A62: 1209 | C62: 2514 | D62: 44 | E62: 4510 | F62: 44 | G62: 5574 | H62: 44 | I62: 1744 | J62: 44 | K62: 4384 | L62: 44 | M62: 21304 | N62: 44 | O62: 43224 | P62: 44 | Q62: 64124 | R62: 44 | S62: 95524 | T62: 44 | U62: 5984 | V62: 44 | W62: 21784 | X62: 44 | Y62: 183 | Z62: 624 | AA62: 1321 | AB62: 378 | AC62: 1310 | AD62: 3850 | AE62: 4990 | AF62: 57
A63: 1214 | C63: 2524 | D63: 43 | E63: 4520 | F63: 43 | G63: 5604 | H63: 43 | I63: 1754 | J63: 43 | K63: 4414 | L63: 43 | M63: 21404 | N63: 43 | O63: 43374 | P63: 43 | Q63: 64224 | R63: 43 | S63: 95924 | T63: 43 | U63: 10024 | V63: 43 | W63: 21844 | X63: 43 | Y63: 184 | Z63: 628 | AA63: 1329 | AB63: 382 | AC63: 1325 | AD63: 3900 | AE63: 5060 | AF63: 58
A64: 1219 | C64: 2534 | D64: 42 | E64: 4530 | F64: 42 | G64: 5634 | H64: 42 | I64: 1764 | J64: 42 | K64: 4444 | L64: 42 | M64: 21504 | N64: 42 | O64: 43524 | P64: 42 | Q64: 64324 | R64: 42 | S64: 100324 | T64: 42 | U64: 10064 | V64: 42 | W64: 21904 | X64: 42 | Y64: 185 | Z64: 632 | AA64: 1337 | AB64: 386 | AC64: 1340 | AD64: 3950 | AE64: 5130 | AF64: 59
A65: 1224 | C65: 2544 | D65: 41 | E65: 4540 | F65: 41 | G65: 5664 | H65: 41 | I65: 1774 | J65: 41 | K65: 4474 | L65: 41 | M65: 21604 | N65: 41 | O65: 43674 | P65: 41 | Q65: 64424 | R65: 41 | S65: 100724 | T65: 41 | U65: 10104 | V65: 41 | W65: 21964 | X65: 41 | Y65: 186 | Z65: 636 | AA65: 1345 | AB65: 390 | AC65: 1355 | AD65: 4000 | AE65: 5200 | AF65: 60
A66: 1229 | C66: 2554 | D66: 40 | E66: 4550 | F66: 40 | G66: 5694 | H66: 40 | I66: 1784 | J66: 40 | K66: 4504 | L66: 40 | M66: 21704 | N66: 40 | O66: 43824 | P66: 40 | Q66: 64524 | R66: 40 | S66: 101124 | T66: 40 | U66: 10144 | V66: 40 | W66: 22024 | X66: 40 | Y66: 187 | Z66: 640 | AA66: 1352 | AB66: 393 | AC66: 1370 | AD66: 4040 | AE66: 5260 | AF66: 61
A67: 1234 | C67: 2574 | D67: 39 | E67: 4560 | F67: 39 | G67: 5724 | H67: 39 | I67: 1794 | J67: 39 | K67: 4534 | L67: 39 | M67: 21804 | N67: 39 | O67: 44024 | P67: 39 | Q67: 64624 | R67: 39 | S67: 101624 | T67: 39 | U67: 10184 | V67: 39 | W67: 22084 | X67: 39 | Y67: 188 | Z67: 644 | AA67: 1359 | AB67: 396 | AC67: 1385 | AD67: 4080 | AE67: 5320 | AF67: 62
A68: 1244 | C68: 2594 | D68: 38 | E68: 4570 | F68: 38 | G68: 5754 | H68: 38 | I68: 1804 | J68: 38 | K68: 4564 | L68: 38 | M68: 21904 | N68: 38 | O68: 44224 | P68: 38 | Q68: 64724 | R68: 38 | S68: 102124 | T68: 38 | U68: 10224 | V68: 38 | W68: 22144 | X68: 38 | Y68: 189 | Z68: 648 | AA68: 1366 | AB68: 399 | AC68: 1400 | AD68: 4120 | AE68: 5380 | AF68: 63
A69: 1254 | C69: 2614 | D69: 37 | E69: 4580 | F69: 37 | G69: 5784 | H69: 37 | I69: 1814 | J69: 37 | K69: 4594 | L69: 37 | M69: 22004 | N69: 37 | O69: 44424 | P69: 37 | Q69: 64824 | R69: 37 | S69: 102624 | T69: 37 | U69: 10264 | V69: 37 | W69: 22204 | X69: 37 | Y69: 190 | Z69: 652 | AA69: 1373 | AB69: 402 | AC69: 1415 | AD69: 4160 | AE69: 5440 | AF69: 64
A70: 1264 | C70: 2634 | D70: 36 | E70: 4590 | F70: 36 | G70: 5824 | H70: 36 | I70: 1824 | J70: 36 | K70: 4624 | L70: 36 | M70: 22124 | N70: 36 | O70: 44624 | P70: 36 | Q70: 64924 | R70: 36 | S70: 103124 | T70: 36 | U70: 10314 | V70: 36 | W70: 22264 | X70: 36 | Y70: 191 | Z70: 656 | AA70: 1380 | AB70: 405 | AC70: 1430 | AD70: 4200 | AE70: 5500 | AF70: 65
A71: 1274 | C71: 2654 | D71: 35 | E71: 4600 | F71: 35 | G71: 5864 | H71: 35 | I71: 1844 | J71: 35 | K71: 4654 | L71: 35 | M71: 22244 | N71: 35 | O71: 44924 | P71: 35 | Q71: 65024 | R71: 35 | S71: 103624 | T71: 35 | U71: 10364 | V71: 35 | W71: 22324 | X71: 35 | Y71: 192 | Z71: 660 | AA71: 1387 | AB71: 408 | AC71: 1445 | AD71: 4240 | AE71: 5560 | AF71: 66
A72: 1284 | C72: 2674 | D72: 34 | E72: 4610 | F72: 34 | G72: 5904 | H72: 34 | I72: 1864 | J72: 34 | K72: 4684 | L72: 34 | M72: 22364 | N72: 34 | O72: 45224 | P72: 34 | Q72: 65124 | R72: 34 | S72: 104124 | T72: 34 | U72: 10414 | V72: 34 | W72: 22384 | X72: 34 | Y72: 193 | Z72: 664 | AA72: 1394 | AB72: 411 | AC72: 1460 | AD72: 4280 | AE72: 5620 | AF72: 67
A73: 1294 | C73: 2694 | D73: 33 | E73: 4620 | F73: 33 | G73: 5944 | H73: 33 | I73: 1884 | J73: 33 | K73: 4714 | L73: 33 | M73: 22484 | N73: 33 | O73: 45524 | P73: 33 | Q73: 65224 | R73: 33 | S73: 104724 | T73: 33 | U73: 10464 | V73: 33 | W73: 22444 | X73: 33 | Y73: 194 | Z73: 668 | AA73: 1401 | AB73: 414 | AC73: 1475 | AD73: 4320 | AE73: 5680 | AF73: 68
A74: 1304 | C74: 2714 | D74: 32 | E74: 4630 | F74: 32 | G74: 5984 | H74: 32 | I74: 1904 | J74: 32 | K74: 4744 | L74: 32 | M74: 22604 | N74: 32 | O74: 45824 | P74: 32 | Q74: 65324 | R74: 32 | S74: 105324 | T74: 32 | U74: 10514 | V74: 32 | W74: 22504 | X74: 32 | Y74: 195 | Z74: 672 | AA74: 1408 | AB74: 417 | AC74: 1490 | AD74: 4360 | AE74: 5740 | AF74: 69
A75: 1314 | C75: 2734 | D75: 31 | E75: 4640 | F75: 31 | G75: 10024 | H75: 31 | I75: 1924 | J75: 31 | K75: 4774 | L75: 31 | M75: 22724 | N75: 31 | O75: 50124 | P75: 31 | Q75: 65424 | R75: 31 | S75: 105924 | T75: 31 | U75: 10564 | V75: 31 | W75: 22564 | X75: 31 | Y75: 196 | Z75: 676 | AA75: 1415 | AB75: 420 | AC75: 1505 | AD75: 4400 | AE75: 5800 | AF75: 70
A76: 1324 | C76: 2754 | D76: 30 | E76: 4650 | F76: 30 | G76: 10064 | H76: 30 | I76: 1944 | J76: 30 | K76: 4804 | L76: 30 | M76: 22874 | N76: 30 | O76: 50424 | P76: 30 | Q76: 65524 | R76: 30 | S76: 110524 | T76: 30 | U76: 10624 | V76: 30 | W76: 22624 | X76: 30 | Y76: 197 | Z76: 680 | AA76: 1422 | AB76: 423 | AC76: 1520 | AD76: 4440 | AE76: 5860 | AF76: 71
A77: 1334 | C77: 2774 | D77: 29 | E77: 4660 | F77: 29 | G77: 10104 | H77: 29 | I77: 1964 | J77: 29 | K77: 4834 | L77: 29 | M77: 23024 | N77: 29 | O77: 50724 | P77: 29 | Q77: 65624 | R77: 29 | S77: 111224 | T77: 29 | U77: 10684 | V77: 29 | W77: 22684 | X77: 29 | Y77: 198 | Z77: 684 | AA77: 1429 | AB77: 426 | AC77: 1535 | AD77: 4480 | AE77: 5920 | AF77: 72
A78: 1344 | C78: 2794 | D78: 28 | E78: 4670 | F78: 28 | G78: 10144 | H78: 28 | I78: 1984 | J78: 28 | K78: 4864 | L78: 28 | M78: 23174 | N78: 28 | O78: 51024 | P78: 28 | Q78: 65724 | R78: 28 | S78: 111924 | T78: 28 | U78: 10744 | V78: 28 | W78: 22744 | X78: 28 | Y78: 199 | Z78: 688 | AA78: 1436 | AB78: 429 | AC78: 1550 | AD78: 4520 | AE78: 5980 | AF78: 73
A79: 1354 | C79: 2814 | D79: 27 | E79: 4680 | F79: 27 | G79: 10184 | H79: 27 | I79: 2004 | J79: 27 | K79: 4904 | L79: 27 | M79: 23324 | N79: 27 | O79: 51324 | P79: 27 | Q79: 65824 | R79: 27 | S79: 112624 | T79: 27 | U79: 10804 | V79: 27 | W79: 22804 | X79: 27 | Y79: 200 | Z79: 692 | AA79: 1443 | AB79: 432 | AC79: 1565 | AD79: 4560 | AE79: 6040 | AF79: 74
A80: 1364 | C80: 2834 | D80: 26 | E80: 4690 | F80: 26 | G80: 10224 | H80: 26 | I80: 2024 | J80: 26 | K80: 4944 | L80: 26 | M80: 23474 | N80: 26 | O80: 51624 | P80: 26 | Q80: 65924 | R80: 26 | S80: 113324 | T80: 26 | U80: 10864 | V80: 26 | W80: 22864 | X80: 26 | Y80: 201 | Z80: 696 | AA80: 1450 | AB80: 435 | AC80: 1580 | AD80: 4600 | AE80: 6100 | AF80: 75
A81: 1374 | C81: 2854 | D81: 25 | E81: 4700 | F81: 25 | G81: 10264 | H81: 25 | I81: 2044 | J81: 25 | K81: 4984 | L81: 25 | M81: 23624 | N81: 25 | O81: 51924 | P81: 25 | Q81: 70024 | R81: 25 | S81: 114024 | T81: 25 | U81: 10924 | V81: 25 | W81: 22924 | X81: 25 | Y81: 202 | Z81: 700 | AA81: 1456 | AB81: 438 | AC81: 1595 | AD81: 4640 | AE81: 6160 | AF81: 76
A82: 1384 | C82: 2874 | D82: 24 | E82: 4710 | F82: 24 | G82: 10314 | H82: 24 | I82: 2064 | J82: 24 | K82: 5024 | L82: 24 | M82: 23824 | N82: 24 | O82: 52224 | P82: 24 | Q82: 70124 | R82: 24 | S82: 114824 | T82: 24 | U82: 11004 | V82: 24 | W82: 23024 | X82: 24 | Y82: 203 | Z82: 704 | AA82: 1462 | AB82: 441 | AC82: 1610 | AD82: 4680 | AE82: 6220 | AF82: 77
A83: 1394 | C83: 2894 | D83: 23 | E83: 4720 | F83: 23 | G83: 10364 | H83: 23 | I83: 2084 | J83: 23 | K83: 5064 | L83: 23 | M83: 24024 | N83: 23 | O83: 52524 | P83: 23 | Q83: 70224 | R83: 23 | S83: 115624 | T83: 23 | U83: 11084 | V83: 23 | W83: 23124 | X83: 23 | Y83: 204 | Z83: 708 | AA83: 1468 | AB83: 444 | AC83: 1625 | AD83: 4720 | AE83: 6280 | AF83: 78
A84: 1404 | C84: 2914 | D84: 22 | E84: 4730 | F84: 22 | G84: 10414 | H84: 22 | I84: 2104 | J84: 22 | K84: 5104 | L84: 22 | M84: 24224 | N84: 22 | O84: 52824 | P84: 22 | Q84: 70324 | R84: 22 | S84: 120424 | T84: 22 | U84: 11164 | V84: 22 | W84: 23224 | X84: 22 | Y84: 205 | Z84: 712 | AA84: 1474 | AB84: 447 | AC84: 1640 | AD84: 4760 | AE84: 6340 | AF84: 79
A85: 1414 | C85: 2944 | D85: 21 | E85: 4740 | F85: 21 | G85: 10464 | H85: 21 | I85: 2124 | J85: 21 | K85: 5144 | L85: 21 | M85: 24424 | N85: 21 | O85: 53124 | P85: 21 | Q85: 70424 | R85: 21 | S85: 121224 | T85: 21 | U85: 11244 | V85: 21 | W85: 23324 | X85: 21 | Y85: 206 | Z85: 716 | AA85: 1480 | AB85: 450 | AC85: 1655 | AD85: 4800 | AE85: 6400 | AF85: 80
A86: 1424 | C86: 2974 | D86: 20 | E86: 4750 | F86: 20 | G86: 10514 | H86: 20 | I86: 2144 | J86: 20 | K86: 5184 | L86: 20 | M86: 24624 | N86: 20 | O86: 53524 | P86: 20 | Q86: 70524 | R86: 20 | S86: 122124 | T86: 20 | U86: 11324 | V86: 20 | W86: 23424 | X86: 20 | Y86: 207 | Z86: 720 | AA86: 1486 | AB86: 453 | AC86: 1670 | AD86: 4840 | AE86: 6460 | AF86: 81
A87: 1434 | C87: 3004 | D87: 19 | E87: 4760 | F87: 19 | G87: 10564 | H87: 19 | I87: 2164 | J87: 19 | K87: 5224 | L87: 19 | M87: 24824 | N87: 19 | O87: 53924 | P87: 19 | Q87: 70624 | R87: 19 | S87: 123024 | T87: 19 | U87: 11404 | V87: 19 | W87: 23524 | X87: 19 | Y87: 208 | Z87: 724 | AA87: 1492 | AB87: 456 | AC87: 1685 | AD87: 4880 | AE87: 6520 | AF87: 82
A88: 1444 | C88: 3034 | D88: 18 | E88: 4770 | F88: 18 | G88: 10624 | H88: 18 | I88: 2184 | J88: 18 | K88: 5264 | L88: 18 | M88: 25024 | N88: 18 | O88: 54324 | P88: 18 | Q88: 70724 | R88: 18 | S88: 123924 | T88: 18 | U88: 11504 | V88: 18 | W88: 23624 | X88: 18 | Y88: 209 | Z88: 728 | AA88: 1498 | AB88: 459 | AC88: 1700 | AD88: 4920 | AE88: 6580 | AF88: 83
A89: 1454 | C89: 3064 | D89: 17 | E89: 4780 | F89: 17 | G89: 10684 | H89: 17 | I89: 2204 | J89: 17 | K89: 5314 | L89: 17 | M89: 25224 | N89: 17 | O89: 54724 | P89: 17 | Q89: 70824 | R89: 17 | S89: 124824 | T89: 17 | U89: 11604 | V89: 17 | W89: 23724 | X89: 17 | Y89: 210 | Z89: 732 | AA89: 1504 | AB89: 462 | AC89: 1715 | AD89: 4960 | AE89: 6640 | AF89: 84
A90: 1464 | C90: 3094 | D90: 16 | E90: 4790 | F90: 16 | G90: 10744 | H90: 16 | I90: 2224 | J90: 16 | K90: 5364 | L90: 16 | M90: 25424 | N90: 16 | O90: 55124 | P90: 16 | Q90: 70924 | R90: 16 | S90: 125824 | T90: 16 | U90: 11704 | V90: 16 | W90: 23824 | X90: 16 | Y90: 211 | Z90: 736 | AA90: 1510 | AB90: 465 | AC90: 1730 | AD90: 5000 | AE90: 6700 | AF90: 85
A91: 1474 | C91: 3124 | D91: 15 | E91: 4800 | F91: 15 | G91: 10804 | H91: 15 | I91: 2244 | J91: 15 | K91: 5414 | L91: 15 | M91: 25624 | N91: 15 | O91: 55524 | P91: 15 | Q91: 71024 | R91: 15 | S91: 130824 | T91: 15 | U91: 11804 | V91: 15 | W91: 23924 | X91: 15 | Y91: 212 | Z91: 739 | AA91: 1516 | AB91: 468 | AC91: 1745 | AD91: 5040 | AE91: 6760 | AF91: 86
A92: 1484 | C92: 3154 | D92: 14 | E92: 4810 | F92: 14 | G92: 10864 | H92: 14 | I92: 2264 | J92: 14 | K92: 5464 | L92: 14 | M92: 25824 | N92: 14 | O92: 55924 | P92: 14 | Q92: 71124 | R92: 14 | S92: 131824 | T92: 14 | U92: 11904 | V92: 14 | W92: 24024 | X92: 14 | Y92: 213 | Z92: 742 | AA92: 1522 | AB92: 471 | AC92: 1760 | AD92: 5080 | AE92: 6820 | AF92: 87
A93: 1494 | C93: 3184 | D93: 13 | E93: 4820 | F93: 13 | G93: 10924 | H93: 13 | I93: 2284 | J93: 13 | K93: 5514 | L93: 13 | M93: 30024 | N93: 13 | O93: 60324 | P93: 13 | Q93: 71224 | R93: 13 | S93: 132824 | T93: 13 | U93: 12004 | V93: 13 | W93: 24124 | X93: 13 | Y93: 214 | Z93: 745 | AA93: 1528 | AB93: 474 | AC93: 1775 | AD93: 5120 | AE93: 6880 | AF93: 88
A94: 1504 | C94: 3214 | D94: 12 | E94: 4830 | F94: 12 | G94: 11004 | H94: 12 | I94: 2304 | J94: 12 | K94: 5564 | L94: 12 | M94: 30224 | N94: 12 | O94: 60724 | P94: 12 | Q94: 71324 | R94: 12 | S94: 133924 | T94: 12 | U94: 12030 | V94: 12 | W94: 24224 | X94: 12 | Y94: 215 | Z94: 748 | AA94: 1534 | AB94: 477 | AC94: 1790 | AD94: 5160 | AE94: 6940 | AF94: 89
A95: 1524 | C95: 3254 | D95: 11 | E95: 4840 | F95: 11 | G95: 11084 | H95: 11 | I95: 2324 | J95: 11 | K95: 5614 | L95: 11 | M95: 30524 | N95: 11 | O95: 61124 | P95: 11 | Q95: 71424 | R95: 11 | S95: 135024 | T95: 11 | U95: 12040 | V95: 11 | W95: 24324 | X95: 11 | Y95: 216 | Z95: 751 | AA95: 1540 | AB95: 480 | AC95: 1805 | AD95: 5200 | AE95: 7000 | AF95: 90
A96: 1544 | C96: 3294 | D96: 10 | E96: 4850 | F96: 10 | G96: 11164 | H96: 10 | I96: 2354 | J96: 10 | K96: 5664 | L96: 10 | M96: 30824 | N96: 10 | O96: 61624 | P96: 10 | Q96: 71524 | R96: 10 | S96: 140124 | T96: 10 | U96: 12054 | V96: 10 | W96: 24424 | X96: 10 | Z96: 757 | AA96: 1552 | AB96: 486 | AC96: 1835 | AD96: 5280 | AE96: 7120 | AF96: 91
A97: 1564 | C97: 3334 | D97: 9 | E97: 4860 | F97: 9 | G97: 11244 | H97: 9 | I97: 2384 | J97: 9 | K97: 5734 | L97: 9 | M97: 31124 | N97: 9 | O97: 62124 | P97: 9 | Q97: 71624 | R97: 9 | S97: 141224 | T97: 9 | U97: 12074 | V97: 9 | W97: 24524 | X97: 9 | Y97: 217 | Z97: 754 | AA97: 1546 | AB97: 483 | AC97: 1820 | AD97: 5240 | AE97: 7060 | AF97: 92
A98: 1584 | C98: 3374 | D98: 8 | E98: 4870 | F98: 8 | G98: 11324 | H98: 8 | I98: 2414 | J98: 8 | K98: 5804 | L98: 8 | M98: 31424 | N98: 8 | O98: 62624 | P98: 8 | Q98: 71724 | R98: 8 | S98: 142324 | T98: 8 | U98: 13000 | V98: 8 | W98: 24624 | X98: 8 | Z98: 763 | AA98: 1564 | AB98: 492 | AC98: 1865 | AD98: 5360 | AE98: 7240 | AF98: 93
A99: 1604 | C99: 3414 | D99: 7 | E99: 4880 | F99: 7 | G99: 11404 | H99: 7 | I99: 2444 | J99: 7 | K99: 5874 | L99: 7 | M99: 31724 | N99: 7 | O99: 63124 | P99: 7 | Q99: 71824 | R99: 7 | S99: 143424 | T99: 7 | U99: 13010 | V99: 7 | W99: 24724 | X99: 7 | Y99: 218 | Z99: 760 | AA99: 1558 | AB99: 489 | AC99: 1850 | AD99: 5320 | AE99: 7180 | AF99: 94
A100: 1624 | C100: 3454 | D100: 6 | E100: 4890 | F100: 6 | G100: 11504 | H100: 6 | I100: 2474 | J100: 6 | K100: 5944 | L100: 6 | M100: 32024 | N100: 6 | O100: 63624 | P100: 6 | Q100: 71924 | R100: 6 | S100: 144524 | T100: 6 | U100: 13040 | V100: 6 | W100: 24824 | X100: 6 | Z100: 768 | AA100: 1576 | AB100: 498 | AC100: 1894 | AD100: 5440 | AE100: 7360 | AF100: 95
A101: 1644 | C101: 3494 | D101: 5 | E101: 4900 | F101: 5 | G101: 11604 | H101: 5 | I101: 2504 | J101: 5 | K101: 10014 | L101: 5 | M101: 32324 | N101: 5 | O101: 64124 | P101: 5 | Q101: 72024 | R101: 5 | S101: 145624 | T101: 5 | U101: 13050 | V101: 5 | W101: 24924 | X101: 5 | Y101: 219 | Z101: 766 | AA101: 1570 | AB101: 495 | AC101: 1880 | AD101: 5400 | AE101: 7300 | AF101: 96
A102: 1664 | C102: 3544 | D102: 4 | E102: 4910 | F102: 4 | G102: 11704 | H102: 4 | I102: 2544 | J102: 4 | K102: 10094 | L102: 4 | M102: 32624 | N102: 4 | O102: 64724 | P102: 4 | Q102: 72124 | R102: 4 | S102: 150724 | T102: 4 | U102: 13104 | V102: 4 | W102: 25024 | X102: 4 | Z102: 772 | AA102: 1588 | AB102: 504 | AC102: 1922 | AD102: 5520 | AE102: 7480 | AF102: 97
A103: 1684 | C103: 3594 | D103: 3 | E103: 4920 | F103: 3 | G103: 11804 | H103: 3 | I103: 2584 | J103: 3 | K103: 10194 | L103: 3 | M103: 33024 | N103: 3 | O103: 65424 | P103: 3 | Q103: 72224 | R103: 3 | S103: 151824 | T103: 3 | U103: 13114 | V103: 3 | W103: 25124 | X103: 3 | Y103: 220 | Z103: 770 | AA103: 1582 | AB103: 501 | AC103: 1908 | AD103: 5480 | AE103: 7420 | AF103: 98
A104: 1704 | C104: 3644 | D104: 2 | E104: 4930 | F104: 2 | G104: 11904 | H104: 2 | I104: 2624 | J104: 2 | K104: 10294 | L104: 2 | M104: 33524 | N104: 2 | O104: 70224 | P104: 2 | Q104: 72324 | R104: 2 | S104: 152924 | T104: 2 | U104: 13130 | V104: 2 | W104: 25224 | X104: 2 | Z104: 776 | AA104: 1600 | AB104: 510 | AC104: 1950 | AD104: 5600 | AE104: 7600 | AF104: 99
A105: 1724 | C105: 3694 | D105: 1 | E105: 4940 | F105: 1 | G105: 12004 | H105: 1 | I105: 2664 | J105: 1 | K105: 10394 | L105: 1 | M105: 34024 | N105: 1 | O105: 71124 | P105: 1 | Q105: 72424 | R105: 1 | S105: 153024 | T105: 1 | U105: 13140 | V105: 1 | W105: 25324 | X105: 1 | Y105: 221 | Z105: 774 | AA105: 1594 | AB105: 507 | AC105: 1936 | AD105: 5560 | AE105: 7540 | AF105: 100
A106: DNS | C106: DNS | D106: 0 | E106: DNS | F106: 0 | G106: DNS | H106: 0 | I106: DNS | J106: 0 | K106: DNS | L106: 0 | M106: DNS | N106: 0 | O106: DNS | P106: 0 | Q106: DNS | R106: 0 | S106: DNS | T106: 0 | U106: DNS | V106: 0 | W106: DNS | X106: 0
A107: DNF | C107: DNF | E107: DNF | F107: 0 | G107: DNF | I107: DNF | K107: DNF | M107: DNF | O107: DNF | Q107: DNF | S107: DNF | U107: DNF | W107: DNF | X107: 0
A108: NM | C108: NM | E108: NM | F108: 0 | G108: NM | I108: NM | K108: NM | M108: NM | O108: NM | Q108: NM | S108: NM | U108: NM | W108: NM | X108: 0
A109: DQ | C109: DQ | E109: DQ | F109: 0 | G109: DQ | I109: DQ | K109: DQ | M109: DQ | O109: DQ | Q109: DQ | S109: DQ | U109: DQ | W109: DQ | X109: 0

Sheet 100m.
A2: ='YARIŞMA BİLGİLERİ'!F19 -> KOÇ TOPLULUĞU SPOR ŞENLİĞİ PUANLI ATLETİZM YARIŞLARI
A3: Yarışma : | D3: ='YARIŞMA PROGRAMI'!C15 -> 100 Metre Final | H3: :
A4: Kategori : | D4: ='YARIŞMA BİLGİLERİ'!F21 -> Kadınlar | M4: Tarih-Saat : | N4: ='YARIŞMA PROGRAMI'!B7 -> 42840.46528
N5: =NOW() -> 42842.61208
A6: Sıra No | B6: Göğüs No | C6: Doğum Tarihi Gün/Ay/Yıl | D6: Adı ve Soyadı | E6: TAKIMI | F6: Derece | G6: Puan | I6: 1. SERİ | M6: Rüzgar: | N6: -0.6
I7: Kulvar | J7: Formül | K7: Göğüs No | L7: Doğum Tarihi | M7: Adı ve Soyadı | N7: TAKIMI | O7: Elektronik Kronometre | P7: El Kronometre | Q7: Seri Geliş
A8: 1 | D8: CANAN FİL | E8: FORD OTOSAN | F8: 1425 | G8: 11 | I8: 1 | J8: 100M-1-1 | K8: =IF(ISERROR(VLOOKUP(J8,#REF!,2,0)),"",(VLOOKUP(J8,#REF!,2,0))) ->  | L8: =IF(ISERROR(VLOOKUP(J8,#REF!,4,0)),"",(VLOOKUP(J8,#REF!,4,0))) ->  | M8: =IF(ISERROR(VLOOKUP(J8,#REF!,5,0)),"",(VLOOKUP(J8,#REF!,5,0))) ->  | N8: =IF(ISERROR(VLOOKUP(J8,#REF!,6,0)),"",(VLOOKUP(J8,#REF!,6,0))) -> 
A9: 2 | D9: ECEM ERERMİŞ | E9: TÜPRAŞ | F9: 1596 | G9: 10 | I9: 2 | J9: 100M-1-2 | K9: =IF(ISERROR(VLOOKUP(J9,#REF!,2,0)),"",(VLOOKUP(J9,#REF!,2,0))) ->  | L9: =IF(ISERROR(VLOOKUP(J9,#REF!,4,0)),"",(VLOOKUP(J9,#REF!,4,0))) ->  | M9: ÖZLEM KURT | N9: ZER | O9: 1959 | Q9: 5
A10: 3 | D10: AYLİN ÖZDEMİR | E10: YAPI KREDİ | F10: 1656 | G10: 9 | I10: 3 | J10: 100M-1-3 | K10: =IF(ISERROR(VLOOKUP(J10,#REF!,2,0)),"",(VLOOKUP(J10,#REF!,2,0))) ->  | L10: =IF(ISERROR(VLOOKUP(J10,#REF!,4,0)),"",(VLOOKUP(J10,#REF!,4,0))) ->  | M10: AYLİN ÖZDEMİR | N10: YAPI KREDİ | O10: 1656 | Q10: 3
A11: 4 | D11: RUKİYE DİNDAR | E11: TOFAŞ | F11: 1938 | G11: 8 | I11: 4 | J11: 100M-1-4 | K11: =IF(ISERROR(VLOOKUP(J11,#REF!,2,0)),"",(VLOOKUP(J11,#REF!,2,0))) ->  | L11: =IF(ISERROR(VLOOKUP(J11,#REF!,4,0)),"",(VLOOKUP(J11,#REF!,4,0))) ->  | M11: CANAN FİL | N11: FORD OTOSAN | O11: 1425 | Q11: 1
A12: 5 | D12: ÖZLEM KURT | E12: ZER | F12: 1959 | G12: 7 | I12: 5 | J12: 100M-1-5 | K12: =IF(ISERROR(VLOOKUP(J12,#REF!,2,0)),"",(VLOOKUP(J12,#REF!,2,0))) ->  | L12: =IF(ISERROR(VLOOKUP(J12,#REF!,4,0)),"",(VLOOKUP(J12,#REF!,4,0))) ->  | M12: ECEM ERERMİŞ | N12: TÜPRAŞ | O12: 1596 | Q12: 2
A13: - | D13: ESİN KORKUT | E13: ARÇELİK | F13: DNS | G13: 0 | I13: 6 | J13: 100M-1-6 | K13: =IF(ISERROR(VLOOKUP(J13,#REF!,2,0)),"",(VLOOKUP(J13,#REF!,2,0))) ->  | L13: =IF(ISERROR(VLOOKUP(J13,#REF!,4,0)),"",(VLOOKUP(J13,#REF!,4,0))) ->  | M13: ESİN KORKUT | N13: ARÇELİK | O13: DNS | Q13: -
I14: 7 | J14: 100M-1-7 | K14: =IF(ISERROR(VLOOKUP(J14,#REF!,2,0)),"",(VLOOKUP(J14,#REF!,2,0))) ->  | L14: =IF(ISERROR(VLOOKUP(J14,#REF!,4,0)),"",(VLOOKUP(J14,#REF!,4,0))) ->  | M14: RUKİYE DİNDAR | N14: TOFAŞ | O14: 1938 | Q14: 4
I15: 8 | J15: 100M-1-8 | K15: =IF(ISERROR(VLOOKUP(J15,#REF!,2,0)),"",(VLOOKUP(J15,#REF!,2,0))) ->  | L15: =IF(ISERROR(VLOOKUP(J15,#REF!,4,0)),"",(VLOOKUP(J15,#REF!,4,0))) ->  | M15: =IF(ISERROR(VLOOKUP(J15,#REF!,5,0)),"",(VLOOKUP(J15,#REF!,5,0))) ->  | N15: =IF(ISERROR(VLOOKUP(J15,#REF!,6,0)),"",(VLOOKUP(J15,#REF!,6,0))) -> 
I16: 2. SERİ | M16: Rüzgar:
I17: Kulvar | J17: Formül | K17: Göğüs No | L17: Doğum Tarihi | M17: Adı ve Soyadı | N17: TAKIMI | O17: Elektronik Kronometre | P17: El Kronometre | Q17: Seri Geliş
I18: 1 | J18: 100M-2-1 | K18: =IF(ISERROR(VLOOKUP(J18,#REF!,2,0)),"",(VLOOKUP(J18,#REF!,2,0))) ->  | L18: =IF(ISERROR(VLOOKUP(J18,#REF!,4,0)),"",(VLOOKUP(J18,#REF!,4,0))) ->  | M18: =IF(ISERROR(VLOOKUP(J18,#REF!,5,0)),"",(VLOOKUP(J18,#REF!,5,0))) ->  | N18: =IF(ISERROR(VLOOKUP(J18,#REF!,6,0)),"",(VLOOKUP(J18,#REF!,6,0))) -> 
I19: 2 | J19: 100M-2-2 | K19: =IF(ISERROR(VLOOKUP(J19,#REF!,2,0)),"",(VLOOKUP(J19,#REF!,2,0))) ->  | L19: =IF(ISERROR(VLOOKUP(J19,#REF!,4,0)),"",(VLOOKUP(J19,#REF!,4,0))) -> 
I20: 3 | J20: 100M-2-3 | K20: =IF(ISERROR(VLOOKUP(J20,#REF!,2,0)),"",(VLOOKUP(J20,#REF!,2,0))) ->  | L20: =IF(ISERROR(VLOOKUP(J20,#REF!,4,0)),"",(VLOOKUP(J20,#REF!,4,0))) -> 
I21: 4 | J21: 100M-2-4 | K21: =IF(ISERROR(VLOOKUP(J21,#REF!,2,0)),"",(VLOOKUP(J21,#REF!,2,0))) ->  | L21: =IF(ISERROR(VLOOKUP(J21,#REF!,4,0)),"",(VLOOKUP(J21,#REF!,4,0))) -> 
I22: 5 | J22: 100M-2-5 | K22: =IF(ISERROR(VLOOKUP(J22,#REF!,2,0)),"",(VLOOKUP(J22,#REF!,2,0))) ->  | L22: =IF(ISERROR(VLOOKUP(J22,#REF!,4,0)),"",(VLOOKUP(J22,#REF!,4,0))) -> 
I23: 6 | J23: 100M-2-6 | K23: =IF(ISERROR(VLOOKUP(J23,#REF!,2,0)),"",(VLOOKUP(J23,#REF!,2,0))) ->  | L23: =IF(ISERROR(VLOOKUP(J23,#REF!,4,0)),"",(VLOOKUP(J23,#REF!,4,0))) -> 
I24: 7 | J24: 100M-2-7 | K24: =IF(ISERROR(VLOOKUP(J24,#REF!,2,0)),"",(VLOOKUP(J24,#REF!,2,0))) ->  | L24: =IF(ISERROR(VLOOKUP(J24,#REF!,4,0)),"",(VLOOKUP(J24,#REF!,4,0))) ->  | M24: =IF(ISERROR(VLOOKUP(J24,#REF!,5,0)),"",(VLOOKUP(J24,#REF!,5,0))) ->  | N24: =IF(ISERROR(VLOOKUP(J24,#REF!,6,0)),"",(VLOOKUP(J24,#REF!,6,0))) -> 
I25: 8 | J25: 100M-2-8 | K25: =IF(ISERROR(VLOOKUP(J25,#REF!,2,0)),"",(VLOOKUP(J25,#REF!,2,0))) ->  | L25: =IF(ISERROR(VLOOKUP(J25,#REF!,4,0)),"",(VLOOKUP(J25,#REF!,4,0))) ->  | M25: =IF(ISERROR(VLOOKUP(J25,#REF!,5,0)),"",(VLOOKUP(J25,#REF!,5,0))) ->  | N25: =IF(ISERROR(VLOOKUP(J25,#REF!,6,0)),"",(VLOOKUP(J25,#REF!,6,0))) -> 
I26: 3. SERİ | M26: Rüzgar:
I27: Kulvar | J27: Formül | K27: Göğüs No | L27: Doğum Tarihi | M27: Adı ve Soyadı | N27: Okulu | O27: Elektronik Kronometre | P27: El Kronometre | Q27: Seri Geliş
I28: 1 | J28: 100M-3-1 | K28: =IF(ISERROR(VLOOKUP(J28,#REF!,2,0)),"",(VLOOKUP(J28,#REF!,2,0))) ->  | L28: =IF(ISERROR(VLOOKUP(J28,#REF!,4,0)),"",(VLOOKUP(J28,#REF!,4,0))) ->  | M28: =IF(ISERROR(VLOOKUP(J28,#REF!,5,0)),"",(VLOOKUP(J28,#REF!,5,0))) ->  | N28: =IF(ISERROR(VLOOKUP(J28,#REF!,6,0)),"",(VLOOKUP(J28,#REF!,6,0))) -> 
I29: 2 | J29: 100M-3-2 | K29: =IF(ISERROR(VLOOKUP(J29,#REF!,2,0)),"",(VLOOKUP(J29,#REF!,2,0))) ->  | L29: =IF(ISERROR(VLOOKUP(J29,#REF!,4,0)),"",(VLOOKUP(J29,#REF!,4,0))) -> 
I30: 3 | J30: 100M-3-3 | K30: =IF(ISERROR(VLOOKUP(J30,#REF!,2,0)),"",(VLOOKUP(J30,#REF!,2,0))) ->  | L30: =IF(ISERROR(VLOOKUP(J30,#REF!,4,0)),"",(VLOOKUP(J30,#REF!,4,0))) -> 
I31: 4 | J31: 100M-3-4 | K31: =IF(ISERROR(VLOOKUP(J31,#REF!,2,0)),"",(VLOOKUP(J31,#REF!,2,0))) ->  | L31: =IF(ISERROR(VLOOKUP(J31,#REF!,4,0)),"",(VLOOKUP(J31,#REF!,4,0))) -> 
I32: 5 | J32: 100M-3-5 | K32: =IF(ISERROR(VLOOKUP(J32,#REF!,2,0)),"",(VLOOKUP(J32,#REF!,2,0))) ->  | L32: =IF(ISERROR(VLOOKUP(J32,#REF!,4,0)),"",(VLOOKUP(J32,#REF!,4,0))) -> 
I33: 6 | J33: 100M-3-6 | K33: =IF(ISERROR(VLOOKUP(J33,#REF!,2,0)),"",(VLOOKUP(J33,#REF!,2,0))) ->  | L33: =IF(ISERROR(VLOOKUP(J33,#REF!,4,0)),"",(VLOOKUP(J33,#REF!,4,0))) ->  | M33: =IF(ISERROR(VLOOKUP(J33,#REF!,5,0)),"",(VLOOKUP(J33,#REF!,5,0))) ->  | N33: =IF(ISERROR(VLOOKUP(J33,#REF!,6,0)),"",(VLOOKUP(J33,#REF!,6,0))) -> 
I34: 7 | J34: 100M-3-7 | K34: =IF(ISERROR(VLOOKUP(J34,#REF!,2,0)),"",(VLOOKUP(J34,#REF!,2,0))) ->  | L34: =IF(ISERROR(VLOOKUP(J34,#REF!,4,0)),"",(VLOOKUP(J34,#REF!,4,0))) ->  | M34: =IF(ISERROR(VLOOKUP(J34,#REF!,5,0)),"",(VLOOKUP(J34,#REF!,5,0))) ->  | N34: =IF(ISERROR(VLOOKUP(J34,#REF!,6,0)),"",(VLOOKUP(J34,#REF!,6,0))) -> 
I35: 8 | J35: 100M-3-8 | K35: =IF(ISERROR(VLOOKUP(J35,#REF!,2,0)),"",(VLOOKUP(J35,#REF!,2,0))) ->  | L35: =IF(ISERROR(VLOOKUP(J35,#REF!,4,0)),"",(VLOOKUP(J35,#REF!,4,0))) ->  | M35: =IF(ISERROR(VLOOKUP(J35,#REF!,5,0)),"",(VLOOKUP(J35,#REF!,5,0))) ->  | N35: =IF(ISERROR(VLOOKUP(J35,#REF!,6,0)),"",(VLOOKUP(J35,#REF!,6,0))) -> 
I36: 4. SERİ | M36: Rüzgar:
I37: Kulvar | J37: Formül | K37: Göğüs No | L37: Doğum Tarihi | M37: Adı ve Soyadı | N37: Okulu | O37: Elektronik Kronometre | P37: Derece | Q37: Seri Geliş
I38: 1 | J38: 100M-4-1 | K38: =IF(ISERROR(VLOOKUP(J38,#REF!,2,0)),"",(VLOOKUP(J38,#REF!,2,0))) ->  | L38: =IF(ISERROR(VLOOKUP(J38,#REF!,4,0)),"",(VLOOKUP(J38,#REF!,4,0))) ->  | M38: =IF(ISERROR(VLOOKUP(J38,#REF!,5,0)),"",(VLOOKUP(J38,#REF!,5,0))) ->  | N38: =IF(ISERROR(VLOOKUP(J38,#REF!,6,0)),"",(VLOOKUP(J38,#REF!,6,0))) ->  | O38: =IF(IF(OR(P38="NM",P38="DNF",P38="DNS",P38="DQ",P38=""),P38,(ROUNDUP(P38,)+24))=0," ",IF(OR(P38="NM",P38="DNF",P38="DNS",P38="DQ",P38=""),P38,(ROUNDUP(P38,)+24))) -> 
I39: 2 | J39: 100M-4-2 | K39: =IF(ISERROR(VLOOKUP(J39,#REF!,2,0)),"",(VLOOKUP(J39,#REF!,2,0))) ->  | L39: =IF(ISERROR(VLOOKUP(J39,#REF!,4,0)),"",(VLOOKUP(J39,#REF!,4,0))) -> 
I40: 3 | J40: 100M-4-3 | K40: =IF(ISERROR(VLOOKUP(J40,#REF!,2,0)),"",(VLOOKUP(J40,#REF!,2,0))) ->  | L40: =IF(ISERROR(VLOOKUP(J40,#REF!,4,0)),"",(VLOOKUP(J40,#REF!,4,0))) -> 
I41: 4 | J41: 100M-4-4 | K41: =IF(ISERROR(VLOOKUP(J41,#REF!,2,0)),"",(VLOOKUP(J41,#REF!,2,0))) ->  | L41: =IF(ISERROR(VLOOKUP(J41,#REF!,4,0)),"",(VLOOKUP(J41,#REF!,4,0))) -> 
I42: 5 | J42: 100M-4-5 | K42: =IF(ISERROR(VLOOKUP(J42,#REF!,2,0)),"",(VLOOKUP(J42,#REF!,2,0))) ->  | L42: =IF(ISERROR(VLOOKUP(J42,#REF!,4,0)),"",(VLOOKUP(J42,#REF!,4,0))) -> 
I43: 6 | J43: 100M-4-6 | K43: =IF(ISERROR(VLOOKUP(J43,#REF!,2,0)),"",(VLOOKUP(J43,#REF!,2,0))) ->  | L43: =IF(ISERROR(VLOOKUP(J43,#REF!,4,0)),"",(VLOOKUP(J43,#REF!,4,0))) ->  | N43: =IF(ISERROR(VLOOKUP(J43,#REF!,6,0)),"",(VLOOKUP(J43,#REF!,6,0))) -> 
I44: 7 | J44: 100M-4-7 | K44: =IF(ISERROR(VLOOKUP(J44,#REF!,2,0)),"",(VLOOKUP(J44,#REF!,2,0))) ->  | L44: =IF(ISERROR(VLOOKUP(J44,#REF!,4,0)),"",(VLOOKUP(J44,#REF!,4,0))) ->  | M44: =IF(ISERROR(VLOOKUP(J44,#REF!,5,0)),"",(VLOOKUP(J44,#REF!,5,0))) ->  | N44: =IF(ISERROR(VLOOKUP(J44,#REF!,6,0)),"",(VLOOKUP(J44,#REF!,6,0))) -> 
I45: 8 | J45: 100M-4-8 | K45: =IF(ISERROR(VLOOKUP(J45,#REF!,2,0)),"",(VLOOKUP(J45,#REF!,2,0))) ->  | L45: =IF(ISERROR(VLOOKUP(J45,#REF!,4,0)),"",(VLOOKUP(J45,#REF!,4,0))) ->  | M45: =IF(ISERROR(VLOOKUP(J45,#REF!,5,0)),"",(VLOOKUP(J45,#REF!,5,0))) ->  | N45: =IF(ISERROR(VLOOKUP(J45,#REF!,6,0)),"",(VLOOKUP(J45,#REF!,6,0))) -> 
G46: =IF(ISTEXT(F46)," ",IFERROR(VLOOKUP(SMALL(PUAN!$A$6:$F$111,COUNTIF(PUAN!$A$6:$F$111,"<"&F46)+1),PUAN!$A$6:$F$111,4,0)," ")) ->  | I46: 5. SERİ | M46: Rüzgar:
G47: =IF(ISTEXT(F47)," ",IFERROR(VLOOKUP(SMALL(PUAN!$A$6:$F$111,COUNTIF(PUAN!$A$6:$F$111,"<"&F47)+1),PUAN!$A$6:$F$111,4,0)," ")) ->  | I47: Kulvar | J47: Formül | K47: Göğüs No | L47: Doğum Tarihi | M47: Adı ve Soyadı | N47: Okulu | O47: Elektronik Kronometre | P47: El Kronometre | Q47: Seri Geliş
G48: =IF(ISTEXT(F48)," ",IFERROR(VLOOKUP(SMALL(PUAN!$A$6:$F$111,COUNTIF(PUAN!$A$6:$F$111,"<"&F48)+1),PUAN!$A$6:$F$111,4,0)," ")) ->  | I48: 1 | J48: 100M-5-1 | K48: =IF(ISERROR(VLOOKUP(J48,#REF!,2,0)),"",(VLOOKUP(J48,#REF!,2,0))) ->  | L48: =IF(ISERROR(VLOOKUP(J48,#REF!,4,0)),"",(VLOOKUP(J48,#REF!,4,0))) ->  | M48: =IF(ISERROR(VLOOKUP(J48,#REF!,5,0)),"",(VLOOKUP(J48,#REF!,5,0))) ->  | N48: =IF(ISERROR(VLOOKUP(J48,#REF!,6,0)),"",(VLOOKUP(J48,#REF!,6,0))) -> 
G49: =IF(ISTEXT(F49)," ",IFERROR(VLOOKUP(SMALL(PUAN!$A$6:$F$111,COUNTIF(PUAN!$A$6:$F$111,"<"&F49)+1),PUAN!$A$6:$F$111,4,0)," ")) ->  | I49: 2 | J49: 100M-5-2 | K49: =IF(ISERROR(VLOOKUP(J49,#REF!,2,0)),"",(VLOOKUP(J49,#REF!,2,0))) ->  | L49: =IF(ISERROR(VLOOKUP(J49,#REF!,4,0)),"",(VLOOKUP(J49,#REF!,4,0))) -> 
G50: =IF(ISTEXT(F50)," ",IFERROR(VLOOKUP(SMALL(PUAN!$A$6:$F$111,COUNTIF(PUAN!$A$6:$F$111,"<"&F50)+1),PUAN!$A$6:$F$111,4,0)," ")) ->  | I50: 3 | J50: 100M-5-3 | K50: =IF(ISERROR(VLOOKUP(J50,#REF!,2,0)),"",(VLOOKUP(J50,#REF!,2,0))) ->  | L50: =IF(ISERROR(VLOOKUP(J50,#REF!,4,0)),"",(VLOOKUP(J50,#REF!,4,0))) -> 
G51: =IF(ISTEXT(F51)," ",IFERROR(VLOOKUP(SMALL(PUAN!$A$6:$F$111,COUNTIF(PUAN!$A$6:$F$111,"<"&F51)+1),PUAN!$A$6:$F$111,4,0)," ")) ->  | I51: 4 | J51: 100M-5-4 | K51: =IF(ISERROR(VLOOKUP(J51,#REF!,2,0)),"",(VLOOKUP(J51,#REF!,2,0))) ->  | L51: =IF(ISERROR(VLOOKUP(J51,#REF!,4,0)),"",(VLOOKUP(J51,#REF!,4,0))) -> 
G52: =IF(ISTEXT(F52)," ",IFERROR(VLOOKUP(SMALL(PUAN!$A$6:$F$111,COUNTIF(PUAN!$A$6:$F$111,"<"&F52)+1),PUAN!$A$6:$F$111,4,0)," ")) ->  | I52: 5 | J52: 100M-5-5 | K52: =IF(ISERROR(VLOOKUP(J52,#REF!,2,0)),"",(VLOOKUP(J52,#REF!,2,0))) ->  | L52: =IF(ISERROR(VLOOKUP(J52,#REF!,4,0)),"",(VLOOKUP(J52,#REF!,4,0))) -> 
G53: =IF(ISTEXT(F53)," ",IFERROR(VLOOKUP(SMALL(PUAN!$A$6:$F$111,COUNTIF(PUAN!$A$6:$F$111,"<"&F53)+1),PUAN!$A$6:$F$111,4,0)," ")) ->  | I53: 6 | J53: 100M-5-6 | K53: =IF(ISERROR(VLOOKUP(J53,#REF!,2,0)),"",(VLOOKUP(J53,#REF!,2,0))) ->  | L53: =IF(ISERROR(VLOOKUP(J53,#REF!,4,0)),"",(VLOOKUP(J53,#REF!,4,0))) ->  | M53: =IF(ISERROR(VLOOKUP(J53,#REF!,5,0)),"",(VLOOKUP(J53,#REF!,5,0))) ->  | N53: =IF(ISERROR(VLOOKUP(J53,#REF!,6,0)),"",(VLOOKUP(J53,#REF!,6,0))) -> 
G54: =IF(ISTEXT(F54)," ",IFERROR(VLOOKUP(SMALL(PUAN!$A$6:$F$111,COUNTIF(PUAN!$A$6:$F$111,"<"&F54)+1),PUAN!$A$6:$F$111,4,0)," ")) ->  | I54: 7 | J54: 100M-5-7 | K54: =IF(ISERROR(VLOOKUP(J54,#REF!,2,0)),"",(VLOOKUP(J54,#REF!,2,0))) ->  | L54: =IF(ISERROR(VLOOKUP(J54,#REF!,4,0)),"",(VLOOKUP(J54,#REF!,4,0))) ->  | M54: =IF(ISERROR(VLOOKUP(J54,#REF!,5,0)),"",(VLOOKUP(J54,#REF!,5,0))) ->  | N54: =IF(ISERROR(VLOOKUP(J54,#REF!,6,0)),"",(VLOOKUP(J54,#REF!,6,0))) -> 
G55: =IF(ISTEXT(F55)," ",IFERROR(VLOOKUP(SMALL(PUAN!$A$6:$F$111,COUNTIF(PUAN!$A$6:$F$111,"<"&F55)+1),PUAN!$A$6:$F$111,4,0)," ")) ->  | I55: 8 | J55: 100M-5-8 | K55: =IF(ISERROR(VLOOKUP(J55,#REF!,2,0)),"",(VLOOKUP(J55,#REF!,2,0))) ->  | L55: =IF(ISERROR(VLOOKUP(J55,#REF!,4,0)),"",(VLOOKUP(J55,#REF!,4,0))) ->  | M55: =IF(ISERROR(VLOOKUP(J55,#REF!,5,0)),"",(VLOOKUP(J55,#REF!,5,0))) ->  | N55: =IF(ISERROR(VLOOKUP(J55,#REF!,6,0)),"",(VLOOKUP(J55,#REF!,6,0))) ->  | O55: =IF(IF(OR(P55="NM",P55="DNF",P55="DNS",P55="DQ",P55=""),P55,(ROUNDUP(P55,)+24))=0," ",IF(OR(P55="NM",P55="DNF",P55="DNS",P55="DQ",P55=""),P55,(ROUNDUP(P55,)+24))) -> 
A57: Müsabakalar Direktörü | E57: Baş Hakem | F57: Lider | H57: Sekreter | M57: Hakem | N57: Hakem | P57: Hakem

Sheet 200m.
A2: ='YARIŞMA BİLGİLERİ'!F19 -> KOÇ TOPLULUĞU SPOR ŞENLİĞİ PUANLI ATLETİZM YARIŞLARI
A3: Yarışma : | D3: 200 Metre | H3: :
A4: Kategori : | D4: ='YARIŞMA BİLGİLERİ'!F21 -> Kadınlar | M4: Tarih-Saat : | N4: ='YARIŞMA PROGRAMI'!B8 -> 15 Nisan 2017 - 12:45
N5: =NOW() -> 42842.61208
A6: Sıra No | B6: Göğüs No | C6: Doğum Tarihi Gün/Ay/Yıl | D6: Adı ve Soyadı | E6: Okulu | F6: Derece | G6: Puan | I6: 1. SERİ
I7: Kulvar | J7: Formül | K7: Göğüs No | L7: Doğum Tarihi | M7: Adı ve Soyadı | N7: Okulu | O7: Elektronik Kronometre | P7: El Kronometre | Q7: Seri Geliş
A8: 1 | D8: İNCİ ÖZDEMİR | E8: FORD OTOSAN | F8: 3365 | G8: 11 | I8: 1 | J8: 300M-1-1 | K8: =IF(ISERROR(VLOOKUP(J8,#REF!,2,0)),"",(VLOOKUP(J8,#REF!,2,0))) ->  | L8: =IF(ISERROR(VLOOKUP(J8,#REF!,4,0)),"",(VLOOKUP(J8,#REF!,4,0))) ->  | M8: =IF(ISERROR(VLOOKUP(J8,#REF!,5,0)),"",(VLOOKUP(J8,#REF!,5,0))) ->  | N8: =IF(ISERROR(VLOOKUP(J8,#REF!,6,0)),"",(VLOOKUP(J8,#REF!,6,0))) -> 
A9: 2 | D9: SELİN GÜVEN | E9: TÜPRAŞ | F9: 3495 | G9: 10 | I9: 2 | J9: 300M-1-2 | K9: =IF(ISERROR(VLOOKUP(J9,#REF!,2,0)),"",(VLOOKUP(J9,#REF!,2,0))) ->  | L9: =IF(ISERROR(VLOOKUP(J9,#REF!,4,0)),"",(VLOOKUP(J9,#REF!,4,0))) ->  | M9: =IF(ISERROR(VLOOKUP(J9,#REF!,5,0)),"",(VLOOKUP(J9,#REF!,5,0))) -> 
A10: 3 | D10: ECEMSU HANGÜL | E10: KOÇ SİSTEM | F10: 3823 | G10: 9 | I10: 3 | J10: 300M-1-3 | K10: =IF(ISERROR(VLOOKUP(J10,#REF!,2,0)),"",(VLOOKUP(J10,#REF!,2,0))) ->  | L10: =IF(ISERROR(VLOOKUP(J10,#REF!,4,0)),"",(VLOOKUP(J10,#REF!,4,0))) ->  | M10: İNCİ ÖZDEMİR | N10: FORD OTOSAN | O10: 3365 | Q10: 1
A11: 4 | D11: TÜRKAN KORKMAZ | E11: TOFAŞ | F11: 3829 | G11: 8 | I11: 4 | J11: 300M-1-4 | K11: =IF(ISERROR(VLOOKUP(J11,#REF!,2,0)),"",(VLOOKUP(J11,#REF!,2,0))) ->  | L11: =IF(ISERROR(VLOOKUP(J11,#REF!,4,0)),"",(VLOOKUP(J11,#REF!,4,0))) ->  | M11: BURCU GÜNEL | N11: OPET | O11: 4427 | Q11: 3
A12: 5 | D12: AYŞEGÜL BAYRAK | E12: YAPI KREDİ | F12: 3903 | G12: 7 | I12: 5 | J12: 300M-1-5 | K12: =IF(ISERROR(VLOOKUP(J12,#REF!,2,0)),"",(VLOOKUP(J12,#REF!,2,0))) ->  | L12: =IF(ISERROR(VLOOKUP(J12,#REF!,4,0)),"",(VLOOKUP(J12,#REF!,4,0))) ->  | M12: YASEMİN ÇORAKLI | N12: VKV SAĞLIK KURULUŞLARI | O12: DNS | Q12: -
A13: 6 | D13: SENEM DEVECİ | E13: TÜPRAŞ | F13: 3930 | G13: - | I13: 6 | J13: 300M-1-6 | K13: =IF(ISERROR(VLOOKUP(J13,#REF!,2,0)),"",(VLOOKUP(J13,#REF!,2,0))) ->  | L13: =IF(ISERROR(VLOOKUP(J13,#REF!,4,0)),"",(VLOOKUP(J13,#REF!,4,0))) ->  | M13: TÜRKAN KORKMAZ | N13: TOFAŞ | O13: 3829 | Q13: 2
A14: 7 | D14: ÖZLEM KARAKUZU | E14: YAPI KREDİ | F14: 3949 | G14: - | I14: 7 | J14: 300M-1-7 | K14: =IF(ISERROR(VLOOKUP(J14,#REF!,2,0)),"",(VLOOKUP(J14,#REF!,2,0))) ->  | L14: =IF(ISERROR(VLOOKUP(J14,#REF!,4,0)),"",(VLOOKUP(J14,#REF!,4,0))) ->  | M14: =IF(ISERROR(VLOOKUP(J14,#REF!,5,0)),"",(VLOOKUP(J14,#REF!,5,0))) ->  | N14: =IF(ISERROR(VLOOKUP(J14,#REF!,6,0)),"",(VLOOKUP(J14,#REF!,6,0))) -> 
A15: 8 | D15: BURLA KOÇYİĞİT | E15: TÜPRAŞ | F15: 4081 | G15: - | I15: 8 | J15: 300M-1-8 | K15: =IF(ISERROR(VLOOKUP(J15,#REF!,2,0)),"",(VLOOKUP(J15,#REF!,2,0))) ->  | L15: =IF(ISERROR(VLOOKUP(J15,#REF!,4,0)),"",(VLOOKUP(J15,#REF!,4,0))) ->  | M15: =IF(ISERROR(VLOOKUP(J15,#REF!,5,0)),"",(VLOOKUP(J15,#REF!,5,0))) ->  | N15: =IF(ISERROR(VLOOKUP(J15,#REF!,6,0)),"",(VLOOKUP(J15,#REF!,6,0))) -> 
A16: 9 | D16: SİBEL MOL | E16: ARÇELİK | F16: 4138 | G16: 6 | I16: 2. SERİ | N16: RÜZGAR:-1.4
A17: 10 | D17: EZGİ ORAN | E17: ZER | F17: 4249 | G17: 5 | I17: Kulvar | J17: Formül | K17: Göğüs No | L17: Doğum Tarihi | M17: Adı ve Soyadı | N17: Okulu | O17: Elektronik Kronometre | P17: El Kronometre | Q17: Seri Geliş
A18: 11 | D18: ZEYNEP ERPOLAT | E18: ARÇELİK | F18: 4340 | G18: - | I18: 1 | J18: 300M-2-1 | K18: =IF(ISERROR(VLOOKUP(J18,#REF!,2,0)),"",(VLOOKUP(J18,#REF!,2,0))) ->  | L18: =IF(ISERROR(VLOOKUP(J18,#REF!,4,0)),"",(VLOOKUP(J18,#REF!,4,0))) ->  | M18: =IF(ISERROR(VLOOKUP(J18,#REF!,5,0)),"",(VLOOKUP(J18,#REF!,5,0))) ->  | N18: =IF(ISERROR(VLOOKUP(J18,#REF!,6,0)),"",(VLOOKUP(J18,#REF!,6,0))) -> 
A19: 12 | D19: BURCU GÜNEL | E19: OPET | F19: 4427 | G19: 4 | I19: 2 | J19: 300M-2-2 | K19: =IF(ISERROR(VLOOKUP(J19,#REF!,2,0)),"",(VLOOKUP(J19,#REF!,2,0))) ->  | L19: =IF(ISERROR(VLOOKUP(J19,#REF!,4,0)),"",(VLOOKUP(J19,#REF!,4,0))) ->  | M19: AYŞEGÜL BAYRAK | N19: YAPI KREDİ | O19: 3903 | Q19: 2
A20: - | D20: YASEMİN ÇORAKLI | E20: VKV SAĞLIK KURULUŞLARI | F20: DNS | G20: - | I20: 3 | J20: 300M-2-3 | K20: =IF(ISERROR(VLOOKUP(J20,#REF!,2,0)),"",(VLOOKUP(J20,#REF!,2,0))) ->  | L20: =IF(ISERROR(VLOOKUP(J20,#REF!,4,0)),"",(VLOOKUP(J20,#REF!,4,0))) ->  | M20: ZEYNEP ERPOLAT | N20: ARÇELİK | O20: 4340 | Q20: 3
A21: - | D21: SİNEM BAŞ | E21: TÜPRAŞ | F21: DNS | G21: - | I21: 4 | J21: 300M-2-4 | K21: =IF(ISERROR(VLOOKUP(J21,#REF!,2,0)),"",(VLOOKUP(J21,#REF!,2,0))) ->  | L21: =IF(ISERROR(VLOOKUP(J21,#REF!,4,0)),"",(VLOOKUP(J21,#REF!,4,0))) ->  | M21: ECEMSU HANGÜL | N21: KOÇ SİSTEM | O21: 3823 | Q21: 1
A22: - | D22: ÜLVİYE DERYA COŞKUN | E22: ZER | F22: DNS | G22: - | I22: 5 | J22: 300M-2-5 | K22: =IF(ISERROR(VLOOKUP(J22,#REF!,2,0)),"",(VLOOKUP(J22,#REF!,2,0))) ->  | L22: =IF(ISERROR(VLOOKUP(J22,#REF!,4,0)),"",(VLOOKUP(J22,#REF!,4,0))) ->  | M22: SİNEM BAŞ | N22: TÜPRAŞ | O22: DNS | Q22: -
A23: - | D23: GÜLŞEN ŞAHİN | E23: TÜPRAŞ | F23: DNS | G23: - | I23: 6 | J23: 300M-2-6 | K23: =IF(ISERROR(VLOOKUP(J23,#REF!,2,0)),"",(VLOOKUP(J23,#REF!,2,0))) ->  | L23: =IF(ISERROR(VLOOKUP(J23,#REF!,4,0)),"",(VLOOKUP(J23,#REF!,4,0))) ->  | M23: ÜLVİYE DERYA COŞKUN | N23: ZER | O23: DNS | Q23: -
I24: 7 | J24: 300M-2-7 | K24: =IF(ISERROR(VLOOKUP(J24,#REF!,2,0)),"",(VLOOKUP(J24,#REF!,2,0))) ->  | L24: =IF(ISERROR(VLOOKUP(J24,#REF!,4,0)),"",(VLOOKUP(J24,#REF!,4,0))) ->  | M24: =IF(ISERROR(VLOOKUP(J24,#REF!,5,0)),"",(VLOOKUP(J24,#REF!,5,0))) ->  | N24: =IF(ISERROR(VLOOKUP(J24,#REF!,6,0)),"",(VLOOKUP(J24,#REF!,6,0))) -> 
I25: 8 | J25: 300M-2-8 | K25: =IF(ISERROR(VLOOKUP(J25,#REF!,2,0)),"",(VLOOKUP(J25,#REF!,2,0))) ->  | L25: =IF(ISERROR(VLOOKUP(J25,#REF!,4,0)),"",(VLOOKUP(J25,#REF!,4,0))) ->  | M25: =IF(ISERROR(VLOOKUP(J25,#REF!,5,0)),"",(VLOOKUP(J25,#REF!,5,0))) ->  | N25: =IF(ISERROR(VLOOKUP(J25,#REF!,6,0)),"",(VLOOKUP(J25,#REF!,6,0))) -> 
I26: 3. SERİ | N26: RÜZGAR:-1.4
I27: Kulvar | J27: Formül | K27: Göğüs No | L27: Doğum Tarihi | M27: Adı ve Soyadı | N27: Okulu | O27: Elektronik Kronometre | P27: El Kronometre | Q27: Seri Geliş
I28: 1 | J28: 300M-3-1 | K28: =IF(ISERROR(VLOOKUP(J28,#REF!,2,0)),"",(VLOOKUP(J28,#REF!,2,0))) ->  | L28: =IF(ISERROR(VLOOKUP(J28,#REF!,4,0)),"",(VLOOKUP(J28,#REF!,4,0))) ->  | M28: =IF(ISERROR(VLOOKUP(J28,#REF!,5,0)),"",(VLOOKUP(J28,#REF!,5,0))) ->  | N28: =IF(ISERROR(VLOOKUP(J28,#REF!,6,0)),"",(VLOOKUP(J28,#REF!,6,0))) ->  | O28: =IF(IF(OR(P28="NM",P28="DNF",P28="DNS",P28="DQ",P28=""),P28,(ROUNDUP(P28,)+24))=0," ",IF(OR(P28="NM",P28="DNF",P28="DNS",P28="DQ",P28=""),P28,(ROUNDUP(P28,)+24))) -> 
I29: 2 | J29: 300M-3-2 | K29: =IF(ISERROR(VLOOKUP(J29,#REF!,2,0)),"",(VLOOKUP(J29,#REF!,2,0))) ->  | L29: =IF(ISERROR(VLOOKUP(J29,#REF!,4,0)),"",(VLOOKUP(J29,#REF!,4,0))) ->  | M29: ÖZLEM KARAKUZU | N29: YAPI KREDİ | O29: 3949 | Q29: 2
I30: 3 | J30: 300M-3-3 | K30: =IF(ISERROR(VLOOKUP(J30,#REF!,2,0)),"",(VLOOKUP(J30,#REF!,2,0))) ->  | L30: =IF(ISERROR(VLOOKUP(J30,#REF!,4,0)),"",(VLOOKUP(J30,#REF!,4,0))) ->  | M30: SİBEL MOL | N30: ARÇELİK | O30: 4138 | Q30: 3
I31: 4 | J31: 300M-3-4 | K31: =IF(ISERROR(VLOOKUP(J31,#REF!,2,0)),"",(VLOOKUP(J31,#REF!,2,0))) ->  | L31: =IF(ISERROR(VLOOKUP(J31,#REF!,4,0)),"",(VLOOKUP(J31,#REF!,4,0))) ->  | M31: =IF(ISERROR(VLOOKUP(J31,#REF!,5,0)),"",(VLOOKUP(J31,#REF!,5,0))) ->  | N31: =IF(ISERROR(VLOOKUP(J31,#REF!,6,0)),"",(VLOOKUP(J31,#REF!,6,0))) -> 
I32: 5 | J32: 300M-3-5 | K32: =IF(ISERROR(VLOOKUP(J32,#REF!,2,0)),"",(VLOOKUP(J32,#REF!,2,0))) ->  | L32: =IF(ISERROR(VLOOKUP(J32,#REF!,4,0)),"",(VLOOKUP(J32,#REF!,4,0))) ->  | M32: SELİN GÜVEN | N32: TÜPRAŞ | O32: 3495 | Q32: 1
I33: 6 | J33: 300M-3-6 | K33: =IF(ISERROR(VLOOKUP(J33,#REF!,2,0)),"",(VLOOKUP(J33,#REF!,2,0))) ->  | L33: =IF(ISERROR(VLOOKUP(J33,#REF!,4,0)),"",(VLOOKUP(J33,#REF!,4,0))) ->  | M33: EZGİ ORAN | N33: ZER | O33: 4249 | Q33: 4
I34: 7 | J34: 300M-3-7 | K34: =IF(ISERROR(VLOOKUP(J34,#REF!,2,0)),"",(VLOOKUP(J34,#REF!,2,0))) ->  | L34: =IF(ISERROR(VLOOKUP(J34,#REF!,4,0)),"",(VLOOKUP(J34,#REF!,4,0))) ->  | M34: =IF(ISERROR(VLOOKUP(J34,#REF!,5,0)),"",(VLOOKUP(J34,#REF!,5,0))) ->  | N34: =IF(ISERROR(VLOOKUP(J34,#REF!,6,0)),"",(VLOOKUP(J34,#REF!,6,0))) -> 
I35: 8 | J35: 300M-3-8 | K35: =IF(ISERROR(VLOOKUP(J35,#REF!,2,0)),"",(VLOOKUP(J35,#REF!,2,0))) ->  | L35: =IF(ISERROR(VLOOKUP(J35,#REF!,4,0)),"",(VLOOKUP(J35,#REF!,4,0))) ->  | M35: =IF(ISERROR(VLOOKUP(J35,#REF!,5,0)),"",(VLOOKUP(J35,#REF!,5,0))) ->  | N35: =IF(ISERROR(VLOOKUP(J35,#REF!,6,0)),"",(VLOOKUP(J35,#REF!,6,0))) -> 
G36: =IF(ISTEXT(F36),0,IFERROR(VLOOKUP(SMALL(PUAN!$E$6:$F$105,COUNTIF(PUAN!$E$6:$F$105,"<"&F36)+1),PUAN!$E$6:$F$105,2,2)," ")) ->  | I36: 4. SERİ | N36: RÜZGAR:-1.8
G37: =IF(ISTEXT(F37),0,IFERROR(VLOOKUP(SMALL(PUAN!$E$6:$F$105,COUNTIF(PUAN!$E$6:$F$105,"<"&F37)+1),PUAN!$E$6:$F$105,2,2)," ")) ->  | I37: Kulvar | J37: Formül | K37: Göğüs No | L37: Doğum Tarihi | M37: Adı ve Soyadı | N37: Okulu | O37: Elektronik Kronometre | P37: Derece | Q37: Seri Geliş
G38: =IF(ISTEXT(F38),0,IFERROR(VLOOKUP(SMALL(PUAN!$E$6:$F$105,COUNTIF(PUAN!$E$6:$F$105,"<"&F38)+1),PUAN!$E$6:$F$105,2,2)," ")) ->  | I38: 1 | J38: 300M-4-1 | K38: =IF(ISERROR(VLOOKUP(J38,#REF!,2,0)),"",(VLOOKUP(J38,#REF!,2,0))) ->  | L38: =IF(ISERROR(VLOOKUP(J38,#REF!,4,0)),"",(VLOOKUP(J38,#REF!,4,0))) ->  | M38: =IF(ISERROR(VLOOKUP(J38,#REF!,5,0)),"",(VLOOKUP(J38,#REF!,5,0))) ->  | N38: =IF(ISERROR(VLOOKUP(J38,#REF!,6,0)),"",(VLOOKUP(J38,#REF!,6,0))) -> 
G39: =IF(ISTEXT(F39),0,IFERROR(VLOOKUP(SMALL(PUAN!$E$6:$F$105,COUNTIF(PUAN!$E$6:$F$105,"<"&F39)+1),PUAN!$E$6:$F$105,2,2)," ")) ->  | I39: 2 | J39: 300M-4-2 | K39: =IF(ISERROR(VLOOKUP(J39,#REF!,2,0)),"",(VLOOKUP(J39,#REF!,2,0))) ->  | L39: =IF(ISERROR(VLOOKUP(J39,#REF!,4,0)),"",(VLOOKUP(J39,#REF!,4,0))) ->  | M39: SENEM DEVECİ | N39: TÜPRAŞ | O39: 3930 | Q39: 1
G40: =IF(ISTEXT(F40),0,IFERROR(VLOOKUP(SMALL(PUAN!$E$6:$F$105,COUNTIF(PUAN!$E$6:$F$105,"<"&F40)+1),PUAN!$E$6:$F$105,2,2)," ")) ->  | I40: 3 | J40: 300M-4-3 | K40: =IF(ISERROR(VLOOKUP(J40,#REF!,2,0)),"",(VLOOKUP(J40,#REF!,2,0))) ->  | L40: =IF(ISERROR(VLOOKUP(J40,#REF!,4,0)),"",(VLOOKUP(J40,#REF!,4,0))) ->  | M40: BURLA KOÇYİĞİT | N40: TÜPRAŞ | O40: 4081 | Q40: 2
G41: =IF(ISTEXT(F41),0,IFERROR(VLOOKUP(SMALL(PUAN!$E$6:$F$105,COUNTIF(PUAN!$E$6:$F$105,"<"&F41)+1),PUAN!$E$6:$F$105,2,2)," ")) ->  | I41: 4 | J41: 300M-4-4 | K41: =IF(ISERROR(VLOOKUP(J41,#REF!,2,0)),"",(VLOOKUP(J41,#REF!,2,0))) ->  | L41: =IF(ISERROR(VLOOKUP(J41,#REF!,4,0)),"",(VLOOKUP(J41,#REF!,4,0))) ->  | M41: GÜLŞEN ŞAHİN | N41: TÜPRAŞ | O41: DNS | Q41: -
G42: =IF(ISTEXT(F42),0,IFERROR(VLOOKUP(SMALL(PUAN!$E$6:$F$105,COUNTIF(PUAN!$E$6:$F$105,"<"&F42)+1),PUAN!$E$6:$F$105,2,2)," ")) ->  | I42: 5 | J42: 300M-4-5 | K42: =IF(ISERROR(VLOOKUP(J42,#REF!,2,0)),"",(VLOOKUP(J42,#REF!,2,0))) ->  | L42: =IF(ISERROR(VLOOKUP(J42,#REF!,4,0)),"",(VLOOKUP(J42,#REF!,4,0))) ->  | M42: =IF(ISERROR(VLOOKUP(J42,#REF!,5,0)),"",(VLOOKUP(J42,#REF!,5,0))) ->  | N42: =IF(ISERROR(VLOOKUP(J42,#REF!,6,0)),"",(VLOOKUP(J42,#REF!,6,0))) -> 
G43: =IF(ISTEXT(F43),0,IFERROR(VLOOKUP(SMALL(PUAN!$E$6:$F$105,COUNTIF(PUAN!$E$6:$F$105,"<"&F43)+1),PUAN!$E$6:$F$105,2,2)," ")) ->  | I43: 6 | J43: 300M-4-6 | K43: =IF(ISERROR(VLOOKUP(J43,#REF!,2,0)),"",(VLOOKUP(J43,#REF!,2,0))) ->  | L43: =IF(ISERROR(VLOOKUP(J43,#REF!,4,0)),"",(VLOOKUP(J43,#REF!,4,0))) ->  | M43: =IF(ISERROR(VLOOKUP(J43,#REF!,5,0)),"",(VLOOKUP(J43,#REF!,5,0))) ->  | N43: =IF(ISERROR(VLOOKUP(J43,#REF!,6,0)),"",(VLOOKUP(J43,#REF!,6,0))) -> 
G44: =IF(ISTEXT(F44),0,IFERROR(VLOOKUP(SMALL(PUAN!$E$6:$F$105,COUNTIF(PUAN!$E$6:$F$105,"<"&F44)+1),PUAN!$E$6:$F$105,2,2)," ")) ->  | I44: 7 | J44: 300M-4-7 | K44: =IF(ISERROR(VLOOKUP(J44,#REF!,2,0)),"",(VLOOKUP(J44,#REF!,2,0))) ->  | L44: =IF(ISERROR(VLOOKUP(J44,#REF!,4,0)),"",(VLOOKUP(J44,#REF!,4,0))) ->  | M44: =IF(ISERROR(VLOOKUP(J44,#REF!,5,0)),"",(VLOOKUP(J44,#REF!,5,0))) ->  | N44: =IF(ISERROR(VLOOKUP(J44,#REF!,6,0)),"",(VLOOKUP(J44,#REF!,6,0))) -> 
G45: =IF(ISTEXT(F45),0,IFERROR(VLOOKUP(SMALL(PUAN!$E$6:$F$105,COUNTIF(PUAN!$E$6:$F$105,"<"&F45)+1),PUAN!$E$6:$F$105,2,2)," ")) ->  | I45: 8 | J45: 300M-4-8 | K45: =IF(ISERROR(VLOOKUP(J45,#REF!,2,0)),"",(VLOOKUP(J45,#REF!,2,0))) ->  | L45: =IF(ISERROR(VLOOKUP(J45,#REF!,4,0)),"",(VLOOKUP(J45,#REF!,4,0))) ->  | M45: =IF(ISERROR(VLOOKUP(J45,#REF!,5,0)),"",(VLOOKUP(J45,#REF!,5,0))) ->  | N45: =IF(ISERROR(VLOOKUP(J45,#REF!,6,0)),"",(VLOOKUP(J45,#REF!,6,0))) -> 
A47: Müsabakalar Direktörü | E47: Baş Hakem | F47: Lider | H47: Sekreter | M47: Hakem | N47: Hakem | P47: Hakem

Sheet 400m.
A2: ='YARIŞMA BİLGİLERİ'!F19 -> KOÇ TOPLULUĞU SPOR ŞENLİĞİ PUANLI ATLETİZM YARIŞLARI
A3: Yarışma : | D3: 400 Metre | H3: :
A4: Kategori : | D4: ='YARIŞMA BİLGİLERİ'!F21 -> Kadınlar | M4: Tarih-Saat : | N4: ='YARIŞMA PROGRAMI'!B11 -> 2017-04-15T12:15:00
N5: =NOW() -> 42842.61208
A6: Sıra No | B6: Göğüs No | C6: Doğum Tarihi Gün/Ay/Yıl | D6: Adı ve Soyadı | E6: TAKIMI | F6: Derece | G6: Puan | I6: 1. SERİ | M6: Rüzgar:
I7: Kulvar | J7: Formül | K7: Göğüs No | L7: Doğum Tarihi | M7: Adı ve Soyadı | N7: TAKIMI | O7: Elektronik Kronometre | P7: El Kronometre | Q7: Seri Geliş
A8: 1 | D8: JALE YENGİNER AKTAŞ | E8: FORD OTOSAN | F8: 11460 | G8: 11 | I8: 1 | J8: 100M.ENG-1-1 | K8: =IF(ISERROR(VLOOKUP(J8,#REF!,2,0)),"",(VLOOKUP(J8,#REF!,2,0))) ->  | L8: =IF(ISERROR(VLOOKUP(J8,#REF!,4,0)),"",(VLOOKUP(J8,#REF!,4,0))) ->  | M8: =IF(ISERROR(VLOOKUP(J8,#REF!,5,0)),"",(VLOOKUP(J8,#REF!,5,0))) ->  | N8: =IF(ISERROR(VLOOKUP(J8,#REF!,6,0)),"",(VLOOKUP(J8,#REF!,6,0))) -> 
A9: 2 | D9: ESİN YILMAZ | E9: YAPI KREDİ | F9: 11719 | G9: 10 | I9: 2 | J9: 100M.ENG-1-2 | K9: =IF(ISERROR(VLOOKUP(J9,#REF!,2,0)),"",(VLOOKUP(J9,#REF!,2,0))) ->  | L9: =IF(ISERROR(VLOOKUP(J9,#REF!,4,0)),"",(VLOOKUP(J9,#REF!,4,0))) ->  | M9: BİNAR KALKANLAR | N9: TÜPRAŞ | O9: 12139 | Q9: 2
A10: 3 | D10: BİNAR KALKANLAR | E10: TÜPRAŞ | F10: 12139 | G10: 9 | I10: 3 | J10: 100M.ENG-1-3 | K10: =IF(ISERROR(VLOOKUP(J10,#REF!,2,0)),"",(VLOOKUP(J10,#REF!,2,0))) ->  | L10: =IF(ISERROR(VLOOKUP(J10,#REF!,4,0)),"",(VLOOKUP(J10,#REF!,4,0))) ->  | M10: JALE YENGİNER AKTAŞ | N10: FORD OTOSAN | O10: 11460 | Q10: 1
A11: 4 | D11: AYŞENUR KARLI | E11: TÜPRAŞ | F11: 12726 | G11: - | I11: 4 | J11: 100M.ENG-1-4 | K11: =IF(ISERROR(VLOOKUP(J11,#REF!,2,0)),"",(VLOOKUP(J11,#REF!,2,0))) ->  | L11: =IF(ISERROR(VLOOKUP(J11,#REF!,4,0)),"",(VLOOKUP(J11,#REF!,4,0))) ->  | M11: BEGÜM CANSU DEMİR | N11: OPET | O11: 14991 | Q11: 3
A12: 5 | D12: BETÜL ÖZYAY | E12: ARÇELİK | F12: 12896 | G12: 8 | I12: 5 | J12: 100M.ENG-1-5 | K12: =IF(ISERROR(VLOOKUP(J12,#REF!,2,0)),"",(VLOOKUP(J12,#REF!,2,0))) ->  | L12: =IF(ISERROR(VLOOKUP(J12,#REF!,4,0)),"",(VLOOKUP(J12,#REF!,4,0))) ->  | M12: ELİF KAYMAK | N12: VKV SAĞLIK KURULUŞLARI | O12: DNS | Q12: -
A13: 6 | D13: SEDEF AĞIR | E13: ARÇELİK | F13: 13107 | G13: - | I13: 6 | J13: 100M.ENG-1-6 | K13: =IF(ISERROR(VLOOKUP(J13,#REF!,2,0)),"",(VLOOKUP(J13,#REF!,2,0))) ->  | L13: =IF(ISERROR(VLOOKUP(J13,#REF!,4,0)),"",(VLOOKUP(J13,#REF!,4,0))) ->  | M13: CEMİLE ALİBAŞOĞLU | N13: TOFAŞ | O13: DNF | Q13: -
A14: 7 | D14: GİZAY ULUTAŞ | E14: ZER | F14: 13426 | G14: 7 | I14: 7 | J14: 100M.ENG-1-7 | K14: =IF(ISERROR(VLOOKUP(J14,#REF!,2,0)),"",(VLOOKUP(J14,#REF!,2,0))) ->  | L14: =IF(ISERROR(VLOOKUP(J14,#REF!,4,0)),"",(VLOOKUP(J14,#REF!,4,0))) ->  | M14: =IF(ISERROR(VLOOKUP(J14,#REF!,5,0)),"",(VLOOKUP(J14,#REF!,5,0))) ->  | N14: =IF(ISERROR(VLOOKUP(J14,#REF!,6,0)),"",(VLOOKUP(J14,#REF!,6,0))) -> 
A15: 8 | D15: BEGÜM CANSU DEMİR | E15: OPET | F15: 14991 | G15: 6 | I15: 8 | J15: 100M.ENG-1-8 | K15: =IF(ISERROR(VLOOKUP(J15,#REF!,2,0)),"",(VLOOKUP(J15,#REF!,2,0))) ->  | L15: =IF(ISERROR(VLOOKUP(J15,#REF!,4,0)),"",(VLOOKUP(J15,#REF!,4,0))) ->  | M15: =IF(ISERROR(VLOOKUP(J15,#REF!,5,0)),"",(VLOOKUP(J15,#REF!,5,0))) ->  | N15: =IF(ISERROR(VLOOKUP(J15,#REF!,6,0)),"",(VLOOKUP(J15,#REF!,6,0))) -> 
A16: - | D16: CEMİLE ALİBAŞOĞLU | E16: TOFAŞ | F16: DNF | G16: - | I16: 2. SERİ | M16: Rüzgar:
A17: - | D17: ELİF KAYMAK | E17: VKV SAĞLIK KURULUŞLARI | F17: DNS | G17: - | I17: Kulvar | J17: Formül | K17: Göğüs No | L17: Doğum Tarihi | M17: Adı ve Soyadı | N17: TAKIMI | O17: Elektronik Kronometre | P17: El Kronometre | Q17: Seri Geliş
A18: - | D18: ÇİĞDEM KABİL ŞİMŞEK | E18: ZER | F18: DNS | G18: - | I18: 1 | J18: 100M.ENG-2-1 | K18: =IF(ISERROR(VLOOKUP(J18,#REF!,2,0)),"",(VLOOKUP(J18,#REF!,2,0))) ->  | L18: =IF(ISERROR(VLOOKUP(J18,#REF!,4,0)),"",(VLOOKUP(J18,#REF!,4,0))) ->  | M18: =IF(ISERROR(VLOOKUP(J18,#REF!,5,0)),"",(VLOOKUP(J18,#REF!,5,0))) ->  | N18: =IF(ISERROR(VLOOKUP(J18,#REF!,6,0)),"",(VLOOKUP(J18,#REF!,6,0))) -> 
A19: - | D19: EDA ERDİK | E19: OPET | F19: DNS | G19: - | I19: 2 | J19: 100M.ENG-2-2 | K19: =IF(ISERROR(VLOOKUP(J19,#REF!,2,0)),"",(VLOOKUP(J19,#REF!,2,0))) ->  | L19: =IF(ISERROR(VLOOKUP(J19,#REF!,4,0)),"",(VLOOKUP(J19,#REF!,4,0))) ->  | M19: ESİN YILMAZ | N19: YAPI KREDİ | O19: 11719 | Q19: 1
I20: 3 | J20: 100M.ENG-2-3 | K20: =IF(ISERROR(VLOOKUP(J20,#REF!,2,0)),"",(VLOOKUP(J20,#REF!,2,0))) ->  | L20: =IF(ISERROR(VLOOKUP(J20,#REF!,4,0)),"",(VLOOKUP(J20,#REF!,4,0))) ->  | M20: BETÜL ÖZYAY | N20: ARÇELİK | O20: 12896 | Q20: 2
I21: 4 | J21: 100M.ENG-2-4 | K21: =IF(ISERROR(VLOOKUP(J21,#REF!,2,0)),"",(VLOOKUP(J21,#REF!,2,0))) ->  | L21: =IF(ISERROR(VLOOKUP(J21,#REF!,4,0)),"",(VLOOKUP(J21,#REF!,4,0))) -> 
I22: 5 | J22: 100M.ENG-2-5 | K22: =IF(ISERROR(VLOOKUP(J22,#REF!,2,0)),"",(VLOOKUP(J22,#REF!,2,0))) ->  | L22: =IF(ISERROR(VLOOKUP(J22,#REF!,4,0)),"",(VLOOKUP(J22,#REF!,4,0))) -> 
I23: 6 | J23: 100M.ENG-2-6 | K23: =IF(ISERROR(VLOOKUP(J23,#REF!,2,0)),"",(VLOOKUP(J23,#REF!,2,0))) ->  | L23: =IF(ISERROR(VLOOKUP(J23,#REF!,4,0)),"",(VLOOKUP(J23,#REF!,4,0))) ->  | M23: ÇİĞDEM KABİL ŞİMŞEK | N23: ZER | O23: DNS | Q23: -
I24: 7 | J24: 100M.ENG-2-7 | K24: =IF(ISERROR(VLOOKUP(J24,#REF!,2,0)),"",(VLOOKUP(J24,#REF!,2,0))) ->  | L24: =IF(ISERROR(VLOOKUP(J24,#REF!,4,0)),"",(VLOOKUP(J24,#REF!,4,0))) ->  | M24: =IF(ISERROR(VLOOKUP(J24,#REF!,5,0)),"",(VLOOKUP(J24,#REF!,5,0))) ->  | N24: =IF(ISERROR(VLOOKUP(J24,#REF!,6,0)),"",(VLOOKUP(J24,#REF!,6,0))) -> 
I25: 8 | J25: 100M.ENG-2-8 | K25: =IF(ISERROR(VLOOKUP(J25,#REF!,2,0)),"",(VLOOKUP(J25,#REF!,2,0))) ->  | L25: =IF(ISERROR(VLOOKUP(J25,#REF!,4,0)),"",(VLOOKUP(J25,#REF!,4,0))) ->  | M25: =IF(ISERROR(VLOOKUP(J25,#REF!,5,0)),"",(VLOOKUP(J25,#REF!,5,0))) ->  | N25: =IF(ISERROR(VLOOKUP(J25,#REF!,6,0)),"",(VLOOKUP(J25,#REF!,6,0))) -> 
I26: 3. SERİ | M26: Rüzgar:
I27: Kulvar | J27: Formül | K27: Göğüs No | L27: Doğum Tarihi | M27: Adı ve Soyadı | N27: Okulu | O27: Elektronik Kronometre | P27: El Kronometre | Q27: Seri Geliş
G28: =IF(ISTEXT(F28)," ",IFERROR(VLOOKUP(SMALL(PUAN!$I$4:$J$111,COUNTIF(PUAN!$I$4:$J$111,"<"&F28)+1),PUAN!$I$4:$J$111,2,2)," ")) ->  | I28: 1 | J28: 100M.ENG-3-1 | K28: =IF(ISERROR(VLOOKUP(J28,#REF!,2,0)),"",(VLOOKUP(J28,#REF!,2,0))) ->  | L28: =IF(ISERROR(VLOOKUP(J28,#REF!,4,0)),"",(VLOOKUP(J28,#REF!,4,0))) ->  | M28: =IF(ISERROR(VLOOKUP(J28,#REF!,5,0)),"",(VLOOKUP(J28,#REF!,5,0))) ->  | N28: =IF(ISERROR(VLOOKUP(J28,#REF!,6,0)),"",(VLOOKUP(J28,#REF!,6,0))) ->  | O28: =IF(IF(OR(P28="NM",P28="DNF",P28="DNS",P28="DQ",P28=""),P28,(ROUNDUP(P28,)+24))=0," ",IF(OR(P28="NM",P28="DNF",P28="DNS",P28="DQ",P28=""),P28,(ROUNDUP(P28,)+24))) -> 
G29: =IF(ISTEXT(F29)," ",IFERROR(VLOOKUP(SMALL(PUAN!$I$4:$J$111,COUNTIF(PUAN!$I$4:$J$111,"<"&F29)+1),PUAN!$I$4:$J$111,2,2)," ")) ->  | I29: 2 | J29: 100M.ENG-3-2 | K29: =IF(ISERROR(VLOOKUP(J29,#REF!,2,0)),"",(VLOOKUP(J29,#REF!,2,0))) ->  | L29: =IF(ISERROR(VLOOKUP(J29,#REF!,4,0)),"",(VLOOKUP(J29,#REF!,4,0))) ->  | M29: =IF(ISERROR(VLOOKUP(J29,#REF!,5,0)),"",(VLOOKUP(J29,#REF!,5,0))) ->  | N29: =IF(ISERROR(VLOOKUP(J29,#REF!,6,0)),"",(VLOOKUP(J29,#REF!,6,0))) -> 
G30: =IF(ISTEXT(F30)," ",IFERROR(VLOOKUP(SMALL(PUAN!$I$4:$J$111,COUNTIF(PUAN!$I$4:$J$111,"<"&F30)+1),PUAN!$I$4:$J$111,2,2)," ")) ->  | I30: 3 | J30: 100M.ENG-3-3 | K30: =IF(ISERROR(VLOOKUP(J30,#REF!,2,0)),"",(VLOOKUP(J30,#REF!,2,0))) ->  | L30: =IF(ISERROR(VLOOKUP(J30,#REF!,4,0)),"",(VLOOKUP(J30,#REF!,4,0))) ->  | M30: SEDEF AĞIR | N30: ARÇELİK | O30: 13107 | Q30: 2
G31: =IF(ISTEXT(F31)," ",IFERROR(VLOOKUP(SMALL(PUAN!$I$4:$J$111,COUNTIF(PUAN!$I$4:$J$111,"<"&F31)+1),PUAN!$I$4:$J$111,2,2)," ")) ->  | I31: 4 | J31: 100M.ENG-3-4 | K31: =IF(ISERROR(VLOOKUP(J31,#REF!,2,0)),"",(VLOOKUP(J31,#REF!,2,0))) ->  | L31: =IF(ISERROR(VLOOKUP(J31,#REF!,4,0)),"",(VLOOKUP(J31,#REF!,4,0))) ->  | M31: EDA ERDİK | N31: OPET | O31: DNS | Q31: -
G32: =IF(ISTEXT(F32)," ",IFERROR(VLOOKUP(SMALL(PUAN!$I$4:$J$111,COUNTIF(PUAN!$I$4:$J$111,"<"&F32)+1),PUAN!$I$4:$J$111,2,2)," ")) ->  | I32: 5 | J32: 100M.ENG-3-5 | K32: =IF(ISERROR(VLOOKUP(J32,#REF!,2,0)),"",(VLOOKUP(J32,#REF!,2,0))) ->  | L32: =IF(ISERROR(VLOOKUP(J32,#REF!,4,0)),"",(VLOOKUP(J32,#REF!,4,0))) ->  | M32: AYŞENUR KARLI | N32: TÜPRAŞ | O32: 12726 | Q32: 1
G33: =IF(ISTEXT(F33)," ",IFERROR(VLOOKUP(SMALL(PUAN!$I$4:$J$111,COUNTIF(PUAN!$I$4:$J$111,"<"&F33)+1),PUAN!$I$4:$J$111,2,2)," ")) ->  | I33: 6 | J33: 100M.ENG-3-6 | K33: =IF(ISERROR(VLOOKUP(J33,#REF!,2,0)),"",(VLOOKUP(J33,#REF!,2,0))) ->  | L33: =IF(ISERROR(VLOOKUP(J33,#REF!,4,0)),"",(VLOOKUP(J33,#REF!,4,0))) ->  | M33: GİZAY ULUTAŞ | N33: ZER | O33: 13426 | Q33: 3
G34: =IF(ISTEXT(F34)," ",IFERROR(VLOOKUP(SMALL(PUAN!$I$4:$J$111,COUNTIF(PUAN!$I$4:$J$111,"<"&F34)+1),PUAN!$I$4:$J$111,2,2)," ")) ->  | I34: 7 | J34: 100M.ENG-3-7 | K34: =IF(ISERROR(VLOOKUP(J34,#REF!,2,0)),"",(VLOOKUP(J34,#REF!,2,0))) ->  | L34: =IF(ISERROR(VLOOKUP(J34,#REF!,4,0)),"",(VLOOKUP(J34,#REF!,4,0))) ->  | M34: =IF(ISERROR(VLOOKUP(J34,#REF!,5,0)),"",(VLOOKUP(J34,#REF!,5,0))) ->  | N34: =IF(ISERROR(VLOOKUP(J34,#REF!,6,0)),"",(VLOOKUP(J34,#REF!,6,0))) -> 
G35: =IF(ISTEXT(F35)," ",IFERROR(VLOOKUP(SMALL(PUAN!$I$4:$J$111,COUNTIF(PUAN!$I$4:$J$111,"<"&F35)+1),PUAN!$I$4:$J$111,2,2)," ")) ->  | I35: 8 | J35: 100M.ENG-3-8 | K35: =IF(ISERROR(VLOOKUP(J35,#REF!,2,0)),"",(VLOOKUP(J35,#REF!,2,0))) ->  | L35: =IF(ISERROR(VLOOKUP(J35,#REF!,4,0)),"",(VLOOKUP(J35,#REF!,4,0))) ->  | M35: =IF(ISERROR(VLOOKUP(J35,#REF!,5,0)),"",(VLOOKUP(J35,#REF!,5,0))) ->  | N35: =IF(ISERROR(VLOOKUP(J35,#REF!,6,0)),"",(VLOOKUP(J35,#REF!,6,0))) -> 
A37: Müsabakalar Direktörü | E37: Baş Hakem | F37: Lider | H37: Sekreter | M37: Hakem | N37: Hakem | P37: Hakem

Sheet 100m. Final
A2: ='YARIŞMA BİLGİLERİ'!F19 -> KOÇ TOPLULUĞU SPOR ŞENLİĞİ PUANLI ATLETİZM YARIŞLARI
A3: Yarışma : | D3: ='YARIŞMA PROGRAMI'!C7 -> 100 Metre | H3: :
A4: Kategori : | D4: ='YARIŞMA BİLGİLERİ'!F21 -> Kadınlar | M4: Tarih-Saat : | N4: ='YARIŞMA PROGRAMI'!B15 -> 15 Nisan 2017 - 14:14
N5: =NOW() -> 42842.61208
A6: Sıra No | B6: Göğüs No | C6: Doğum Tarihi Gün/Ay/Yıl | D6: Adı ve Soyadı | E6: TAKIMI | F6: Derece | G6: Puan | I6: 1. SERİ | M6: Rüzgar: | N6: +0.8
I7: Kulvar | J7: Formül | K7: Göğüs No | L7: Doğum Tarihi | M7: Adı ve Soyadı | N7: TAKIMI | O7: Elektronik Kronometre | P7: El Kronometre | Q7: Seri Geliş
A8: 1 | D8: CANAN FİL | E8: FORD OTOSAN | F8: 1430 | I8: 1 | J8: 100M-1-1 | K8: =IF(ISERROR(VLOOKUP(J8,#REF!,2,0)),"",(VLOOKUP(J8,#REF!,2,0))) ->  | L8: =IF(ISERROR(VLOOKUP(J8,#REF!,4,0)),"",(VLOOKUP(J8,#REF!,4,0))) ->  | M8: =IF(ISERROR(VLOOKUP(J8,#REF!,5,0)),"",(VLOOKUP(J8,#REF!,5,0))) ->  | N8: =IF(ISERROR(VLOOKUP(J8,#REF!,6,0)),"",(VLOOKUP(J8,#REF!,6,0))) -> 
A9: 2 | D9: ECEM ERERMİŞ | E9: TÜPRAŞ | F9: 1627 | I9: 2 | J9: 100M-1-2 | L9: =IF(ISERROR(VLOOKUP(J9,#REF!,4,0)),"",(VLOOKUP(J9,#REF!,4,0))) -> 
A10: 3 | D10: SİNEM BAŞ | E10: TÜPRAŞ | F10: 1639 | I10: 3 | J10: 100M-1-3 | K10: 2 | L10: =IF(ISERROR(VLOOKUP(J10,#REF!,4,0)),"",(VLOOKUP(J10,#REF!,4,0))) ->  | M10: CANAN FİL | N10: FORD OTOSAN | O10: 1430 | Q10: 1
A11: 4 | D11: YELİZ ÜNEL | E11: FORD OTOSAN | F11: 1675 | I11: 4 | J11: 100M-1-4 | K11: 3 | L11: =IF(ISERROR(VLOOKUP(J11,#REF!,4,0)),"",(VLOOKUP(J11,#REF!,4,0))) ->  | M11: KADER GÜNGÖR | N11: OPET | O11: DNS | Q11: -
A12: 5 | D12: AYLİN ÖZDEMİR | E12: YAPI KREDİ | F12: 1711 | I12: 5 | J12: 100M-1-5 | K12: 4 | L12: =IF(ISERROR(VLOOKUP(J12,#REF!,4,0)),"",(VLOOKUP(J12,#REF!,4,0))) ->  | M12: YASEMİN ÇORAKLI | N12: VKV SAĞLIK KURULUŞLARI | O12: DNS | Q12: -
A13: 6 | D13: ESİN KORKUT | E13: ARÇELİK | F13: 1736 | I13: 6 | J13: 100M-1-6 | K13: 5 | L13: =IF(ISERROR(VLOOKUP(J13,#REF!,4,0)),"",(VLOOKUP(J13,#REF!,4,0))) ->  | M13: RUKİYE DİNDAR | N13: TOFAŞ | O13: 1932 | Q13: 2
A14: 7 | D14: BURCU UMAY | E14: YAPI KREDİ | F14: 1772 | I14: 7 | J14: 100M-1-7 | K14: =IF(ISERROR(VLOOKUP(J14,#REF!,2,0)),"",(VLOOKUP(J14,#REF!,2,0))) ->  | L14: =IF(ISERROR(VLOOKUP(J14,#REF!,4,0)),"",(VLOOKUP(J14,#REF!,4,0))) ->  | M14: =IF(ISERROR(VLOOKUP(J14,#REF!,5,0)),"",(VLOOKUP(J14,#REF!,5,0))) ->  | N14: =IF(ISERROR(VLOOKUP(J14,#REF!,6,0)),"",(VLOOKUP(J14,#REF!,6,0))) -> 
A15: 8 | D15: FULYA SOYER | E15: TÜPRAŞ | F15: 1844 | I15: 8 | J15: 100M-1-8 | K15: =IF(ISERROR(VLOOKUP(J15,#REF!,2,0)),"",(VLOOKUP(J15,#REF!,2,0))) ->  | L15: =IF(ISERROR(VLOOKUP(J15,#REF!,4,0)),"",(VLOOKUP(J15,#REF!,4,0))) ->  | M15: =IF(ISERROR(VLOOKUP(J15,#REF!,5,0)),"",(VLOOKUP(J15,#REF!,5,0))) ->  | N15: =IF(ISERROR(VLOOKUP(J15,#REF!,6,0)),"",(VLOOKUP(J15,#REF!,6,0))) -> 
A16: 9 | D16: MERVE AKIN | E16: YAPI KREDİ | F16: 1878 | I16: 2. SERİ | M16: Rüzgar: | N16: +0.9
A17: 10 | D17: ÖZLEM KURT | E17: ZER | F17: 1895 | I17: Kulvar | J17: Formül | K17: Göğüs No | L17: Doğum Tarihi | M17: Adı ve Soyadı | N17: TAKIMI | O17: Elektronik Kronometre | P17: El Kronometre | Q17: Seri Geliş
A18: 11 | D18: BURCU FERDA YILMAZ | E18: YAPI KREDİ | F18: 1931 | I18: 1 | J18: 100M-2-1 | K18: =IF(ISERROR(VLOOKUP(J18,#REF!,2,0)),"",(VLOOKUP(J18,#REF!,2,0))) ->  | L18: =IF(ISERROR(VLOOKUP(J18,#REF!,4,0)),"",(VLOOKUP(J18,#REF!,4,0))) ->  | M18: =IF(ISERROR(VLOOKUP(J18,#REF!,5,0)),"",(VLOOKUP(J18,#REF!,5,0))) ->  | N18: =IF(ISERROR(VLOOKUP(J18,#REF!,6,0)),"",(VLOOKUP(J18,#REF!,6,0))) -> 
A19: 12 | D19: RUKİYE DİNDAR | E19: TOFAŞ | F19: 1932 | I19: 2 | J19: 100M-2-2 | K19: 6 | L19: =IF(ISERROR(VLOOKUP(J19,#REF!,4,0)),"",(VLOOKUP(J19,#REF!,4,0))) ->  | M19: BURCU UMAY | N19: YAPI KREDİ | O19: 1772 | Q19: 3
A20: - | D20: KADER GÜNGÖR | E20: OPET | F20: DNS | I20: 3 | J20: 100M-2-3 | K20: 7 | L20: =IF(ISERROR(VLOOKUP(J20,#REF!,4,0)),"",(VLOOKUP(J20,#REF!,4,0))) ->  | M20: ESİN KORKUT | N20: ARÇELİK | O20: 1736 | Q20: 2
A21: - | D21: YASEMİN ÇORAKLI | E21: VKV SAĞLIK KURULUŞLARI | F21: DNS | I21: 4 | J21: 100M-2-4 | L21: =IF(ISERROR(VLOOKUP(J21,#REF!,4,0)),"",(VLOOKUP(J21,#REF!,4,0))) -> 
A22: - | D22: YETER GÜNGÖR | E22: OPET | F22: DNS | I22: 5 | J22: 100M-2-5 | K22: 9 | L22: =IF(ISERROR(VLOOKUP(J22,#REF!,4,0)),"",(VLOOKUP(J22,#REF!,4,0))) ->  | M22: SİNEM BAŞ | N22: TÜPRAŞ | O22: 1639 | Q22: 1
A23: - | D23: DEMET DURMUŞ | E23: YAPI KREDİ | F23: DNS | I23: 6 | J23: 100M-2-6 | K23: 10 | L23: =IF(ISERROR(VLOOKUP(J23,#REF!,4,0)),"",(VLOOKUP(J23,#REF!,4,0))) ->  | M23: ÖZLEM KURT | N23: ZER | O23: 1895 | Q23: 4
A24: - | D24: DUYGU CESUR BOLAT | E24: OPET | F24: DNS | I24: 7 | J24: 100M-2-7 | K24: =IF(ISERROR(VLOOKUP(J24,#REF!,2,0)),"",(VLOOKUP(J24,#REF!,2,0))) ->  | L24: =IF(ISERROR(VLOOKUP(J24,#REF!,4,0)),"",(VLOOKUP(J24,#REF!,4,0))) ->  | M24: =IF(ISERROR(VLOOKUP(J24,#REF!,5,0)),"",(VLOOKUP(J24,#REF!,5,0))) ->  | N24: =IF(ISERROR(VLOOKUP(J24,#REF!,6,0)),"",(VLOOKUP(J24,#REF!,6,0))) -> 
I25: 8 | J25: 100M-2-8 | K25: =IF(ISERROR(VLOOKUP(J25,#REF!,2,0)),"",(VLOOKUP(J25,#REF!,2,0))) ->  | L25: =IF(ISERROR(VLOOKUP(J25,#REF!,4,0)),"",(VLOOKUP(J25,#REF!,4,0))) ->  | M25: =IF(ISERROR(VLOOKUP(J25,#REF!,5,0)),"",(VLOOKUP(J25,#REF!,5,0))) ->  | N25: =IF(ISERROR(VLOOKUP(J25,#REF!,6,0)),"",(VLOOKUP(J25,#REF!,6,0))) -> 
I26: 3. SERİ | M26: Rüzgar: | N26: -2.0
I27: Kulvar | J27: Formül | K27: Göğüs No | L27: Doğum Tarihi | M27: Adı ve Soyadı | N27: TAKIMI | O27: Elektronik Kronometre | P27: El Kronometre | Q27: Seri Geliş
I28: 1 | J28: 100M-3-1 | K28: =IF(ISERROR(VLOOKUP(J28,#REF!,2,0)),"",(VLOOKUP(J28,#REF!,2,0))) ->  | L28: =IF(ISERROR(VLOOKUP(J28,#REF!,4,0)),"",(VLOOKUP(J28,#REF!,4,0))) ->  | M28: =IF(ISERROR(VLOOKUP(J28,#REF!,5,0)),"",(VLOOKUP(J28,#REF!,5,0))) ->  | N28: =IF(ISERROR(VLOOKUP(J28,#REF!,6,0)),"",(VLOOKUP(J28,#REF!,6,0))) -> 
I29: 2 | J29: 100M-3-2 | K29: 11 | L29: =IF(ISERROR(VLOOKUP(J29,#REF!,4,0)),"",(VLOOKUP(J29,#REF!,4,0))) ->  | M29: AYLİN ÖZDEMİR | N29: YAPI KREDİ | O29: 1711 | Q29: 3
I30: 3 | J30: 100M-3-3 | K30: 12 | L30: =IF(ISERROR(VLOOKUP(J30,#REF!,4,0)),"",(VLOOKUP(J30,#REF!,4,0))) ->  | M30: YELİZ ÜNEL | N30: FORD OTOSAN | O30: 1675 | Q30: 2
I31: 4 | J31: 100M-3-4 | K31: 13 | L31: =IF(ISERROR(VLOOKUP(J31,#REF!,4,0)),"",(VLOOKUP(J31,#REF!,4,0))) ->  | M31: YETER GÜNGÖR | N31: OPET | O31: DNS | Q31: -
I32: 5 | J32: 100M-3-5 | K32: =IF(ISERROR(VLOOKUP(J32,#REF!,2,0)),"",(VLOOKUP(J32,#REF!,2,0))) ->  | L32: =IF(ISERROR(VLOOKUP(J32,#REF!,4,0)),"",(VLOOKUP(J32,#REF!,4,0))) ->  | M32: ECEM ERERMİŞ | N32: TÜPRAŞ | O32: 1627 | Q32: 1
I33: 6 | J33: 100M-3-6 | K33: =IF(ISERROR(VLOOKUP(J33,#REF!,2,0)),"",(VLOOKUP(J33,#REF!,2,0))) ->  | L33: =IF(ISERROR(VLOOKUP(J33,#REF!,4,0)),"",(VLOOKUP(J33,#REF!,4,0))) ->  | M33: =IF(ISERROR(VLOOKUP(J33,#REF!,5,0)),"",(VLOOKUP(J33,#REF!,5,0))) ->  | N33: =IF(ISERROR(VLOOKUP(J33,#REF!,6,0)),"",(VLOOKUP(J33,#REF!,6,0))) -> 
I34: 7 | J34: 100M-3-7 | K34: =IF(ISERROR(VLOOKUP(J34,#REF!,2,0)),"",(VLOOKUP(J34,#REF!,2,0))) ->  | L34: =IF(ISERROR(VLOOKUP(J34,#REF!,4,0)),"",(VLOOKUP(J34,#REF!,4,0))) ->  | M34: =IF(ISERROR(VLOOKUP(J34,#REF!,5,0)),"",(VLOOKUP(J34,#REF!,5,0))) ->  | N34: =IF(ISERROR(VLOOKUP(J34,#REF!,6,0)),"",(VLOOKUP(J34,#REF!,6,0))) -> 
I35: 8 | J35: 100M-3-8 | K35: =IF(ISERROR(VLOOKUP(J35,#REF!,2,0)),"",(VLOOKUP(J35,#REF!,2,0))) ->  | L35: =IF(ISERROR(VLOOKUP(J35,#REF!,4,0)),"",(VLOOKUP(J35,#REF!,4,0))) ->  | M35: =IF(ISERROR(VLOOKUP(J35,#REF!,5,0)),"",(VLOOKUP(J35,#REF!,5,0))) ->  | N35: =IF(ISERROR(VLOOKUP(J35,#REF!,6,0)),"",(VLOOKUP(J35,#REF!,6,0))) -> 
I36: 4. SERİ | M36: Rüzgar: | N36: -2.0
I37: Kulvar | J37: Formül | K37: Göğüs No | L37: Doğum Tarihi | M37: Adı ve Soyadı | N37: TAKIMI | O37: Elektronik Kronometre | P37: Derece | Q37: Seri Geliş
I38: 1 | J38: 100M-4-1 | K38: =IF(ISERROR(VLOOKUP(J38,#REF!,2,0)),"",(VLOOKUP(J38,#REF!,2,0))) ->  | L38: =IF(ISERROR(VLOOKUP(J38,#REF!,4,0)),"",(VLOOKUP(J38,#REF!,4,0))) ->  | M38: =IF(ISERROR(VLOOKUP(J38,#REF!,5,0)),"",(VLOOKUP(J38,#REF!,5,0))) ->  | N38: =IF(ISERROR(VLOOKUP(J38,#REF!,6,0)),"",(VLOOKUP(J38,#REF!,6,0))) ->  | O38: =IF(IF(OR(P38="NM",P38="DNF",P38="DNS",P38="DQ",P38=""),P38,(ROUNDUP(P38,)+24))=0," ",IF(OR(P38="NM",P38="DNF",P38="DNS",P38="DQ",P38=""),P38,(ROUNDUP(P38,)+24))) -> 
I39: 2 | J39: 100M-4-2 | K39: 14 | L39: =IF(ISERROR(VLOOKUP(J39,#REF!,4,0)),"",(VLOOKUP(J39,#REF!,4,0))) ->  | M39: MERVE AKIN | N39: YAPI KREDİ | O39: 1878 | Q39: 2
I40: 3 | J40: 100M-4-3 | K40: 15 | L40: =IF(ISERROR(VLOOKUP(J40,#REF!,4,0)),"",(VLOOKUP(J40,#REF!,4,0))) ->  | M40: DEMET DURMUŞ | N40: YAPI KREDİ | O40: DNS | Q40: -
I41: 4 | J41: 100M-4-4 | K41: 16 | L41: =IF(ISERROR(VLOOKUP(J41,#REF!,4,0)),"",(VLOOKUP(J41,#REF!,4,0))) ->  | M41: DUYGU CESUR BOLAT | N41: OPET | O41: DNS | Q41: -
I42: 5 | J42: 100M-4-5 | K42: 17 | L42: =IF(ISERROR(VLOOKUP(J42,#REF!,4,0)),"",(VLOOKUP(J42,#REF!,4,0))) ->  | M42: FULYA SOYER | N42: TÜPRAŞ | O42: 1844 | Q42: 1
I43: 6 | J43: 100M-4-6 | K43: 18 | L43: =IF(ISERROR(VLOOKUP(J43,#REF!,4,0)),"",(VLOOKUP(J43,#REF!,4,0))) ->  | M43: BURCU FERDA YILMAZ | N43: YAPI KREDİ | O43: 1931 | Q43: 3
I44: 7 | J44: 100M-4-7 | K44: =IF(ISERROR(VLOOKUP(J44,#REF!,2,0)),"",(VLOOKUP(J44,#REF!,2,0))) ->  | L44: =IF(ISERROR(VLOOKUP(J44,#REF!,4,0)),"",(VLOOKUP(J44,#REF!,4,0))) ->  | M44: =IF(ISERROR(VLOOKUP(J44,#REF!,5,0)),"",(VLOOKUP(J44,#REF!,5,0))) ->  | N44: =IF(ISERROR(VLOOKUP(J44,#REF!,6,0)),"",(VLOOKUP(J44,#REF!,6,0))) -> 
I45: 8 | J45: 100M-4-8 | K45: =IF(ISERROR(VLOOKUP(J45,#REF!,2,0)),"",(VLOOKUP(J45,#REF!,2,0))) ->  | L45: =IF(ISERROR(VLOOKUP(J45,#REF!,4,0)),"",(VLOOKUP(J45,#REF!,4,0))) ->  | M45: =IF(ISERROR(VLOOKUP(J45,#REF!,5,0)),"",(VLOOKUP(J45,#REF!,5,0))) ->  | N45: =IF(ISERROR(VLOOKUP(J45,#REF!,6,0)),"",(VLOOKUP(J45,#REF!,6,0))) -> 
G47: =IF(ISTEXT(F47)," ",IFERROR(VLOOKUP(SMALL(PUAN!$A$6:$F$111,COUNTIF(PUAN!$A$6:$F$111,"<"&F47)+1),PUAN!$A$6:$F$111,4,0)," ")) ->  | I47: 5. SERİ | M47: Rüzgar:
G48: =IF(ISTEXT(F48)," ",IFERROR(VLOOKUP(SMALL(PUAN!$A$6:$F$111,COUNTIF(PUAN!$A$6:$F$111,"<"&F48)+1),PUAN!$A$6:$F$111,4,0)," ")) ->  | I48: Kulvar | J48: Formül | K48: Göğüs No | L48: Doğum Tarihi | M48: Adı ve Soyadı | N48: Okulu | O48: Elektronik Kronometre | P48: El Kronometre | Q48: Seri Geliş
G49: =IF(ISTEXT(F49)," ",IFERROR(VLOOKUP(SMALL(PUAN!$A$6:$F$111,COUNTIF(PUAN!$A$6:$F$111,"<"&F49)+1),PUAN!$A$6:$F$111,4,0)," ")) ->  | I49: 1 | J49: 100M-5-1 | K49: =IF(ISERROR(VLOOKUP(J49,#REF!,2,0)),"",(VLOOKUP(J49,#REF!,2,0))) ->  | L49: =IF(ISERROR(VLOOKUP(J49,#REF!,4,0)),"",(VLOOKUP(J49,#REF!,4,0))) ->  | M49: =IF(ISERROR(VLOOKUP(J49,#REF!,5,0)),"",(VLOOKUP(J49,#REF!,5,0))) ->  | N49: =IF(ISERROR(VLOOKUP(J49,#REF!,6,0)),"",(VLOOKUP(J49,#REF!,6,0))) -> 
G50: =IF(ISTEXT(F50)," ",IFERROR(VLOOKUP(SMALL(PUAN!$A$6:$F$111,COUNTIF(PUAN!$A$6:$F$111,"<"&F50)+1),PUAN!$A$6:$F$111,4,0)," ")) ->  | I50: 2 | J50: 100M-5-2 | K50: =IF(ISERROR(VLOOKUP(J50,#REF!,2,0)),"",(VLOOKUP(J50,#REF!,2,0))) ->  | L50: =IF(ISERROR(VLOOKUP(J50,#REF!,4,0)),"",(VLOOKUP(J50,#REF!,4,0))) -> 
G51: =IF(ISTEXT(F51)," ",IFERROR(VLOOKUP(SMALL(PUAN!$A$6:$F$111,COUNTIF(PUAN!$A$6:$F$111,"<"&F51)+1),PUAN!$A$6:$F$111,4,0)," ")) ->  | I51: 3 | J51: 100M-5-3 | K51: =IF(ISERROR(VLOOKUP(J51,#REF!,2,0)),"",(VLOOKUP(J51,#REF!,2,0))) ->  | L51: =IF(ISERROR(VLOOKUP(J51,#REF!,4,0)),"",(VLOOKUP(J51,#REF!,4,0))) -> 
G52: =IF(ISTEXT(F52)," ",IFERROR(VLOOKUP(SMALL(PUAN!$A$6:$F$111,COUNTIF(PUAN!$A$6:$F$111,"<"&F52)+1),PUAN!$A$6:$F$111,4,0)," ")) ->  | I52: 4 | J52: 100M-5-4 | K52: =IF(ISERROR(VLOOKUP(J52,#REF!,2,0)),"",(VLOOKUP(J52,#REF!,2,0))) ->  | L52: =IF(ISERROR(VLOOKUP(J52,#REF!,4,0)),"",(VLOOKUP(J52,#REF!,4,0))) ->  | M52: =IF(ISERROR(VLOOKUP(J52,#REF!,5,0)),"",(VLOOKUP(J52,#REF!,5,0))) ->  | N52: =IF(ISERROR(VLOOKUP(J52,#REF!,6,0)),"",(VLOOKUP(J52,#REF!,6,0))) -> 
G53: =IF(ISTEXT(F53)," ",IFERROR(VLOOKUP(SMALL(PUAN!$A$6:$F$111,COUNTIF(PUAN!$A$6:$F$111,"<"&F53)+1),PUAN!$A$6:$F$111,4,0)," ")) ->  | I53: 5 | J53: 100M-5-5 | K53: =IF(ISERROR(VLOOKUP(J53,#REF!,2,0)),"",(VLOOKUP(J53,#REF!,2,0))) ->  | L53: =IF(ISERROR(VLOOKUP(J53,#REF!,4,0)),"",(VLOOKUP(J53,#REF!,4,0))) -> 
G54: =IF(ISTEXT(F54)," ",IFERROR(VLOOKUP(SMALL(PUAN!$A$6:$F$111,COUNTIF(PUAN!$A$6:$F$111,"<"&F54)+1),PUAN!$A$6:$F$111,4,0)," ")) ->  | I54: 6 | J54: 100M-5-6 | K54: =IF(ISERROR(VLOOKUP(J54,#REF!,2,0)),"",(VLOOKUP(J54,#REF!,2,0))) ->  | L54: =IF(ISERROR(VLOOKUP(J54,#REF!,4,0)),"",(VLOOKUP(J54,#REF!,4,0))) ->  | M54: =IF(ISERROR(VLOOKUP(J54,#REF!,5,0)),"",(VLOOKUP(J54,#REF!,5,0))) ->  | N54: =IF(ISERROR(VLOOKUP(J54,#REF!,6,0)),"",(VLOOKUP(J54,#REF!,6,0))) -> 
G55: =IF(ISTEXT(F55)," ",IFERROR(VLOOKUP(SMALL(PUAN!$A$6:$F$111,COUNTIF(PUAN!$A$6:$F$111,"<"&F55)+1),PUAN!$A$6:$F$111,4,0)," ")) ->  | I55: 7 | J55: 100M-5-7 | K55: =IF(ISERROR(VLOOKUP(J55,#REF!,2,0)),"",(VLOOKUP(J55,#REF!,2,0))) ->  | L55: =IF(ISERROR(VLOOKUP(J55,#REF!,4,0)),"",(VLOOKUP(J55,#REF!,4,0))) ->  | M55: =IF(ISERROR(VLOOKUP(J55,#REF!,5,0)),"",(VLOOKUP(J55,#REF!,5,0))) ->  | N55: =IF(ISERROR(VLOOKUP(J55,#REF!,6,0)),"",(VLOOKUP(J55,#REF!,6,0))) -> 
G56: =IF(ISTEXT(F56)," ",IFERROR(VLOOKUP(SMALL(PUAN!$A$6:$F$111,COUNTIF(PUAN!$A$6:$F$111,"<"&F56)+1),PUAN!$A$6:$F$111,4,0)," ")) ->  | I56: 8 | J56: 100M-5-8 | K56: =IF(ISERROR(VLOOKUP(J56,#REF!,2,0)),"",(VLOOKUP(J56,#REF!,2,0))) ->  | L56: =IF(ISERROR(VLOOKUP(J56,#REF!,4,0)),"",(VLOOKUP(J56,#REF!,4,0))) ->  | M56: =IF(ISERROR(VLOOKUP(J56,#REF!,5,0)),"",(VLOOKUP(J56,#REF!,5,0))) ->  | N56: =IF(ISERROR(VLOOKUP(J56,#REF!,6,0)),"",(VLOOKUP(J56,#REF!,6,0))) ->  | O56: =IF(IF(OR(P56="NM",P56="DNF",P56="DNS",P56="DQ",P56=""),P56,(ROUNDUP(P56,)+24))=0," ",IF(OR(P56="NM",P56="DNF",P56="DNS",P56="DQ",P56=""),P56,(ROUNDUP(P56,)+24))) -> 
A58: Müsabakalar Direktörü | E58: Baş Hakem | F58: Lider | H58: Sekreter | M58: Hakem | N58: Hakem | P58: Hakem

Sheet 800m.
A2: ='YARIŞMA BİLGİLERİ'!F19 -> KOÇ TOPLULUĞU SPOR ŞENLİĞİ PUANLI ATLETİZM YARIŞLARI
A3: Yarışma : | D3: ='YARIŞMA PROGRAMI'!C9 -> 800 Metre | H3: :
A4: Kategori : | D4: ='YARIŞMA BİLGİLERİ'!F21 -> Kadınlar | M4: Tarih-Saat | N4: ='YARIŞMA PROGRAMI'!B9 -> 2017-04-15T15:15:00
N5: =NOW() -> 42842.61208
A6: Sıra No | B6: Göğüs No | C6: Doğum Tarihi Gün/Ay/Yıl | D6: Adı ve Soyadı | E6: Okulu | F6: Derece | G6: Puan | I6: 1. SERİ
I7: Kulvar | J7: Formül | K7: Göğüs No | L7: Doğum Tarihi | M7: Adı ve Soyadı | N7: Okulu | O7: Elektronik Kronometre | P7: El Kronometre | Q7: Seri Geliş
A8: 1 | D8: SEMA KUNUK | E8: FORD OTOSAN | F8: 30026 | G8: 11 | I8: 1 | J8: 800M-1-1 | K8: =IF(ISERROR(VLOOKUP(J8,#REF!,2,0)),"",(VLOOKUP(J8,#REF!,2,0))) ->  | L8: =IF(ISERROR(VLOOKUP(J8,#REF!,4,0)),"",(VLOOKUP(J8,#REF!,4,0))) ->  | M8: =IF(ISERROR(VLOOKUP(J8,#REF!,5,0)),"",(VLOOKUP(J8,#REF!,5,0))) -> 
A9: 2 | D9: DEMET OĞUZTÜRK | E9: YAPI KREDİ | F9: 32491 | G9: 10 | I9: 2 | J9: 800M-1-2 | K9: =IF(ISERROR(VLOOKUP(J9,#REF!,2,0)),"",(VLOOKUP(J9,#REF!,2,0))) ->  | L9: =IF(ISERROR(VLOOKUP(J9,#REF!,4,0)),"",(VLOOKUP(J9,#REF!,4,0))) -> 
A10: 3 | D10: ZEYNEP DÜZGÖREN | E10: TÜPRAŞ | F10: 33081 | G10: 9 | I10: 2 | K10: 53 | M10: DEMET OĞUZTÜRK | N10: YAPI KREDİ | O10: 32491 | Q10: 2
A11: 4 | D11: SİMGE TARKUÇ | E11: ARÇELİK | F11: 34494 | G11: 8 | I11: 3 | J11: 800M-1-3 | K11: 54 | L11: =IF(ISERROR(VLOOKUP(J11,#REF!,4,0)),"",(VLOOKUP(J11,#REF!,4,0))) ->  | M11: SEMA KUNUK | N11: FORD OTOSAN | O11: 30026 | Q11: 1
A12: 5 | D12: SERAP YÜKSEK | E12: TOFAŞ | F12: 34973 | G12: 7 | I12: 3 | K12: 55 | M12: SİMGE TARKUÇ | N12: ARÇELİK | O12: 34494 | Q12: 4
A13: 6 | D13: SEDA KARAKOÇ | E13: ZER | F13: 35879 | G13: 6 | I13: 4 | J13: 800M-1-4 | K13: - | L13: =IF(ISERROR(VLOOKUP(J13,#REF!,4,0)),"",(VLOOKUP(J13,#REF!,4,0))) ->  | M13: AYCAN VAROL | N13: OPET | O13: DNS | Q13: -
A14: - | D14: AYCAN VAROL | E14: OPET | F14: DNS | G14: - | I14: 5 | J14: 800M-1-5 | K14: - | L14: =IF(ISERROR(VLOOKUP(J14,#REF!,4,0)),"",(VLOOKUP(J14,#REF!,4,0))) ->  | M14: AHI DAMLA KAYTAN | N14: VKV SAĞLIK KURULUŞLARI | O14: DNS | Q14: -
A15: - | D15: AHI DAMLA KAYTAN | E15: VKV SAĞLIK KURULUŞLARI | F15: DNS | G15: - | I15: 5 | K15: 57 | M15: ZEYNEP DÜZGÖREN | N15: TÜPRAŞ | O15: 33081 | Q15: 3
A16: - | D16: ZEYNEP ERPOLAT | E16: ARÇELİK | F16: DNS | G16: - | I16: 6 | J16: 800M-1-6 | K16: 56 | L16: =IF(ISERROR(VLOOKUP(J16,#REF!,4,0)),"",(VLOOKUP(J16,#REF!,4,0))) ->  | M16: SERAP YÜKSEK | N16: TOFAŞ | O16: 34973 | Q16: 5
A17: - | D17: ÜLKÜ BİRİŞİK ATEŞ | E17: ZER | F17: DNS | G17: - | I17: 6 | J17: 800M-1-7 | K17: 58 | L17: =IF(ISERROR(VLOOKUP(J17,#REF!,4,0)),"",(VLOOKUP(J17,#REF!,4,0))) ->  | M17: SEDA KARAKOÇ | N17: ZER | O17: 35879 | Q17: 6
I18: 7 | K18: - | M18: ZEYNEP ERPOLAT | N18: ARÇELİK | O18: DNS | Q18: -
I19: 7 | K19: - | M19: ÜLKÜ BİRİŞİK ATEŞ | N19: ZER | O19: DNS | Q19: -
I20: 8 | J20: 800M-1-8 | K20: =IF(ISERROR(VLOOKUP(J20,#REF!,2,0)),"",(VLOOKUP(J20,#REF!,2,0))) ->  | L20: =IF(ISERROR(VLOOKUP(J20,#REF!,4,0)),"",(VLOOKUP(J20,#REF!,4,0))) ->  | M20: =IF(ISERROR(VLOOKUP(J20,#REF!,5,0)),"",(VLOOKUP(J20,#REF!,5,0))) ->  | N20: =IF(ISERROR(VLOOKUP(J20,#REF!,6,0)),"",(VLOOKUP(J20,#REF!,6,0))) -> 
I21: 2. SERİ
I22: Kulvar | J22: Formül | K22: Göğüs No | L22: Doğum Tarihi | M22: Adı ve Soyadı | N22: Okulu | O22: Elektronik Kronometre | P22: El Kronometre | Q22: Seri Geliş
I23: 1 | J23: 800M-2-1 | K23: =IF(ISERROR(VLOOKUP(J23,#REF!,2,0)),"",(VLOOKUP(J23,#REF!,2,0))) ->  | L23: =IF(ISERROR(VLOOKUP(J23,#REF!,4,0)),"",(VLOOKUP(J23,#REF!,4,0))) ->  | M23: =IF(ISERROR(VLOOKUP(J23,#REF!,5,0)),"",(VLOOKUP(J23,#REF!,5,0))) ->  | N23: =IF(ISERROR(VLOOKUP(J23,#REF!,6,0)),"",(VLOOKUP(J23,#REF!,6,0))) -> 
I24: 2 | J24: 800M-2-2 | K24: =IF(ISERROR(VLOOKUP(J24,#REF!,2,0)),"",(VLOOKUP(J24,#REF!,2,0))) ->  | L24: =IF(ISERROR(VLOOKUP(J24,#REF!,4,0)),"",(VLOOKUP(J24,#REF!,4,0))) -> 
I25: 3 | J25: 800M-2-3 | K25: =IF(ISERROR(VLOOKUP(J25,#REF!,2,0)),"",(VLOOKUP(J25,#REF!,2,0))) ->  | L25: =IF(ISERROR(VLOOKUP(J25,#REF!,4,0)),"",(VLOOKUP(J25,#REF!,4,0))) -> 
I26: 4 | J26: 800M-2-4 | K26: =IF(ISERROR(VLOOKUP(J26,#REF!,2,0)),"",(VLOOKUP(J26,#REF!,2,0))) ->  | L26: =IF(ISERROR(VLOOKUP(J26,#REF!,4,0)),"",(VLOOKUP(J26,#REF!,4,0))) -> 
I27: 5 | J27: 800M-2-5 | K27: =IF(ISERROR(VLOOKUP(J27,#REF!,2,0)),"",(VLOOKUP(J27,#REF!,2,0))) ->  | L27: =IF(ISERROR(VLOOKUP(J27,#REF!,4,0)),"",(VLOOKUP(J27,#REF!,4,0))) -> 
I28: 6 | J28: 800M-2-6 | K28: =IF(ISERROR(VLOOKUP(J28,#REF!,2,0)),"",(VLOOKUP(J28,#REF!,2,0))) ->  | L28: =IF(ISERROR(VLOOKUP(J28,#REF!,4,0)),"",(VLOOKUP(J28,#REF!,4,0))) -> 
I29: 7 | J29: 800M-2-7 | K29: =IF(ISERROR(VLOOKUP(J29,#REF!,2,0)),"",(VLOOKUP(J29,#REF!,2,0))) ->  | L29: =IF(ISERROR(VLOOKUP(J29,#REF!,4,0)),"",(VLOOKUP(J29,#REF!,4,0))) ->  | M29: =IF(ISERROR(VLOOKUP(J29,#REF!,5,0)),"",(VLOOKUP(J29,#REF!,5,0))) ->  | N29: =IF(ISERROR(VLOOKUP(J29,#REF!,6,0)),"",(VLOOKUP(J29,#REF!,6,0))) -> 
I30: 8 | J30: 800M-2-8 | K30: =IF(ISERROR(VLOOKUP(J30,#REF!,2,0)),"",(VLOOKUP(J30,#REF!,2,0))) ->  | L30: =IF(ISERROR(VLOOKUP(J30,#REF!,4,0)),"",(VLOOKUP(J30,#REF!,4,0))) ->  | M30: =IF(ISERROR(VLOOKUP(J30,#REF!,5,0)),"",(VLOOKUP(J30,#REF!,5,0))) ->  | N30: =IF(ISERROR(VLOOKUP(J30,#REF!,6,0)),"",(VLOOKUP(J30,#REF!,6,0))) -> 
I31: 3. SERİ
I32: Kulvar | J32: Formül | K32: Göğüs No | L32: Doğum Tarihi | M32: Adı ve Soyadı | N32: Okulu | O32: Elektronik Kronometre | P32: El Kronometre | Q32: Seri Geliş
I33: 1 | J33: 800M-3-1 | K33: =IF(ISERROR(VLOOKUP(J33,#REF!,2,0)),"",(VLOOKUP(J33,#REF!,2,0))) ->  | L33: =IF(ISERROR(VLOOKUP(J33,#REF!,4,0)),"",(VLOOKUP(J33,#REF!,4,0))) ->  | M33: =IF(ISERROR(VLOOKUP(J33,#REF!,5,0)),"",(VLOOKUP(J33,#REF!,5,0))) ->  | N33: =IF(ISERROR(VLOOKUP(J33,#REF!,6,0)),"",(VLOOKUP(J33,#REF!,6,0))) ->  | O33: =IF(IF(OR(P33="NM",P33="DNF",P33="DNS",P33="DQ",P33=""),P33,(ROUNDUP(P33,)+14))=0," ",IF(OR(P33="NM",P33="DNF",P33="DNS",P33="DQ",P33=""),P33,(ROUNDUP(P33,)+14))) -> 
I34: 2 | J34: 800M-3-2 | K34: =IF(ISERROR(VLOOKUP(J34,#REF!,2,0)),"",(VLOOKUP(J34,#REF!,2,0))) ->  | L34: =IF(ISERROR(VLOOKUP(J34,#REF!,4,0)),"",(VLOOKUP(J34,#REF!,4,0))) ->  | M34: =IF(ISERROR(VLOOKUP(J34,#REF!,5,0)),"",(VLOOKUP(J34,#REF!,5,0))) ->  | N34: =IF(ISERROR(VLOOKUP(J34,#REF!,6,0)),"",(VLOOKUP(J34,#REF!,6,0))) -> 
G35: =IF(ISTEXT(F35)," ",IFERROR(VLOOKUP(SMALL(PUAN!$M$4:$N$110,COUNTIF(PUAN!$M$4:$N$110,"<"&F35)+1),PUAN!$M$4:$N$110,2,2)," ")) ->  | I35: 3 | J35: 800M-3-3 | K35: =IF(ISERROR(VLOOKUP(J35,#REF!,2,0)),"",(VLOOKUP(J35,#REF!,2,0))) ->  | L35: =IF(ISERROR(VLOOKUP(J35,#REF!,4,0)),"",(VLOOKUP(J35,#REF!,4,0))) -> 
G36: =IF(ISTEXT(F36)," ",IFERROR(VLOOKUP(SMALL(PUAN!$M$4:$N$110,COUNTIF(PUAN!$M$4:$N$110,"<"&F36)+1),PUAN!$M$4:$N$110,2,2)," ")) ->  | I36: 4 | J36: 800M-3-4 | K36: =IF(ISERROR(VLOOKUP(J36,#REF!,2,0)),"",(VLOOKUP(J36,#REF!,2,0))) ->  | L36: =IF(ISERROR(VLOOKUP(J36,#REF!,4,0)),"",(VLOOKUP(J36,#REF!,4,0))) -> 
G37: =IF(ISTEXT(F37)," ",IFERROR(VLOOKUP(SMALL(PUAN!$M$4:$N$110,COUNTIF(PUAN!$M$4:$N$110,"<"&F37)+1),PUAN!$M$4:$N$110,2,2)," ")) ->  | I37: 5 | J37: 800M-3-5 | K37: =IF(ISERROR(VLOOKUP(J37,#REF!,2,0)),"",(VLOOKUP(J37,#REF!,2,0))) ->  | L37: =IF(ISERROR(VLOOKUP(J37,#REF!,4,0)),"",(VLOOKUP(J37,#REF!,4,0))) ->  | M37: =IF(ISERROR(VLOOKUP(J37,#REF!,5,0)),"",(VLOOKUP(J37,#REF!,5,0))) ->  | N37: =IF(ISERROR(VLOOKUP(J37,#REF!,6,0)),"",(VLOOKUP(J37,#REF!,6,0))) -> 
G38: =IF(ISTEXT(F38)," ",IFERROR(VLOOKUP(SMALL(PUAN!$M$4:$N$110,COUNTIF(PUAN!$M$4:$N$110,"<"&F38)+1),PUAN!$M$4:$N$110,2,2)," ")) ->  | I38: 6 | J38: 800M-3-6 | K38: =IF(ISERROR(VLOOKUP(J38,#REF!,2,0)),"",(VLOOKUP(J38,#REF!,2,0))) ->  | L38: =IF(ISERROR(VLOOKUP(J38,#REF!,4,0)),"",(VLOOKUP(J38,#REF!,4,0))) -> 
G39: =IF(ISTEXT(F39)," ",IFERROR(VLOOKUP(SMALL(PUAN!$M$4:$N$110,COUNTIF(PUAN!$M$4:$N$110,"<"&F39)+1),PUAN!$M$4:$N$110,2,2)," ")) ->  | I39: 7 | J39: 800M-3-7 | K39: =IF(ISERROR(VLOOKUP(J39,#REF!,2,0)),"",(VLOOKUP(J39,#REF!,2,0))) ->  | L39: =IF(ISERROR(VLOOKUP(J39,#REF!,4,0)),"",(VLOOKUP(J39,#REF!,4,0))) ->  | M39: =IF(ISERROR(VLOOKUP(J39,#REF!,5,0)),"",(VLOOKUP(J39,#REF!,5,0))) ->  | N39: =IF(ISERROR(VLOOKUP(J39,#REF!,6,0)),"",(VLOOKUP(J39,#REF!,6,0))) -> 
G40: =IF(ISTEXT(F40)," ",IFERROR(VLOOKUP(SMALL(PUAN!$M$4:$N$110,COUNTIF(PUAN!$M$4:$N$110,"<"&F40)+1),PUAN!$M$4:$N$110,2,2)," ")) ->  | I40: 8 | J40: 800M-3-8 | K40: =IF(ISERROR(VLOOKUP(J40,#REF!,2,0)),"",(VLOOKUP(J40,#REF!,2,0))) ->  | L40: =IF(ISERROR(VLOOKUP(J40,#REF!,4,0)),"",(VLOOKUP(J40,#REF!,4,0))) ->  | M40: =IF(ISERROR(VLOOKUP(J40,#REF!,5,0)),"",(VLOOKUP(J40,#REF!,5,0))) ->  | N40: =IF(ISERROR(VLOOKUP(J40,#REF!,6,0)),"",(VLOOKUP(J40,#REF!,6,0))) -> 
A42: Müsabakalar Direktörü | E42: Baş Hakem | F42: Lider | H42: Sekreter | M42: Hakem | N42: Hakem | P42: Hakem

Sheet 3000m.
A2: ='YARIŞMA BİLGİLERİ'!F19 -> KOÇ TOPLULUĞU SPOR ŞENLİĞİ PUANLI ATLETİZM YARIŞLARI
A3: Yarışma : | D3: 3000 Metre | H3: :
A4: Kategori : | D4: ='YARIŞMA BİLGİLERİ'!F21 -> Kadınlar | M4: Tarih-Saat | N4: ='YARIŞMA PROGRAMI'!B12 -> 2017-04-15T10:45:00
N5: =NOW() -> 42842.61208
A6: Sıra No | B6: Göğüs No | C6: Doğum Tarihi Gün/Ay/Yıl | D6: Adı ve Soyadı | E6: TAKIMI | F6: Derece | G6: Puan | I6: 1. SERİ
I7: Sıra No | J7: Formül | K7: Göğüs No | L7: Doğum Tarihi | M7: Adı ve Soyadı | N7: TAKIMI | O7: Elektronik Kronometre | P7: El Kronometre | Q7: Seri Geliş
A8: 1 | D8: FADİME ÖZKAN | E8: FORD OTOSAN | F8: 131270 | G8: 11 | I8: 1 | J8: 2000M-1-1 | K8: =IF(ISERROR(VLOOKUP(J8,#REF!,2,0)),"",(VLOOKUP(J8,#REF!,2,0))) ->  | L8: =IF(ISERROR(VLOOKUP(J8,#REF!,4,0)),"",(VLOOKUP(J8,#REF!,4,0))) ->  | M8: =IF(ISERROR(VLOOKUP(J8,#REF!,5,0)),"",(VLOOKUP(J8,#REF!,5,0))) ->  | N8: =IF(ISERROR(VLOOKUP(J8,#REF!,6,0)),"",(VLOOKUP(J8,#REF!,6,0))) -> 
A9: 2 | D9: FUNDA COŞKUN | E9: TÜPRAŞ | F9: 132626 | G9: 10 | I9: 2 | J9: 2000M-1-2 | K9: =IF(ISERROR(VLOOKUP(J9,#REF!,2,0)),"",(VLOOKUP(J9,#REF!,2,0))) ->  | L9: 72 | M9: =IF(ISERROR(VLOOKUP(J9,#REF!,5,0)),"",(VLOOKUP(J9,#REF!,5,0))) ->  | N9: OTOKAR | O9: 192956 | Q9: 6
A10: 3 | D10: CEREN ANGILI | E10: YAPI KREDİ | F10: 143204 | G10: 9 | I10: 2 | J10: 2000M-1-3 | K10: =IF(ISERROR(VLOOKUP(J10,#REF!,2,0)),"",(VLOOKUP(J10,#REF!,2,0))) ->  | L10: 71 | M10: GÜNCE TOPAL | N10: YAPI KREDİ | O10: 163959 | Q10: 4
A11: 4 | D11: GÜNCE TOPAL | E11: YAPI KREDİ | F11: 163959 | G11: - | I11: 3 | L11: 70 | M11: CEREN ANGILI | N11: YAPI KREDİ | O11: 143204 | Q11: 3
A12: 5 | D12: BERİL BAŞLIGİL | E12: ARÇELİK | F12: 182902 | G12: 8 | I12: 3 | J12: 2000M-1-4 | K12: =IF(ISERROR(VLOOKUP(J12,#REF!,2,0)),"",(VLOOKUP(J12,#REF!,2,0))) ->  | L12: 69 | M12: FADİME ÖZKAN | N12: FORD OTOSAN | O12: 131270 | Q12: 1
A13: 6 | D13: =IF(ISERROR(VLOOKUP(A13,#REF!,5,0)),"",(VLOOKUP(A13,#REF!,5,0))) ->  | E13: OTOKAR | F13: 192956 | G13: 7 | I13: 4 | J13: 2000M-1-5 | K13: =IF(ISERROR(VLOOKUP(J13,#REF!,2,0)),"",(VLOOKUP(J13,#REF!,2,0))) ->  | L13: 68 | M13: BERİL BAŞLIGİL | N13: ARÇELİK | O13: 182902 | Q13: 5
A14: 7 | D14: HÜLYA ÇALIKOĞLU | E14: ZER | F14: 193434 | G14: 6 | I14: 4 | J14: 2000M-1-7 | K14: =IF(ISERROR(VLOOKUP(J14,#REF!,2,0)),"",(VLOOKUP(J14,#REF!,2,0))) ->  | L14: 67 | M14: NİDA MERAL | N14: KOÇ SİSTEM | O14: DNS | Q14: -
A15: 8 | D15: MELİKE ERBAŞI | E15: ZER | F15: 211000 | G15: - | I15: 5 | J15: 2000M-1-8 | K15: =IF(ISERROR(VLOOKUP(J15,#REF!,2,0)),"",(VLOOKUP(J15,#REF!,2,0))) ->  | L15: 66 | M15: ŞULE EREN | N15: VKV SAĞLIK KURULUŞLARI | O15: DNS | Q15: -
A16: 9 | D16: DENİZ ILGINER | E16: ZER | F16: 214254 | G16: - | I16: 5 | L16: 65 | M16: FUNDA COŞKUN | N16: TÜPRAŞ | O16: 132626 | Q16: 2
A17: - | D17: NİDA MERAL | E17: KOÇ SİSTEM | F17: DNS | G17: - | I17: 6 | L17: 63 | M17: AYFER ÇEKÇİ | N17: ZER | O17: DNS | Q17: -
A18: - | D18: ŞULE EREN | E18: VKV SAĞLIK KURULUŞLARI | F18: DNS | G18: - | I18: 7 | J18: 2000M-1-10 | K18: =IF(ISERROR(VLOOKUP(J18,#REF!,2,0)),"",(VLOOKUP(J18,#REF!,2,0))) ->  | L18: 62 | M18: DENİZ ILGINER | N18: ZER | O18: 214254 | Q18: 9
A19: - | D19: AYFER ÇEKÇİ | E19: ZER | F19: DNS | G19: - | I19: 7 | J19: 2000M-1-11 | K19: =IF(ISERROR(VLOOKUP(J19,#REF!,2,0)),"",(VLOOKUP(J19,#REF!,2,0))) ->  | L19: 61 | M19: HÜLYA ÇALIKOĞLU | N19: ZER | O19: 193434 | Q19: 7
A20: - | D20: ARZU ASLAN KESİMER | E20: TAT GIDA | F20: DNS | G20: - | I20: 8 | J20: 2000M-1-12 | K20: =IF(ISERROR(VLOOKUP(J20,#REF!,2,0)),"",(VLOOKUP(J20,#REF!,2,0))) ->  | L20: 60 | M20: MELİKE ERBAŞI | N20: ZER | O20: 211000 | Q20: 8
I21: 8 | J21: 2000M-1-13 | K21: =IF(ISERROR(VLOOKUP(J21,#REF!,2,0)),"",(VLOOKUP(J21,#REF!,2,0))) ->  | L21: 59 | M21: ARZU ASLAN KESİMER | N21: TAT GIDA | O21: DNS | Q21: -
I23: 2. SERİ
I24: Sıra No | J24: Formül | K24: Göğüs No | L24: Doğum Tarihi | M24: Adı ve Soyadı | N24: Okulu | O24: Elektronik Kronometre | P24: El Kronometre | Q24: Seri Geliş
I25: 1 | J25: 2000M-2-1 | K25: =IF(ISERROR(VLOOKUP(J25,#REF!,2,0)),"",(VLOOKUP(J25,#REF!,2,0))) ->  | L25: =IF(ISERROR(VLOOKUP(J25,#REF!,4,0)),"",(VLOOKUP(J25,#REF!,4,0))) ->  | M25: =IF(ISERROR(VLOOKUP(J25,#REF!,5,0)),"",(VLOOKUP(J25,#REF!,5,0))) ->  | N25: =IF(ISERROR(VLOOKUP(J25,#REF!,6,0)),"",(VLOOKUP(J25,#REF!,6,0))) -> 
I26: 2 | J26: 2000M-2-2 | K26: =IF(ISERROR(VLOOKUP(J26,#REF!,2,0)),"",(VLOOKUP(J26,#REF!,2,0))) ->  | L26: =IF(ISERROR(VLOOKUP(J26,#REF!,4,0)),"",(VLOOKUP(J26,#REF!,4,0))) ->  | M26: =IF(ISERROR(VLOOKUP(J26,#REF!,5,0)),"",(VLOOKUP(J26,#REF!,5,0))) ->  | N26: =IF(ISERROR(VLOOKUP(J26,#REF!,6,0)),"",(VLOOKUP(J26,#REF!,6,0))) -> 
I27: 3 | J27: 2000M-2-3 | K27: =IF(ISERROR(VLOOKUP(J27,#REF!,2,0)),"",(VLOOKUP(J27,#REF!,2,0))) ->  | L27: =IF(ISERROR(VLOOKUP(J27,#REF!,4,0)),"",(VLOOKUP(J27,#REF!,4,0))) ->  | M27: =IF(ISERROR(VLOOKUP(J27,#REF!,5,0)),"",(VLOOKUP(J27,#REF!,5,0))) ->  | N27: =IF(ISERROR(VLOOKUP(J27,#REF!,6,0)),"",(VLOOKUP(J27,#REF!,6,0))) -> 
I28: 4 | J28: 2000M-2-4 | K28: =IF(ISERROR(VLOOKUP(J28,#REF!,2,0)),"",(VLOOKUP(J28,#REF!,2,0))) ->  | L28: =IF(ISERROR(VLOOKUP(J28,#REF!,4,0)),"",(VLOOKUP(J28,#REF!,4,0))) ->  | M28: =IF(ISERROR(VLOOKUP(J28,#REF!,5,0)),"",(VLOOKUP(J28,#REF!,5,0))) ->  | N28: =IF(ISERROR(VLOOKUP(J28,#REF!,6,0)),"",(VLOOKUP(J28,#REF!,6,0))) -> 
I29: 5 | J29: 2000M-2-5 | K29: =IF(ISERROR(VLOOKUP(J29,#REF!,2,0)),"",(VLOOKUP(J29,#REF!,2,0))) ->  | L29: =IF(ISERROR(VLOOKUP(J29,#REF!,4,0)),"",(VLOOKUP(J29,#REF!,4,0))) ->  | M29: =IF(ISERROR(VLOOKUP(J29,#REF!,5,0)),"",(VLOOKUP(J29,#REF!,5,0))) ->  | N29: =IF(ISERROR(VLOOKUP(J29,#REF!,6,0)),"",(VLOOKUP(J29,#REF!,6,0))) -> 
I30: 6 | J30: 2000M-2-6 | K30: =IF(ISERROR(VLOOKUP(J30,#REF!,2,0)),"",(VLOOKUP(J30,#REF!,2,0))) ->  | L30: =IF(ISERROR(VLOOKUP(J30,#REF!,4,0)),"",(VLOOKUP(J30,#REF!,4,0))) ->  | M30: =IF(ISERROR(VLOOKUP(J30,#REF!,5,0)),"",(VLOOKUP(J30,#REF!,5,0))) ->  | N30: =IF(ISERROR(VLOOKUP(J30,#REF!,6,0)),"",(VLOOKUP(J30,#REF!,6,0))) -> 
I31: 7 | J31: 2000M-2-7 | K31: =IF(ISERROR(VLOOKUP(J31,#REF!,2,0)),"",(VLOOKUP(J31,#REF!,2,0))) ->  | L31: =IF(ISERROR(VLOOKUP(J31,#REF!,4,0)),"",(VLOOKUP(J31,#REF!,4,0))) ->  | M31: =IF(ISERROR(VLOOKUP(J31,#REF!,5,0)),"",(VLOOKUP(J31,#REF!,5,0))) ->  | N31: =IF(ISERROR(VLOOKUP(J31,#REF!,6,0)),"",(VLOOKUP(J31,#REF!,6,0))) -> 
I32: 8 | J32: 2000M-2-8 | K32: =IF(ISERROR(VLOOKUP(J32,#REF!,2,0)),"",(VLOOKUP(J32,#REF!,2,0))) ->  | L32: =IF(ISERROR(VLOOKUP(J32,#REF!,4,0)),"",(VLOOKUP(J32,#REF!,4,0))) ->  | M32: =IF(ISERROR(VLOOKUP(J32,#REF!,5,0)),"",(VLOOKUP(J32,#REF!,5,0))) ->  | N32: =IF(ISERROR(VLOOKUP(J32,#REF!,6,0)),"",(VLOOKUP(J32,#REF!,6,0))) -> 
I33: 9 | J33: 2000M-2-9 | K33: =IF(ISERROR(VLOOKUP(J33,#REF!,2,0)),"",(VLOOKUP(J33,#REF!,2,0))) ->  | L33: =IF(ISERROR(VLOOKUP(J33,#REF!,4,0)),"",(VLOOKUP(J33,#REF!,4,0))) ->  | M33: =IF(ISERROR(VLOOKUP(J33,#REF!,5,0)),"",(VLOOKUP(J33,#REF!,5,0))) ->  | N33: =IF(ISERROR(VLOOKUP(J33,#REF!,6,0)),"",(VLOOKUP(J33,#REF!,6,0))) -> 
I34: 10 | J34: 2000M-2-10 | K34: =IF(ISERROR(VLOOKUP(J34,#REF!,2,0)),"",(VLOOKUP(J34,#REF!,2,0))) ->  | L34: =IF(ISERROR(VLOOKUP(J34,#REF!,4,0)),"",(VLOOKUP(J34,#REF!,4,0))) ->  | M34: =IF(ISERROR(VLOOKUP(J34,#REF!,5,0)),"",(VLOOKUP(J34,#REF!,5,0))) ->  | N34: =IF(ISERROR(VLOOKUP(J34,#REF!,6,0)),"",(VLOOKUP(J34,#REF!,6,0))) ->  | O34: =IF(IF(OR(P34="NM",P34="DNF",P34="DNS",P34="DQ",P34=""),P34,(ROUNDUP(P34,)+14))=0," ",IF(OR(P34="NM",P34="DNF",P34="DNS",P34="DQ",P34=""),P34,(ROUNDUP(P34,)+14))) -> 
I35: 3. SERİ
I36: Sıra No | J36: Formül | K36: Göğüs No | L36: Doğum Tarihi | M36: Adı ve Soyadı | N36: Okulu | O36: Elektronik Kronometre | P36: El Kronometre | Q36: Seri Geliş
I37: 1 | J37: 2000M-3-1 | K37: =IF(ISERROR(VLOOKUP(J37,#REF!,2,0)),"",(VLOOKUP(J37,#REF!,2,0))) ->  | L37: =IF(ISERROR(VLOOKUP(J37,#REF!,4,0)),"",(VLOOKUP(J37,#REF!,4,0))) ->  | M37: =IF(ISERROR(VLOOKUP(J37,#REF!,5,0)),"",(VLOOKUP(J37,#REF!,5,0))) ->  | N37: =IF(ISERROR(VLOOKUP(J37,#REF!,6,0)),"",(VLOOKUP(J37,#REF!,6,0))) -> 
I38: 2 | J38: 2000M-3-2 | K38: =IF(ISERROR(VLOOKUP(J38,#REF!,2,0)),"",(VLOOKUP(J38,#REF!,2,0))) ->  | L38: =IF(ISERROR(VLOOKUP(J38,#REF!,4,0)),"",(VLOOKUP(J38,#REF!,4,0))) ->  | M38: =IF(ISERROR(VLOOKUP(J38,#REF!,5,0)),"",(VLOOKUP(J38,#REF!,5,0))) ->  | N38: =IF(ISERROR(VLOOKUP(J38,#REF!,6,0)),"",(VLOOKUP(J38,#REF!,6,0))) -> 
I39: 3 | J39: 2000M-3-3 | K39: =IF(ISERROR(VLOOKUP(J39,#REF!,2,0)),"",(VLOOKUP(J39,#REF!,2,0))) ->  | L39: =IF(ISERROR(VLOOKUP(J39,#REF!,4,0)),"",(VLOOKUP(J39,#REF!,4,0))) ->  | M39: =IF(ISERROR(VLOOKUP(J39,#REF!,5,0)),"",(VLOOKUP(J39,#REF!,5,0))) ->  | N39: =IF(ISERROR(VLOOKUP(J39,#REF!,6,0)),"",(VLOOKUP(J39,#REF!,6,0))) -> 
G40: =IF(ISTEXT(F40)," ",IFERROR(VLOOKUP(SMALL(PUAN!$Q$4:$R$111,COUNTIF(PUAN!$Q$4:$R$111,"<"&F40)+1),PUAN!$Q$4:$R$111,2,2)," ")) ->  | I40: 4 | J40: 2000M-3-4 | K40: =IF(ISERROR(VLOOKUP(J40,#REF!,2,0)),"",(VLOOKUP(J40,#REF!,2,0))) ->  | L40: =IF(ISERROR(VLOOKUP(J40,#REF!,4,0)),"",(VLOOKUP(J40,#REF!,4,0))) ->  | M40: =IF(ISERROR(VLOOKUP(J40,#REF!,5,0)),"",(VLOOKUP(J40,#REF!,5,0))) ->  | N40: =IF(ISERROR(VLOOKUP(J40,#REF!,6,0)),"",(VLOOKUP(J40,#REF!,6,0))) -> 
G41: =IF(ISTEXT(F41)," ",IFERROR(VLOOKUP(SMALL(PUAN!$Q$4:$R$111,COUNTIF(PUAN!$Q$4:$R$111,"<"&F41)+1),PUAN!$Q$4:$R$111,2,2)," ")) ->  | I41: 5 | J41: 2000M-3-5 | K41: =IF(ISERROR(VLOOKUP(J41,#REF!,2,0)),"",(VLOOKUP(J41,#REF!,2,0))) ->  | L41: =IF(ISERROR(VLOOKUP(J41,#REF!,4,0)),"",(VLOOKUP(J41,#REF!,4,0))) ->  | M41: =IF(ISERROR(VLOOKUP(J41,#REF!,5,0)),"",(VLOOKUP(J41,#REF!,5,0))) ->  | N41: =IF(ISERROR(VLOOKUP(J41,#REF!,6,0)),"",(VLOOKUP(J41,#REF!,6,0))) -> 
G42: =IF(ISTEXT(F42)," ",IFERROR(VLOOKUP(SMALL(PUAN!$Q$4:$R$111,COUNTIF(PUAN!$Q$4:$R$111,"<"&F42)+1),PUAN!$Q$4:$R$111,2,2)," ")) ->  | I42: 6 | J42: 2000M-3-6 | K42: =IF(ISERROR(VLOOKUP(J42,#REF!,2,0)),"",(VLOOKUP(J42,#REF!,2,0))) ->  | L42: =IF(ISERROR(VLOOKUP(J42,#REF!,4,0)),"",(VLOOKUP(J42,#REF!,4,0))) ->  | M42: =IF(ISERROR(VLOOKUP(J42,#REF!,5,0)),"",(VLOOKUP(J42,#REF!,5,0))) ->  | N42: =IF(ISERROR(VLOOKUP(J42,#REF!,6,0)),"",(VLOOKUP(J42,#REF!,6,0))) -> 
G43: =IF(ISTEXT(F43)," ",IFERROR(VLOOKUP(SMALL(PUAN!$Q$4:$R$111,COUNTIF(PUAN!$Q$4:$R$111,"<"&F43)+1),PUAN!$Q$4:$R$111,2,2)," ")) ->  | I43: 7 | J43: 2000M-3-7 | K43: =IF(ISERROR(VLOOKUP(J43,#REF!,2,0)),"",(VLOOKUP(J43,#REF!,2,0))) ->  | L43: =IF(ISERROR(VLOOKUP(J43,#REF!,4,0)),"",(VLOOKUP(J43,#REF!,4,0))) ->  | M43: =IF(ISERROR(VLOOKUP(J43,#REF!,5,0)),"",(VLOOKUP(J43,#REF!,5,0))) ->  | N43: =IF(ISERROR(VLOOKUP(J43,#REF!,6,0)),"",(VLOOKUP(J43,#REF!,6,0))) -> 
G44: =IF(ISTEXT(F44)," ",IFERROR(VLOOKUP(SMALL(PUAN!$Q$4:$R$111,COUNTIF(PUAN!$Q$4:$R$111,"<"&F44)+1),PUAN!$Q$4:$R$111,2,2)," ")) ->  | I44: 8 | J44: 2000M-3-8 | K44: =IF(ISERROR(VLOOKUP(J44,#REF!,2,0)),"",(VLOOKUP(J44,#REF!,2,0))) ->  | L44: =IF(ISERROR(VLOOKUP(J44,#REF!,4,0)),"",(VLOOKUP(J44,#REF!,4,0))) ->  | M44: =IF(ISERROR(VLOOKUP(J44,#REF!,5,0)),"",(VLOOKUP(J44,#REF!,5,0))) ->  | N44: =IF(ISERROR(VLOOKUP(J44,#REF!,6,0)),"",(VLOOKUP(J44,#REF!,6,0))) -> 
G45: =IF(ISTEXT(F45)," ",IFERROR(VLOOKUP(SMALL(PUAN!$Q$4:$R$111,COUNTIF(PUAN!$Q$4:$R$111,"<"&F45)+1),PUAN!$Q$4:$R$111,2,2)," ")) ->  | I45: 9 | J45: 2000M-3-9 | K45: =IF(ISERROR(VLOOKUP(J45,#REF!,2,0)),"",(VLOOKUP(J45,#REF!,2,0))) ->  | L45: =IF(ISERROR(VLOOKUP(J45,#REF!,4,0)),"",(VLOOKUP(J45,#REF!,4,0))) ->  | M45: =IF(ISERROR(VLOOKUP(J45,#REF!,5,0)),"",(VLOOKUP(J45,#REF!,5,0))) ->  | N45: =IF(ISERROR(VLOOKUP(J45,#REF!,6,0)),"",(VLOOKUP(J45,#REF!,6,0))) -> 
G46: =IF(ISTEXT(F46)," ",IFERROR(VLOOKUP(SMALL(PUAN!$Q$4:$R$111,COUNTIF(PUAN!$Q$4:$R$111,"<"&F46)+1),PUAN!$Q$4:$R$111,2,2)," ")) ->  | I46: 10 | J46: 2000M-3-10 | K46: =IF(ISERROR(VLOOKUP(J46,#REF!,2,0)),"",(VLOOKUP(J46,#REF!,2,0))) ->  | L46: =IF(ISERROR(VLOOKUP(J46,#REF!,4,0)),"",(VLOOKUP(J46,#REF!,4,0))) ->  | M46: =IF(ISERROR(VLOOKUP(J46,#REF!,5,0)),"",(VLOOKUP(J46,#REF!,5,0))) ->  | N46: =IF(ISERROR(VLOOKUP(J46,#REF!,6,0)),"",(VLOOKUP(J46,#REF!,6,0))) -> 
G47: =IF(ISTEXT(F47)," ",IFERROR(VLOOKUP(SMALL(PUAN!$Q$4:$R$111,COUNTIF(PUAN!$Q$4:$R$111,"<"&F47)+1),PUAN!$Q$4:$R$111,2,2)," ")) ->  | I47: 11 | J47: 2000M-3-11 | K47: =IF(ISERROR(VLOOKUP(J47,#REF!,2,0)),"",(VLOOKUP(J47,#REF!,2,0))) ->  | L47: =IF(ISERROR(VLOOKUP(J47,#REF!,4,0)),"",(VLOOKUP(J47,#REF!,4,0))) ->  | M47: =IF(ISERROR(VLOOKUP(J47,#REF!,5,0)),"",(VLOOKUP(J47,#REF!,5,0))) ->  | N47: =IF(ISERROR(VLOOKUP(J47,#REF!,6,0)),"",(VLOOKUP(J47,#REF!,6,0))) -> 
G48: =IF(ISTEXT(F48)," ",IFERROR(VLOOKUP(SMALL(PUAN!$Q$4:$R$111,COUNTIF(PUAN!$Q$4:$R$111,"<"&F48)+1),PUAN!$Q$4:$R$111,2,2)," ")) ->  | I48: 12 | J48: 2000M-3-12 | K48: =IF(ISERROR(VLOOKUP(J48,#REF!,2,0)),"",(VLOOKUP(J48,#REF!,2,0))) ->  | L48: =IF(ISERROR(VLOOKUP(J48,#REF!,4,0)),"",(VLOOKUP(J48,#REF!,4,0))) ->  | M48: =IF(ISERROR(VLOOKUP(J48,#REF!,5,0)),"",(VLOOKUP(J48,#REF!,5,0))) ->  | N48: =IF(ISERROR(VLOOKUP(J48,#REF!,6,0)),"",(VLOOKUP(J48,#REF!,6,0))) -> 
A49: 41 | G49: =IF(ISTEXT(F49)," ",IFERROR(VLOOKUP(SMALL(PUAN!$Q$4:$R$111,COUNTIF(PUAN!$Q$4:$R$111,"<"&F49)+1),PUAN!$Q$4:$R$111,2,2)," ")) ->  | I49: 4. SERİ
A50: 42 | G50: =IF(ISTEXT(F50)," ",IFERROR(VLOOKUP(SMALL(PUAN!$Q$4:$R$111,COUNTIF(PUAN!$Q$4:$R$111,"<"&F50)+1),PUAN!$Q$4:$R$111,2,2)," ")) ->  | I50: Sıra No | J50: Formül | K50: Göğüs No | L50: Doğum Tarihi | M50: Adı ve Soyadı | N50: Okulu
A51: 43 | G51: =IF(ISTEXT(F51)," ",IFERROR(VLOOKUP(SMALL(PUAN!$Q$4:$R$111,COUNTIF(PUAN!$Q$4:$R$111,"<"&F51)+1),PUAN!$Q$4:$R$111,2,2)," ")) ->  | I51: 1 | J51: 2000M-4-1 | K51: =IF(ISERROR(VLOOKUP(J51,#REF!,2,0)),"",(VLOOKUP(J51,#REF!,2,0))) ->  | L51: =IF(ISERROR(VLOOKUP(J51,#REF!,4,0)),"",(VLOOKUP(J51,#REF!,4,0))) ->  | M51: =IF(ISERROR(VLOOKUP(J51,#REF!,5,0)),"",(VLOOKUP(J51,#REF!,5,0))) ->  | N51: =IF(ISERROR(VLOOKUP(J51,#REF!,6,0)),"",(VLOOKUP(J51,#REF!,6,0))) -> 
A52: 44 | G52: =IF(ISTEXT(F52)," ",IFERROR(VLOOKUP(SMALL(PUAN!$Q$4:$R$111,COUNTIF(PUAN!$Q$4:$R$111,"<"&F52)+1),PUAN!$Q$4:$R$111,2,2)," ")) ->  | I52: 2 | J52: 2000M-4-2 | K52: =IF(ISERROR(VLOOKUP(J52,#REF!,2,0)),"",(VLOOKUP(J52,#REF!,2,0))) ->  | L52: =IF(ISERROR(VLOOKUP(J52,#REF!,4,0)),"",(VLOOKUP(J52,#REF!,4,0))) ->  | M52: =IF(ISERROR(VLOOKUP(J52,#REF!,5,0)),"",(VLOOKUP(J52,#REF!,5,0))) ->  | N52: =IF(ISERROR(VLOOKUP(J52,#REF!,6,0)),"",(VLOOKUP(J52,#REF!,6,0))) -> 
A53: 45 | G53: =IF(ISTEXT(F53)," ",IFERROR(VLOOKUP(SMALL(PUAN!$Q$4:$R$111,COUNTIF(PUAN!$Q$4:$R$111,"<"&F53)+1),PUAN!$Q$4:$R$111,2,2)," ")) ->  | I53: 3 | J53: 2000M-4-3 | K53: =IF(ISERROR(VLOOKUP(J53,#REF!,2,0)),"",(VLOOKUP(J53,#REF!,2,0))) ->  | L53: =IF(ISERROR(VLOOKUP(J53,#REF!,4,0)),"",(VLOOKUP(J53,#REF!,4,0))) ->  | M53: =IF(ISERROR(VLOOKUP(J53,#REF!,5,0)),"",(VLOOKUP(J53,#REF!,5,0))) ->  | N53: =IF(ISERROR(VLOOKUP(J53,#REF!,6,0)),"",(VLOOKUP(J53,#REF!,6,0))) -> 
A54: 46 | G54: =IF(ISTEXT(F54)," ",IFERROR(VLOOKUP(SMALL(PUAN!$Q$4:$R$111,COUNTIF(PUAN!$Q$4:$R$111,"<"&F54)+1),PUAN!$Q$4:$R$111,2,2)," ")) ->  | I54: 4 | J54: 2000M-4-4 | K54: =IF(ISERROR(VLOOKUP(J54,#REF!,2,0)),"",(VLOOKUP(J54,#REF!,2,0))) ->  | L54: =IF(ISERROR(VLOOKUP(J54,#REF!,4,0)),"",(VLOOKUP(J54,#REF!,4,0))) ->  | M54: =IF(ISERROR(VLOOKUP(J54,#REF!,5,0)),"",(VLOOKUP(J54,#REF!,5,0))) ->  | N54: =IF(ISERROR(VLOOKUP(J54,#REF!,6,0)),"",(VLOOKUP(J54,#REF!,6,0))) -> 
A55: 47 | G55: =IF(ISTEXT(F55)," ",IFERROR(VLOOKUP(SMALL(PUAN!$Q$4:$R$111,COUNTIF(PUAN!$Q$4:$R$111,"<"&F55)+1),PUAN!$Q$4:$R$111,2,2)," ")) ->  | I55: 5 | J55: 2000M-4-5 | K55: =IF(ISERROR(VLOOKUP(J55,#REF!,2,0)),"",(VLOOKUP(J55,#REF!,2,0))) ->  | L55: =IF(ISERROR(VLOOKUP(J55,#REF!,4,0)),"",(VLOOKUP(J55,#REF!,4,0))) ->  | M55: =IF(ISERROR(VLOOKUP(J55,#REF!,5,0)),"",(VLOOKUP(J55,#REF!,5,0))) ->  | N55: =IF(ISERROR(VLOOKUP(J55,#REF!,6,0)),"",(VLOOKUP(J55,#REF!,6,0))) -> 
A56: 48 | G56: =IF(ISTEXT(F56)," ",IFERROR(VLOOKUP(SMALL(PUAN!$Q$4:$R$111,COUNTIF(PUAN!$Q$4:$R$111,"<"&F56)+1),PUAN!$Q$4:$R$111,2,2)," ")) ->  | I56: 6 | J56: 2000M-4-6 | K56: =IF(ISERROR(VLOOKUP(J56,#REF!,2,0)),"",(VLOOKUP(J56,#REF!,2,0))) ->  | L56: =IF(ISERROR(VLOOKUP(J56,#REF!,4,0)),"",(VLOOKUP(J56,#REF!,4,0))) ->  | M56: =IF(ISERROR(VLOOKUP(J56,#REF!,5,0)),"",(VLOOKUP(J56,#REF!,5,0))) ->  | N56: =IF(ISERROR(VLOOKUP(J56,#REF!,6,0)),"",(VLOOKUP(J56,#REF!,6,0))) -> 
A57: 49 | G57: =IF(ISTEXT(F57)," ",IFERROR(VLOOKUP(SMALL(PUAN!$Q$4:$R$111,COUNTIF(PUAN!$Q$4:$R$111,"<"&F57)+1),PUAN!$Q$4:$R$111,2,2)," ")) ->  | I57: 7 | J57: 2000M-4-7 | K57: =IF(ISERROR(VLOOKUP(J57,#REF!,2,0)),"",(VLOOKUP(J57,#REF!,2,0))) ->  | L57: =IF(ISERROR(VLOOKUP(J57,#REF!,4,0)),"",(VLOOKUP(J57,#REF!,4,0))) ->  | M57: =IF(ISERROR(VLOOKUP(J57,#REF!,5,0)),"",(VLOOKUP(J57,#REF!,5,0))) ->  | N57: =IF(ISERROR(VLOOKUP(J57,#REF!,6,0)),"",(VLOOKUP(J57,#REF!,6,0))) -> 
A58: 50 | G58: =IF(ISTEXT(F58)," ",IFERROR(VLOOKUP(SMALL(PUAN!$Q$4:$R$111,COUNTIF(PUAN!$Q$4:$R$111,"<"&F58)+1),PUAN!$Q$4:$R$111,2,2)," ")) ->  | I58: 8 | J58: 2000M-4-8 | K58: =IF(ISERROR(VLOOKUP(J58,#REF!,2,0)),"",(VLOOKUP(J58,#REF!,2,0))) ->  | L58: =IF(ISERROR(VLOOKUP(J58,#REF!,4,0)),"",(VLOOKUP(J58,#REF!,4,0))) ->  | M58: =IF(ISERROR(VLOOKUP(J58,#REF!,5,0)),"",(VLOOKUP(J58,#REF!,5,0))) ->  | N58: =IF(ISERROR(VLOOKUP(J58,#REF!,6,0)),"",(VLOOKUP(J58,#REF!,6,0))) -> 
A59: 51 | G59: =IF(ISTEXT(F59)," ",IFERROR(VLOOKUP(SMALL(PUAN!$Q$4:$R$111,COUNTIF(PUAN!$Q$4:$R$111,"<"&F59)+1),PUAN!$Q$4:$R$111,2,2)," ")) ->  | I59: 9 | J59: 2000M-4-9 | K59: =IF(ISERROR(VLOOKUP(J59,#REF!,2,0)),"",(VLOOKUP(J59,#REF!,2,0))) ->  | L59: =IF(ISERROR(VLOOKUP(J59,#REF!,4,0)),"",(VLOOKUP(J59,#REF!,4,0))) ->  | M59: =IF(ISERROR(VLOOKUP(J59,#REF!,5,0)),"",(VLOOKUP(J59,#REF!,5,0))) ->  | N59: =IF(ISERROR(VLOOKUP(J59,#REF!,6,0)),"",(VLOOKUP(J59,#REF!,6,0))) -> 
A60: 52 | G60: =IF(ISTEXT(F60)," ",IFERROR(VLOOKUP(SMALL(PUAN!$Q$4:$R$111,COUNTIF(PUAN!$Q$4:$R$111,"<"&F60)+1),PUAN!$Q$4:$R$111,2,2)," ")) ->  | I60: 10 | J60: 2000M-4-10 | K60: =IF(ISERROR(VLOOKUP(J60,#REF!,2,0)),"",(VLOOKUP(J60,#REF!,2,0))) ->  | L60: =IF(ISERROR(VLOOKUP(J60,#REF!,4,0)),"",(VLOOKUP(J60,#REF!,4,0))) ->  | M60: =IF(ISERROR(VLOOKUP(J60,#REF!,5,0)),"",(VLOOKUP(J60,#REF!,5,0))) ->  | N60: =IF(ISERROR(VLOOKUP(J60,#REF!,6,0)),"",(VLOOKUP(J60,#REF!,6,0))) -> 
A61: 53 | G61: =IF(ISTEXT(F61)," ",IFERROR(VLOOKUP(SMALL(PUAN!$Q$4:$R$111,COUNTIF(PUAN!$Q$4:$R$111,"<"&F61)+1),PUAN!$Q$4:$R$111,2,2)," ")) ->  | I61: 11 | J61: 2000M-4-11 | K61: =IF(ISERROR(VLOOKUP(J61,#REF!,2,0)),"",(VLOOKUP(J61,#REF!,2,0))) ->  | L61: =IF(ISERROR(VLOOKUP(J61,#REF!,4,0)),"",(VLOOKUP(J61,#REF!,4,0))) ->  | M61: =IF(ISERROR(VLOOKUP(J61,#REF!,5,0)),"",(VLOOKUP(J61,#REF!,5,0))) ->  | N61: =IF(ISERROR(VLOOKUP(J61,#REF!,6,0)),"",(VLOOKUP(J61,#REF!,6,0))) -> 
A62: 54 | G62: =IF(ISTEXT(F62)," ",IFERROR(VLOOKUP(SMALL(PUAN!$Q$4:$R$111,COUNTIF(PUAN!$Q$4:$R$111,"<"&F62)+1),PUAN!$Q$4:$R$111,2,2)," ")) ->  | I62: 12 | J62: 2000M-4-12 | K62: =IF(ISERROR(VLOOKUP(J62,#REF!,2,0)),"",(VLOOKUP(J62,#REF!,2,0))) ->  | L62: =IF(ISERROR(VLOOKUP(J62,#REF!,4,0)),"",(VLOOKUP(J62,#REF!,4,0))) ->  | M62: =IF(ISERROR(VLOOKUP(J62,#REF!,5,0)),"",(VLOOKUP(J62,#REF!,5,0))) ->  | N62: =IF(ISERROR(VLOOKUP(J62,#REF!,6,0)),"",(VLOOKUP(J62,#REF!,6,0))) -> 
A64: Müsabakalar Direktörü | E64: Baş Hakem | F64: Lider | H64: Sekreter | M64: Hakem | N64: Hakem | P64: Hakem

Sheet Yüksek
A2: ='YARIŞMA BİLGİLERİ'!F19 -> KOÇ TOPLULUĞU SPOR ŞENLİĞİ PUANLI ATLETİZM YARIŞLARI
A3: Yarışma : | E3: ='YARIŞMA PROGRAMI'!C10 -> Yüksek Atlama
A4: Kategori : | E4: ='YARIŞMA BİLGİLERİ'!F21 -> Kadınlar | AG4: ='YARIŞMA PROGRAMI'!B10 -> 15 Nisan 2017 - 10:15
AG5: =NOW() -> 42842.61208
A6: SIRA NO | C6: GÖĞÜS NO | D6: DOĞUM TARİHİ | E6: ADI VE SOYADI | F6: OKULU | G6: A T L A M A L A R | AG6: SONUÇ | AH6: PUAN | AI6: KLASMAN
G7: 90 | H7: 95 | I7: 100 | J7: 105 | K7: 110 | L7: 115 | M7: 118 | N7: 121 | O7: 124 | P7: 127 | Q7: 130 | R7: 133 | AA7: 198 | AF7: 213
A8: 1 | B8: Yüksek-24 | C8: =IF(ISERROR(VLOOKUP(B8,#REF!,2,0)),"",(VLOOKUP(B8,#REF!,2,0))) ->  | D8: =IF(ISERROR(VLOOKUP(B8,#REF!,4,0)),"",(VLOOKUP(B8,#REF!,4,0))) ->  | E8: CANAN FİL | F8: FORD OTOSAN | G8: O | H8: O | I8: - | J8: - | K8: O | L8: O | M8: O | N8: O | O8: O | P8: O | Q8: XO | R8: Xr | AG8: 130 | AH8: 11 | AI8: 4
A9: 2 | B9: Yüksek-7 | C9: =IF(ISERROR(VLOOKUP(B9,#REF!,2,0)),"",(VLOOKUP(B9,#REF!,2,0))) ->  | D9: =IF(ISERROR(VLOOKUP(B9,#REF!,4,0)),"",(VLOOKUP(B9,#REF!,4,0))) ->  | E9: SİNEM BAŞ | F9: TÜPRAŞ | G9: - | H9: - | I9: - | J9: - | K9: O | L9: O | M9: O | N9: O | O9: XO | P9: XXO | Q9: XXX | AG9: 127 | AH9: 10 | AI9: 14
A10: 3 | B10: Yüksek-25 | C10: =IF(ISERROR(VLOOKUP(B10,#REF!,2,0)),"",(VLOOKUP(B10,#REF!,2,0))) ->  | D10: =IF(ISERROR(VLOOKUP(B10,#REF!,4,0)),"",(VLOOKUP(B10,#REF!,4,0))) ->  | E10: İNCİ ÖZDEMİR | F10: FORD OTOSAN | G10: O | H10: O | I10: - | J10: - | K10: O | L10: O | M10: XXO | N10: XO | O10: XXO | P10: XXX | AG10: 124 | AH10: -
A11: 4 | B11: Yüksek-2 | C11: =IF(ISERROR(VLOOKUP(B11,#REF!,2,0)),"",(VLOOKUP(B11,#REF!,2,0))) ->  | D11: =IF(ISERROR(VLOOKUP(B11,#REF!,4,0)),"",(VLOOKUP(B11,#REF!,4,0))) ->  | E11: BETÜL ÖZYAY | F11: ARÇELİK | G11: O | H11: O | I11: O | J11: O | K11: XO | L11: XO | M11: XXO | N11: O | O11: XXO | P11: XXX | AG11: 124 | AH11: 9 | AI11: 6
A12: 5 | B12: Yüksek-5 | C12: =IF(ISERROR(VLOOKUP(B12,#REF!,2,0)),"",(VLOOKUP(B12,#REF!,2,0))) ->  | D12: =IF(ISERROR(VLOOKUP(B12,#REF!,4,0)),"",(VLOOKUP(B12,#REF!,4,0))) ->  | E12: BİNAR KALKANLAR | F12: TÜPRAŞ | G12: O | H12: O | I12: O | J12: O | K12: O | L12: O | M12: O | N12: O | O12: XXX | AG12: 121 | AH12: - | AI12: 14
A13: 6 | B13: Yüksek-22 | C13: =IF(ISERROR(VLOOKUP(B13,#REF!,2,0)),"",(VLOOKUP(B13,#REF!,2,0))) ->  | D13: =IF(ISERROR(VLOOKUP(B13,#REF!,4,0)),"",(VLOOKUP(B13,#REF!,4,0))) ->  | E13: İPEK AVCILAR | F13: YAPI KREDİ | G13: O | H13: O | I13: O | J13: O | K13: O | L13: XXX | AG13: 110 | AH13: 8 | AI13: 4
A14: 7 | B14: Yüksek-6 | C14: =IF(ISERROR(VLOOKUP(B14,#REF!,2,0)),"",(VLOOKUP(B14,#REF!,2,0))) ->  | D14: =IF(ISERROR(VLOOKUP(B14,#REF!,4,0)),"",(VLOOKUP(B14,#REF!,4,0))) ->  | E14: AYŞEGÜL BAYRAK | F14: YAPI KREDİ | G14: O | H14: O | I14: O | J14: O | K14: XXX | AG14: 105 | AH14: - | AI14: 2
A15: 8 | B15: Yüksek-11 | C15: =IF(ISERROR(VLOOKUP(B15,#REF!,2,0)),"",(VLOOKUP(B15,#REF!,2,0))) ->  | D15: =IF(ISERROR(VLOOKUP(B15,#REF!,4,0)),"",(VLOOKUP(B15,#REF!,4,0))) ->  | E15: SERAP YÜKSEK | F15: TOFAŞ | G15: XO | H15: O | I15: O | J15: O | K15: XXX | AG15: 105 | AH15: 7 | AI15: 16
A16: 9 | B16: Yüksek-13 | C16: =IF(ISERROR(VLOOKUP(B16,#REF!,2,0)),"",(VLOOKUP(B16,#REF!,2,0))) ->  | D16: =IF(ISERROR(VLOOKUP(B16,#REF!,4,0)),"",(VLOOKUP(B16,#REF!,4,0))) ->  | E16: CEMİLE ALİBAŞOĞLU | F16: TOFAŞ | G16: - | H16: O | I16: O | J16: XXX | AG16: 100 | AH16: - | AI16: 17
A17: 10 | E17: ÖZLEM KURT | F17: ZER | G17: O | H17: XO | I17: XO | J17: XXX | AG17: 100 | AH17: 6
A18: - | B18: Yüksek-15 | C18: =IF(ISERROR(VLOOKUP(B18,#REF!,2,0)),"",(VLOOKUP(B18,#REF!,2,0))) ->  | D18: =IF(ISERROR(VLOOKUP(B18,#REF!,4,0)),"",(VLOOKUP(B18,#REF!,4,0))) ->  | E18: GİZAY ULUTAŞ | F18: ZER | G18: XXX | AG18: NM | AH18: - | AI18: -
A19: - | E19: DENİZ ILGINER | F19: ZER | G19: XXX | AG19: NM | AH19: -
A20: - | E20: HÜLYA ÇALIKOĞLU | F20: ZER | G20: Xr | AG20: NM | AH20: -
A21: - | B21: Yüksek-3 | C21: =IF(ISERROR(VLOOKUP(B21,#REF!,2,0)),"",(VLOOKUP(B21,#REF!,2,0))) ->  | D21: =IF(ISERROR(VLOOKUP(B21,#REF!,4,0)),"",(VLOOKUP(B21,#REF!,4,0))) ->  | E21: ESİN YILMAZ | F21: YAPI KREDİ | AG21: DNS | AI21: 3
A22: - | B22: Yüksek-23 | C22: =IF(ISERROR(VLOOKUP(B22,#REF!,2,0)),"",(VLOOKUP(B22,#REF!,2,0))) ->  | D22: =IF(ISERROR(VLOOKUP(B22,#REF!,4,0)),"",(VLOOKUP(B22,#REF!,4,0))) ->  | E22: EDA ERDİK | F22: OPET | AG22: DNS | AI22: 7
A23: - | B23: Yüksek-12 | C23: =IF(ISERROR(VLOOKUP(B23,#REF!,2,0)),"",(VLOOKUP(B23,#REF!,2,0))) ->  | D23: =IF(ISERROR(VLOOKUP(B23,#REF!,4,0)),"",(VLOOKUP(B23,#REF!,4,0))) ->  | E23: BURCU GÜNEL | F23: OPET | AG23: DNS | AI23: 8
A24: - | B24: Yüksek-18 | C24: =IF(ISERROR(VLOOKUP(B24,#REF!,2,0)),"",(VLOOKUP(B24,#REF!,2,0))) ->  | D24: =IF(ISERROR(VLOOKUP(B24,#REF!,4,0)),"",(VLOOKUP(B24,#REF!,4,0))) ->  | E24: BEGÜM CANSU DEMİR | F24: OPET | AG24: DNS | AI24: 9
A25: - | B25: Yüksek-16 | C25: =IF(ISERROR(VLOOKUP(B25,#REF!,2,0)),"",(VLOOKUP(B25,#REF!,2,0))) ->  | D25: =IF(ISERROR(VLOOKUP(B25,#REF!,4,0)),"",(VLOOKUP(B25,#REF!,4,0))) ->  | E25: DUYGU CESUR BOLAT | F25: OPET | AG25: DNS | AI25: 10
A26: - | B26: Yüksek-1 | C26: =IF(ISERROR(VLOOKUP(B26,#REF!,2,0)),"",(VLOOKUP(B26,#REF!,2,0))) ->  | D26: =IF(ISERROR(VLOOKUP(B26,#REF!,4,0)),"",(VLOOKUP(B26,#REF!,4,0))) ->  | E26: DİDEM EREL | F26: TOFAŞ | AG26: DNS | AI26: 18
A27: - | B27: Yüksek-8 | C27: =IF(ISERROR(VLOOKUP(B27,#REF!,2,0)),"",(VLOOKUP(B27,#REF!,2,0))) ->  | D27: =IF(ISERROR(VLOOKUP(B27,#REF!,4,0)),"",(VLOOKUP(B27,#REF!,4,0))) ->  | E27: ÜLVİYE DERYA COŞKUN | F27: ZER | AG27: DNS | AI27: 18
A28: - | B28: Yüksek-17 | C28: =IF(ISERROR(VLOOKUP(B28,#REF!,2,0)),"",(VLOOKUP(B28,#REF!,2,0))) ->  | D28: =IF(ISERROR(VLOOKUP(B28,#REF!,4,0)),"",(VLOOKUP(B28,#REF!,4,0))) ->  | E28: ÇİĞDEM KABİL ŞİMŞEK | F28: ZER | AG28: DNS | AI28: 20
A29: - | B29: Yüksek-20 | C29: =IF(ISERROR(VLOOKUP(B29,#REF!,2,0)),"",(VLOOKUP(B29,#REF!,2,0))) ->  | D29: =IF(ISERROR(VLOOKUP(B29,#REF!,4,0)),"",(VLOOKUP(B29,#REF!,4,0))) ->  | E29: ÜLKÜ BİRİŞİK ATEŞ | F29: ZER | AG29: DNS | AI29: -
A30: - | B30: Yüksek-21 | C30: =IF(ISERROR(VLOOKUP(B30,#REF!,2,0)),"",(VLOOKUP(B30,#REF!,2,0))) ->  | D30: =IF(ISERROR(VLOOKUP(B30,#REF!,4,0)),"",(VLOOKUP(B30,#REF!,4,0))) ->  | E30: AYFER ÇEKÇİ | F30: ZER | AG30: DNS | AI30: -
A31: - | E31: EZGİ ORAN | F31: ZER | AG31: DNS
A32: - | B32: Yüksek-10 | C32: =IF(ISERROR(VLOOKUP(B32,#REF!,2,0)),"",(VLOOKUP(B32,#REF!,2,0))) ->  | D32: =IF(ISERROR(VLOOKUP(B32,#REF!,4,0)),"",(VLOOKUP(B32,#REF!,4,0))) ->  | E32: SEDA KARAKOÇ | F32: ZER | AG32: DNS | AI32: -
A34: Müsabaka Direktörü | F34: Baş Hakem | J34: Lider | S34: Sekreter | AA34: Hakem | AG34: Hakem

Sheet Uzun
A2: ='YARIŞMA BİLGİLERİ'!F19 -> KOÇ TOPLULUĞU SPOR ŞENLİĞİ PUANLI ATLETİZM YARIŞLARI
A3: Yarışma : | D3: ='YARIŞMA PROGRAMI'!C13 -> Uzun Atlama
A4: Kategori : | D4: ='YARIŞMA BİLGİLERİ'!F21 -> Kadınlar | I4: Tarih-Saat : | J4: ='YARIŞMA PROGRAMI'!B13 -> 2017-04-15T10:15:00
K5: =NOW() -> 42842.61208
A6: SIRA NO | C6: GÖĞÜS NO | D6: DOĞUM TARİHİ Gün/Ay/Yıl | E6: ADI VE SOYADI | F6: TAKIMI | G6: A T L A M A L A R | K6: SONUÇ | L6: PUAN | M6: RÜZGAR
G7: 1 | H7: 2 | I7: 3 | J7: 4
A8: 1 | B8: UZUN-3 | C8: =IF(ISERROR(VLOOKUP(B8,#REF!,2,0)),"",(VLOOKUP(B8,#REF!,2,0))) ->  | D8: =IF(ISERROR(VLOOKUP(B8,#REF!,4,0)),"",(VLOOKUP(B8,#REF!,4,0))) ->  | E8: CANAN FİL | F8: FORD OTOSAN | G8: 397 | H8: 502 | K8: =MAX(G8:J8) -> 502 | L8: 11
A9: 2 | B9: UZUN-1 | C9: =IF(ISERROR(VLOOKUP(B9,#REF!,2,0)),"",(VLOOKUP(B9,#REF!,2,0))) ->  | D9: =IF(ISERROR(VLOOKUP(B9,#REF!,4,0)),"",(VLOOKUP(B9,#REF!,4,0))) ->  | E9: SEMA KUNUK | F9: FORD OTOSAN | G9: 408 | H9: 394 | I9: 415 | J9: 377 | K9: 415 | L9: -
A10: 3 | B10: UZUN-8 | C10: =IF(ISERROR(VLOOKUP(B10,#REF!,2,0)),"",(VLOOKUP(B10,#REF!,2,0))) ->  | D10: =IF(ISERROR(VLOOKUP(B10,#REF!,4,0)),"",(VLOOKUP(B10,#REF!,4,0))) ->  | E10: KADER GÜNGÖR | F10: OPET | G10: 385 | H10: 361 | I10: 372 | J10: 362 | K10: 385 | L10: 10
A11: 4 | B11: UZUN-13 | C11: =IF(ISERROR(VLOOKUP(B11,#REF!,2,0)),"",(VLOOKUP(B11,#REF!,2,0))) ->  | D11: =IF(ISERROR(VLOOKUP(B11,#REF!,4,0)),"",(VLOOKUP(B11,#REF!,4,0))) ->  | E11: İPEK AVCILAR | F11: YAPI KREDİ | G11: 353 | H11: - | I11: X | J11: 382 | K11: 382 | L11: 9
A12: 5 | E12: BETÜL ÖZAY | F12: ARÇELİK | G12: X | H12: 374 | I12: 329 | J12: 360 | K12: 374 | L12: 8
A13: 6 | B13: UZUN-7 | C13: =IF(ISERROR(VLOOKUP(B13,#REF!,2,0)),"",(VLOOKUP(B13,#REF!,2,0))) ->  | D13: =IF(ISERROR(VLOOKUP(B13,#REF!,4,0)),"",(VLOOKUP(B13,#REF!,4,0))) ->  | E13: ESİN YILMAZ | F13: YAPI KREDİ | G13: 353 | H13: 359 | I13: X | J13: 372 | K13: 372 | L13: -
A14: 7 | E14: SİNEM BAŞ | F14: TÜPRAŞ | G14: 356 | H14: 356 | K14: 356 | L14: 7
A15: 8 | E15: TÜRKAN KORKMAZ | F15: TOFAŞ | G15: - | H15: 337 | I15: 295 | J15: 253 | K15: 337 | L15: 6
A16: 9 | B16: UZUN-18 | C16: =IF(ISERROR(VLOOKUP(B16,#REF!,2,0)),"",(VLOOKUP(B16,#REF!,2,0))) ->  | D16: =IF(ISERROR(VLOOKUP(B16,#REF!,4,0)),"",(VLOOKUP(B16,#REF!,4,0))) ->  | E16: BURCU UMAY | F16: YAPI KREDİ | G16: 299 | H16: 319 | K16: 319 | L16: -
A17: 10 | B17: UZUN-5 | C17: =IF(ISERROR(VLOOKUP(B17,#REF!,2,0)),"",(VLOOKUP(B17,#REF!,2,0))) ->  | D17: =IF(ISERROR(VLOOKUP(B17,#REF!,4,0)),"",(VLOOKUP(B17,#REF!,4,0))) ->  | E17: ECEMSU HANGÜL | F17: KOÇ SİSTEM | G17: 295 | H17: 315 | K17: 315 | L17: 5
A18: 11 | E18: ESİN KORKUT | F18: ARÇELİK | G18: X | H18: 313 | K18: 313 | L18: -
A19: 12 | E19: RUKİYE DİNDAR | F19: TOFAŞ | G19: 286 | H19: 306 | K19: 306 | L19: -
A20: 13 | B20: UZUN-2 | C20: =IF(ISERROR(VLOOKUP(B20,#REF!,2,0)),"",(VLOOKUP(B20,#REF!,2,0))) ->  | D20: =IF(ISERROR(VLOOKUP(B20,#REF!,4,0)),"",(VLOOKUP(B20,#REF!,4,0))) ->  | E20: AYSU EGELİ | F20: ARÇELİK | G20: 206 | H20: 266 | K20: 266 | L20: -
A21: 14 | B21: UZUN-4 | C21: =IF(ISERROR(VLOOKUP(B21,#REF!,2,0)),"",(VLOOKUP(B21,#REF!,2,0))) ->  | D21: =IF(ISERROR(VLOOKUP(B21,#REF!,4,0)),"",(VLOOKUP(B21,#REF!,4,0))) ->  | E21: BEGÜM CANSU DEMİR | F21: OPET | G21: X | H21: 263 | K21: 263 | L21: -
A22: 15 | B22: UZUN-12 | C22: =IF(ISERROR(VLOOKUP(B22,#REF!,2,0)),"",(VLOOKUP(B22,#REF!,2,0))) ->  | D22: =IF(ISERROR(VLOOKUP(B22,#REF!,4,0)),"",(VLOOKUP(B22,#REF!,4,0))) ->  | E22: BURCU FERDA YILMAZ | F22: YAPI KREDİ | G22: X | H22: 257 | K22: 257 | L22: -
A23: 16 | B23: UZUN-13 | C23: =IF(ISERROR(VLOOKUP(B23,#REF!,2,0)),"",(VLOOKUP(B23,#REF!,2,0))) ->  | D23: =IF(ISERROR(VLOOKUP(B23,#REF!,4,0)),"",(VLOOKUP(B23,#REF!,4,0))) ->  | E23: EZGİ ORAN | F23: ZER | G23: 173 | H23: 218 | K23: 218 | L23: 4
A24: 17 | B24: UZUN-10 | C24: =IF(ISERROR(VLOOKUP(B24,#REF!,2,0)),"",(VLOOKUP(B24,#REF!,2,0))) ->  | D24: =IF(ISERROR(VLOOKUP(B24,#REF!,4,0)),"",(VLOOKUP(B24,#REF!,4,0))) ->  | E24: MELİKE ERBAŞI | F24: ZER | G24: 215 | H24: 190 | K24: 215 | L24: -
A25: 18 | B25: UZUN-15 | C25: =IF(ISERROR(VLOOKUP(B25,#REF!,2,0)),"",(VLOOKUP(B25,#REF!,2,0))) ->  | D25: =IF(ISERROR(VLOOKUP(B25,#REF!,4,0)),"",(VLOOKUP(B25,#REF!,4,0))) ->  | E25: GİZAY ULUTAŞ | F25: ZER | G25: 208 | H25: 212 | K25: 212 | L25: -
A26: 19 | B26: UZUN-14 | C26: =IF(ISERROR(VLOOKUP(B26,#REF!,2,0)),"",(VLOOKUP(B26,#REF!,2,0))) ->  | D26: =IF(ISERROR(VLOOKUP(B26,#REF!,4,0)),"",(VLOOKUP(B26,#REF!,4,0))) ->  | E26: ÖZLEM KURT | F26: ZER | G26: 200 | H26: 204 | K26: 204 | L26: -
A27: 20 | B27: UZUN-21 | C27: =IF(ISERROR(VLOOKUP(B27,#REF!,2,0)),"",(VLOOKUP(B27,#REF!,2,0))) ->  | D27: =IF(ISERROR(VLOOKUP(B27,#REF!,4,0)),"",(VLOOKUP(B27,#REF!,4,0))) ->  | E27: DENİZ ILGINER | F27: ZER | G27: 203 | H27: X | K27: 203 | L27: -
A28: - | B28: UZUN-22 | C28: =IF(ISERROR(VLOOKUP(B28,#REF!,2,0)),"",(VLOOKUP(B28,#REF!,2,0))) ->  | D28: =IF(ISERROR(VLOOKUP(B28,#REF!,4,0)),"",(VLOOKUP(B28,#REF!,4,0))) ->  | E28: HÜLYA ÇALIKOĞLU | F28: ZER | G28: X | H28: X | K28: NM
A29: - | B29: UZUN-9 | C29: =IF(ISERROR(VLOOKUP(B29,#REF!,2,0)),"",(VLOOKUP(B29,#REF!,2,0))) ->  | D29: =IF(ISERROR(VLOOKUP(B29,#REF!,4,0)),"",(VLOOKUP(B29,#REF!,4,0))) ->  | E29: EDA ERDİK | F29: OPET | K29: DNS | L29: -
A30: - | B30: UZUN-16 | C30: =IF(ISERROR(VLOOKUP(B30,#REF!,2,0)),"",(VLOOKUP(B30,#REF!,2,0))) ->  | D30: =IF(ISERROR(VLOOKUP(B30,#REF!,4,0)),"",(VLOOKUP(B30,#REF!,4,0))) ->  | E30: BURCU GÜNEL | F30: OPET | K30: DNS | L30: -
A31: - | B31: UZUN-23 | C31: =IF(ISERROR(VLOOKUP(B31,#REF!,2,0)),"",(VLOOKUP(B31,#REF!,2,0))) ->  | D31: =IF(ISERROR(VLOOKUP(B31,#REF!,4,0)),"",(VLOOKUP(B31,#REF!,4,0))) ->  | E31: DUYGU CESUR BOLAT | F31: OPET | K31: DNS
A32: - | E32: DİDEM EREL | F32: TOFAŞ | K32: DNS | L32: -
A33: - | B33: UZUN-17 | C33: =IF(ISERROR(VLOOKUP(B33,#REF!,2,0)),"",(VLOOKUP(B33,#REF!,2,0))) ->  | D33: =IF(ISERROR(VLOOKUP(B33,#REF!,4,0)),"",(VLOOKUP(B33,#REF!,4,0))) ->  | E33: ÜLVİYE DERYA COŞKUN | F33: ZER | K33: DNS | L33: -
A34: - | B34: UZUN-11 | C34: =IF(ISERROR(VLOOKUP(B34,#REF!,2,0)),"",(VLOOKUP(B34,#REF!,2,0))) ->  | D34: =IF(ISERROR(VLOOKUP(B34,#REF!,4,0)),"",(VLOOKUP(B34,#REF!,4,0))) ->  | E34: ÇİĞDEM KABİL ŞİMŞEK | F34: ZER | K34: DNS | L34: -
A35: - | B35: UZUN-20 | C35: =IF(ISERROR(VLOOKUP(B35,#REF!,2,0)),"",(VLOOKUP(B35,#REF!,2,0))) ->  | D35: =IF(ISERROR(VLOOKUP(B35,#REF!,4,0)),"",(VLOOKUP(B35,#REF!,4,0))) ->  | E35: SEDA KARAKOÇ | F35: ZER | K35: DNS | L35: -
A36: - | B36: UZUN-19 | C36: =IF(ISERROR(VLOOKUP(B36,#REF!,2,0)),"",(VLOOKUP(B36,#REF!,2,0))) ->  | D36: =IF(ISERROR(VLOOKUP(B36,#REF!,4,0)),"",(VLOOKUP(B36,#REF!,4,0))) ->  | E36: ÜLKÜ BİRİŞİK ATEŞ | F36: ZER | K36: DNS | L36: -
A37: - | B37: UZUN-6 | C37: =IF(ISERROR(VLOOKUP(B37,#REF!,2,0)),"",(VLOOKUP(B37,#REF!,2,0))) ->  | D37: =IF(ISERROR(VLOOKUP(B37,#REF!,4,0)),"",(VLOOKUP(B37,#REF!,4,0))) ->  | E37: AYFER ÇEKÇİ | F37: ZER | K37: DNS | L37: -
B38: UZUN-24 | C38: =IF(ISERROR(VLOOKUP(B38,#REF!,2,0)),"",(VLOOKUP(B38,#REF!,2,0))) ->  | D38: =IF(ISERROR(VLOOKUP(B38,#REF!,4,0)),"",(VLOOKUP(B38,#REF!,4,0))) ->  | E38: =IF(ISERROR(VLOOKUP(B38,#REF!,5,0)),"",(VLOOKUP(B38,#REF!,5,0))) ->  | F38: =IF(ISERROR(VLOOKUP(B38,#REF!,6,0)),"",(VLOOKUP(B38,#REF!,6,0))) ->  | K38: =MAX(G38:J38) -> 0
B39: UZUN-25 | C39: =IF(ISERROR(VLOOKUP(B39,#REF!,2,0)),"",(VLOOKUP(B39,#REF!,2,0))) ->  | D39: =IF(ISERROR(VLOOKUP(B39,#REF!,4,0)),"",(VLOOKUP(B39,#REF!,4,0))) ->  | E39: =IF(ISERROR(VLOOKUP(B39,#REF!,5,0)),"",(VLOOKUP(B39,#REF!,5,0))) ->  | F39: =IF(ISERROR(VLOOKUP(B39,#REF!,6,0)),"",(VLOOKUP(B39,#REF!,6,0))) ->  | K39: =MAX(G39:J39) -> 0
B40: UZUN-27 | C40: =IF(ISERROR(VLOOKUP(B40,#REF!,2,0)),"",(VLOOKUP(B40,#REF!,2,0))) ->  | D40: =IF(ISERROR(VLOOKUP(B40,#REF!,4,0)),"",(VLOOKUP(B40,#REF!,4,0))) ->  | E40: =IF(ISERROR(VLOOKUP(B40,#REF!,5,0)),"",(VLOOKUP(B40,#REF!,5,0))) ->  | F40: =IF(ISERROR(VLOOKUP(B40,#REF!,6,0)),"",(VLOOKUP(B40,#REF!,6,0))) ->  | K40: =MAX(G40:J40) -> 0
A42: Müsabaka Direktörü | E42: Baş Hakem | F42: Lider | G42: Sekreter | K42: Hakem

Sheet Gülle
A2: ='YARIŞMA BİLGİLERİ'!F19 -> KOÇ TOPLULUĞU SPOR ŞENLİĞİ PUANLI ATLETİZM YARIŞLARI
A3: Yarışma : | D3: Gülle Atma
A4: Kategori : | D4: ='YARIŞMA BİLGİLERİ'!F21 -> Kadınlar | H4: Tarih-Saat : | J4: ='YARIŞMA PROGRAMI'!B14 -> 2017-04-15T10:15:00
K5: =NOW() -> 42842.61208
A6: SIRA NO | C6: GÖĞÜS NO | D6: DOĞUM TARİHİ Gün/Ay/Yıl | E6: ADI VE SOYADI | F6: TAKIMI | G6: A T M A L A R | K6: SONUÇ | L6: PUAN | M6: KLASMAN
G7: 1 | H7: 2 | I7: 3 | J7: 4
A8: 1 | B8: GÜLLE-4 | C8: =IF(ISERROR(VLOOKUP(B8,#REF!,2,0)),"",(VLOOKUP(B8,#REF!,2,0))) ->  | D8: =IF(ISERROR(VLOOKUP(B8,#REF!,4,0)),"",(VLOOKUP(B8,#REF!,4,0))) ->  | E8: SEVCAN BALCI BEYPINAR | F8: FORD OTOSAN | G8: 971 | H8: 955 | I8: 995 | J8: 973 | K8: 995 | L8: 11
A9: 2 | B9: GÜLLE-1 | C9: =IF(ISERROR(VLOOKUP(B9,#REF!,2,0)),"",(VLOOKUP(B9,#REF!,2,0))) ->  | D9: =IF(ISERROR(VLOOKUP(B9,#REF!,4,0)),"",(VLOOKUP(B9,#REF!,4,0))) ->  | E9: SİNEM BAŞ | F9: TÜPRAŞ | G9: x | H9: 977 | I9: 917 | J9: x | K9: =MAX(G9:J9) -> 977 | L9: 10
A10: 3 | B10: GÜLLE-10 | C10: =IF(ISERROR(VLOOKUP(B10,#REF!,2,0)),"",(VLOOKUP(B10,#REF!,2,0))) ->  | D10: =IF(ISERROR(VLOOKUP(B10,#REF!,4,0)),"",(VLOOKUP(B10,#REF!,4,0))) ->  | E10: MELEK KÜPÜÇ | F10: TAT GIDA | G10: 846 | H10: 890 | I10: 874 | J10: 880 | K10: 890 | L10: -
A11: 4 | B11: GÜLLE-3 | C11: =IF(ISERROR(VLOOKUP(B11,#REF!,2,0)),"",(VLOOKUP(B11,#REF!,2,0))) ->  | D11: =IF(ISERROR(VLOOKUP(B11,#REF!,4,0)),"",(VLOOKUP(B11,#REF!,4,0))) ->  | E11: CANAN UZUN | F11: TÜPRAŞ | G11: 788 | H11: 819 | I11: 831 | J11: 823 | K11: 831 | L11: -
A12: 5 | B12: GÜLLE-18 | C12: =IF(ISERROR(VLOOKUP(B12,#REF!,2,0)),"",(VLOOKUP(B12,#REF!,2,0))) ->  | D12: =IF(ISERROR(VLOOKUP(B12,#REF!,4,0)),"",(VLOOKUP(B12,#REF!,4,0))) ->  | E12: YURDAGÜL YILMAZ | F12: ARÇELİK | G12: X | H12: 783 | I12: 771 | J12: 799 | K12: 799 | L12: 9
A13: 6 | B13: GÜLLE-15 | C13: =IF(ISERROR(VLOOKUP(B13,#REF!,2,0)),"",(VLOOKUP(B13,#REF!,2,0))) ->  | D13: =IF(ISERROR(VLOOKUP(B13,#REF!,4,0)),"",(VLOOKUP(B13,#REF!,4,0))) ->  | E13: DİDEM EREL | F13: TOFAŞ | G13: 713 | H13: 757 | I13: 773 | J13: 771 | K13: 773 | L13: 8
A14: 7 | B14: GÜLLE-7 | C14: =IF(ISERROR(VLOOKUP(B14,#REF!,2,0)),"",(VLOOKUP(B14,#REF!,2,0))) ->  | D14: =IF(ISERROR(VLOOKUP(B14,#REF!,4,0)),"",(VLOOKUP(B14,#REF!,4,0))) ->  | E14: AYŞEN BİÇER | F14: YAPI KREDİ | G14: 747 | H14: 753 | I14: 673 | J14: 750 | K14: 753 | L14: 7
A15: 8 | B15: GÜLLE-11 | C15: =IF(ISERROR(VLOOKUP(B15,#REF!,2,0)),"",(VLOOKUP(B15,#REF!,2,0))) ->  | D15: =IF(ISERROR(VLOOKUP(B15,#REF!,4,0)),"",(VLOOKUP(B15,#REF!,4,0))) ->  | E15: TÜRKAN KORKMAZ | F15: TOFAŞ | G15: 658 | H15: 733 | I15: 722 | J15: 713 | K15: 733 | L15: -
A16: 9 | B16: GÜLLE-2 | C16: =IF(ISERROR(VLOOKUP(B16,#REF!,2,0)),"",(VLOOKUP(B16,#REF!,2,0))) ->  | D16: =IF(ISERROR(VLOOKUP(B16,#REF!,4,0)),"",(VLOOKUP(B16,#REF!,4,0))) ->  | E16: ESİN YILMAZ | F16: YAPI KREDİ | G16: 619 | H16: 627 | I16: 551 | J16: 596 | K16: 627 | L16: -
A17: 10 | B17: GÜLLE-12 | C17: =IF(ISERROR(VLOOKUP(B17,#REF!,2,0)),"",(VLOOKUP(B17,#REF!,2,0))) ->  | D17: =IF(ISERROR(VLOOKUP(B17,#REF!,4,0)),"",(VLOOKUP(B17,#REF!,4,0))) ->  | E17: ECEMSU HANGÜL | F17: KOÇ SİSTEM | G17: 522 | H17: 554 | I17: - | J17: r | K17: 554 | L17: 6
A18: 11 | B18: GÜLLE-16 | C18: =IF(ISERROR(VLOOKUP(B18,#REF!,2,0)),"",(VLOOKUP(B18,#REF!,2,0))) ->  | D18: =IF(ISERROR(VLOOKUP(B18,#REF!,4,0)),"",(VLOOKUP(B18,#REF!,4,0))) ->  | E18: CEMİLE ALİBAŞOĞLU | F18: TOFAŞ | G18: 394 | H18: 520 | I18: 495 | J18: 552 | K18: 552 | L18: -
A19: 12 | B19: GÜLLE-20 | C19: =IF(ISERROR(VLOOKUP(B19,#REF!,2,0)),"",(VLOOKUP(B19,#REF!,2,0))) ->  | D19: =IF(ISERROR(VLOOKUP(B19,#REF!,4,0)),"",(VLOOKUP(B19,#REF!,4,0))) ->  | E19: MELİKE ERBAŞI | F19: ZER | G19: x | H19: 526 | I19: 536 | J19: 496 | K19: 536 | L19: 5
A20: 13 | B20: GÜLLE-20 | C20: =IF(ISERROR(VLOOKUP(B20,#REF!,2,0)),"",(VLOOKUP(B20,#REF!,2,0))) ->  | D20: =IF(ISERROR(VLOOKUP(B20,#REF!,4,0)),"",(VLOOKUP(B20,#REF!,4,0))) ->  | E20: YELİZ ÜNEL | F20: FORD OTOSAN | G20: 463 | H20: X | I20: 515 | J20: 535 | K20: 535 | L20: -
A21: 14 | B21: GÜLLE-9 | C21: =IF(ISERROR(VLOOKUP(B21,#REF!,2,0)),"",(VLOOKUP(B21,#REF!,2,0))) ->  | D21: =IF(ISERROR(VLOOKUP(B21,#REF!,4,0)),"",(VLOOKUP(B21,#REF!,4,0))) ->  | E21: ZÜLEYHA ERBİL | F21: YAPI KREDİ | G21: 448 | H21: 471 | I21: 481 | J21: 481 | K21: 481 | L21: -
A22: - | B22: GÜLLE-19 | C22: =IF(ISERROR(VLOOKUP(B22,#REF!,2,0)),"",(VLOOKUP(B22,#REF!,2,0))) ->  | D22: =IF(ISERROR(VLOOKUP(B22,#REF!,4,0)),"",(VLOOKUP(B22,#REF!,4,0))) ->  | E22: AYFER ÇEKÇİ | F22: ZER | K22: DNS | L22: -
B23: GÜLLE-13 | C23: =IF(ISERROR(VLOOKUP(B23,#REF!,2,0)),"",(VLOOKUP(B23,#REF!,2,0))) ->  | D23: =IF(ISERROR(VLOOKUP(B23,#REF!,4,0)),"",(VLOOKUP(B23,#REF!,4,0))) ->  | E23: =IF(ISERROR(VLOOKUP(B23,#REF!,5,0)),"",(VLOOKUP(B23,#REF!,5,0))) ->  | F23: =IF(ISERROR(VLOOKUP(B23,#REF!,6,0)),"",(VLOOKUP(B23,#REF!,6,0))) -> 
B24: GÜLLE-14 | C24: =IF(ISERROR(VLOOKUP(B24,#REF!,2,0)),"",(VLOOKUP(B24,#REF!,2,0))) ->  | D24: =IF(ISERROR(VLOOKUP(B24,#REF!,4,0)),"",(VLOOKUP(B24,#REF!,4,0))) ->  | E24: =IF(ISERROR(VLOOKUP(B24,#REF!,5,0)),"",(VLOOKUP(B24,#REF!,5,0))) ->  | F24: =IF(ISERROR(VLOOKUP(B24,#REF!,6,0)),"",(VLOOKUP(B24,#REF!,6,0))) -> 
B25: GÜLLE-17 | C25: =IF(ISERROR(VLOOKUP(B25,#REF!,2,0)),"",(VLOOKUP(B25,#REF!,2,0))) ->  | D25: =IF(ISERROR(VLOOKUP(B25,#REF!,4,0)),"",(VLOOKUP(B25,#REF!,4,0))) ->  | E25: =IF(ISERROR(VLOOKUP(B25,#REF!,5,0)),"",(VLOOKUP(B25,#REF!,5,0))) ->  | F25: =IF(ISERROR(VLOOKUP(B25,#REF!,6,0)),"",(VLOOKUP(B25,#REF!,6,0))) -> 
A27: Müsabaka Direktörü | E27: Baş Hakem | F27: Lider | G27: Sekreter | K27: Hakem

Sheet 4x100m.
A2: ='YARIŞMA BİLGİLERİ'!F19 -> KOÇ TOPLULUĞU SPOR ŞENLİĞİ PUANLI ATLETİZM YARIŞLARI
A3: Yarışma : | D3: ='YARIŞMA PROGRAMI'!C16 -> 4x100 Metre | I3: ='YARIŞMA PROGRAMI'!D16 -> 0
A4: Kategori : | D4: ='YARIŞMA BİLGİLERİ'!F21 -> Kadınlar | M4: Tarih-Saat : | N4: ='YARIŞMA PROGRAMI'!B16 -> 2017-04-15T15:30:00
N5: =NOW() -> 42842.61208
A6: Sıra No | B6: Göğüs No | C6: Doğum Tarihi Gün/Ay/Yıl | D6: Adı ve Soyadı | E6: TAKIMI | F6: Derece | G6: Puan | I6: 1. SERİ
I7: Kulvar | J7: Formül | K7: Göğüs No | L7: Doğum Tarihi | M7: Adı ve Soyadı | N7: Takımı | O7: Elektronik Kronometre | P7: El Kronometre | Q7: Seri Geliş
A8: 1 | D8: SEMA KUNUK CANAN FİL FADİME ÖZKAN JALE YENGİNER | E8: FORD OTOSAN | F8: 10132 | G8: 11 | I8: 1 | J8: 4X100M-1-1 | K8: =IF(ISERROR(VLOOKUP(J8,#REF!,2,0)),"",(VLOOKUP(J8,#REF!,2,0))) ->  | L8: =IF(ISERROR(VLOOKUP(J8,#REF!,4,0)),"",(VLOOKUP(J8,#REF!,4,0))) -> 
A9: 2 | D9: AYLİN ÖZDEMİR İPEK AVCILAR DEMET DURMUŞ ESİN YILMAZ | E9: YAPI KREDİ | F9: 10409 | G9: 10 | I9: 2 | J9: 4X100M-1-2 | K9: =IF(ISERROR(VLOOKUP(J9,#REF!,2,0)),"",(VLOOKUP(J9,#REF!,2,0))) ->  | L9: =IF(ISERROR(VLOOKUP(J9,#REF!,4,0)),"",(VLOOKUP(J9,#REF!,4,0))) -> 
A10: 3 | D10: SİNEM BAŞ BİNAR KALKANLI SELİN GÜVEN ECEM ERERMİŞ | E10: TÜPRAŞ | F10: 10793 | G10: 9 | I10: 3 | J10: 4X100M-1-3 | K10: =IF(ISERROR(VLOOKUP(J10,#REF!,2,0)),"",(VLOOKUP(J10,#REF!,2,0))) ->  | L10: =IF(ISERROR(VLOOKUP(J10,#REF!,4,0)),"",(VLOOKUP(J10,#REF!,4,0))) ->  | M10: SEMA KUNUK CANAN FİL FADİME ÖZKAN JALE YENGİNER | N10: FORD OTOSAN | O10: 10132 | Q10: 1
A11: 4 | D11: RUKİYE DİNDAR DİDEM EREL SERAP YÜKSEK TÜRKAN KORKMAZ | E11: TOFAŞ | F11: 11145 | G11: 8 | I11: 4 | J11: 4X100M-1-4 | K11: =IF(ISERROR(VLOOKUP(J11,#REF!,2,0)),"",(VLOOKUP(J11,#REF!,2,0))) ->  | L11: =IF(ISERROR(VLOOKUP(J11,#REF!,4,0)),"",(VLOOKUP(J11,#REF!,4,0))) ->  | M11: DUYGU CESUR YETER GÜNGÖR AYCAN VAROL KADER GÜNGÖR | N11: OPET | O11: 11396 | Q11: 3
A12: 5 | D12: SİBEL MOL ZEYNEP ERPOLAT SEDEF AĞAR YURDAGÜL YILMAZ | E12: ARÇELİK | F12: 11362 | G12: 7 | I12: 5 | J12: 4X100M-1-5 | K12: =IF(ISERROR(VLOOKUP(J12,#REF!,2,0)),"",(VLOOKUP(J12,#REF!,2,0))) ->  | L12: =IF(ISERROR(VLOOKUP(J12,#REF!,4,0)),"",(VLOOKUP(J12,#REF!,4,0))) -> 
A13: 6 | D13: DUYGU CESUR YETER GÜNGÖR AYCAN VAROL KADER GÜNGÖR | E13: OPET | F13: 11396 | G13: 6 | I13: 6 | J13: 4X100M-1-6 | K13: =IF(ISERROR(VLOOKUP(J13,#REF!,2,0)),"",(VLOOKUP(J13,#REF!,2,0))) ->  | L13: =IF(ISERROR(VLOOKUP(J13,#REF!,4,0)),"",(VLOOKUP(J13,#REF!,4,0))) ->  | M13: RUKİYE DİNDAR DİDEM EREL SERAP YÜKSEK TÜRKAN KORKMAZ | N13: TOFAŞ | O13: 11145 | Q13: 2
I14: 7 | J14: 4X100M-1-7 | K14: =IF(ISERROR(VLOOKUP(J14,#REF!,2,0)),"",(VLOOKUP(J14,#REF!,2,0))) ->  | L14: =IF(ISERROR(VLOOKUP(J14,#REF!,4,0)),"",(VLOOKUP(J14,#REF!,4,0))) -> 
I15: 8 | J15: 4X100M-1-8 | K15: =IF(ISERROR(VLOOKUP(J15,#REF!,2,0)),"",(VLOOKUP(J15,#REF!,2,0))) ->  | L15: =IF(ISERROR(VLOOKUP(J15,#REF!,4,0)),"",(VLOOKUP(J15,#REF!,4,0))) ->  | M15: =IF(ISERROR(VLOOKUP(J15,#REF!,5,0)),"",(VLOOKUP(J15,#REF!,5,0))) ->  | N15: =IF(ISERROR(VLOOKUP(J15,#REF!,6,0)),"",(VLOOKUP(J15,#REF!,6,0))) -> 
I16: 2. SERİ
I17: Kulvar | J17: Formül | K17: Göğüs No | L17: Doğum Tarihi | M17: Adı ve Soyadı | N17: Takımı | O17: Elektronik Kronometre | P17: El Kronometre | Q17: Seri Geliş
I18: 1 | J18: 4X100M-2-1 | K18: =IF(ISERROR(VLOOKUP(J18,#REF!,2,0)),"",(VLOOKUP(J18,#REF!,2,0))) ->  | L18: =IF(ISERROR(VLOOKUP(J18,#REF!,4,0)),"",(VLOOKUP(J18,#REF!,4,0))) ->  | M18: =IF(ISERROR(VLOOKUP(J18,#REF!,5,0)),"",(VLOOKUP(J18,#REF!,5,0))) ->  | N18: =IF(ISERROR(VLOOKUP(J18,#REF!,6,0)),"",(VLOOKUP(J18,#REF!,6,0))) -> 
I19: 2 | J19: 4X100M-2-2 | K19: =IF(ISERROR(VLOOKUP(J19,#REF!,2,0)),"",(VLOOKUP(J19,#REF!,2,0))) ->  | L19: =IF(ISERROR(VLOOKUP(J19,#REF!,4,0)),"",(VLOOKUP(J19,#REF!,4,0))) ->  | M19: AYLİN ÖZDEMİR İPEK AVCILAR DEMET DURMUŞ ESİN YILMAZ | N19: YAPI KREDİ | O19: 10409 | Q19: 1
I20: 3 | J20: 4X100M-2-3 | K20: =IF(ISERROR(VLOOKUP(J20,#REF!,2,0)),"",(VLOOKUP(J20,#REF!,2,0))) ->  | L20: =IF(ISERROR(VLOOKUP(J20,#REF!,4,0)),"",(VLOOKUP(J20,#REF!,4,0))) ->  | M20: SİBEL MOL ZEYNEP ERPOLAT SEDEF AĞAR YURDAGÜL YILMAZ | N20: ARÇELİK | O20: 11362 | Q20: 3
I21: 4 | J21: 4X100M-2-4 | K21: =IF(ISERROR(VLOOKUP(J21,#REF!,2,0)),"",(VLOOKUP(J21,#REF!,2,0))) ->  | L21: =IF(ISERROR(VLOOKUP(J21,#REF!,4,0)),"",(VLOOKUP(J21,#REF!,4,0))) -> 
I22: 5 | J22: 4X100M-2-5 | K22: =IF(ISERROR(VLOOKUP(J22,#REF!,2,0)),"",(VLOOKUP(J22,#REF!,2,0))) ->  | L22: =IF(ISERROR(VLOOKUP(J22,#REF!,4,0)),"",(VLOOKUP(J22,#REF!,4,0))) ->  | M22: SİNEM BAŞ BİNAR KALKANLI SELİN GÜVEN ECEM ERERMİŞ | N22: TÜPRAŞ | O22: 10793 | Q22: 2
I23: 6 | J23: 4X100M-2-6 | K23: =IF(ISERROR(VLOOKUP(J23,#REF!,2,0)),"",(VLOOKUP(J23,#REF!,2,0))) ->  | L23: =IF(ISERROR(VLOOKUP(J23,#REF!,4,0)),"",(VLOOKUP(J23,#REF!,4,0))) -> 
G24: =IF(ISTEXT(F24)," ",IFERROR(VLOOKUP(SMALL(PUAN!$U$6:$V$110,COUNTIF(PUAN!$U$6:$V$110,"<"&F24)+1),PUAN!$U$6:$V$110,2,2)," ")) ->  | I24: 7 | J24: 4X100M-2-7 | K24: =IF(ISERROR(VLOOKUP(J24,#REF!,2,0)),"",(VLOOKUP(J24,#REF!,2,0))) ->  | L24: =IF(ISERROR(VLOOKUP(J24,#REF!,4,0)),"",(VLOOKUP(J24,#REF!,4,0))) ->  | M24: =IF(ISERROR(VLOOKUP(J24,#REF!,5,0)),"",(VLOOKUP(J24,#REF!,5,0))) ->  | N24: =IF(ISERROR(VLOOKUP(J24,#REF!,6,0)),"",(VLOOKUP(J24,#REF!,6,0))) -> 
G25: =IF(ISTEXT(F25)," ",IFERROR(VLOOKUP(SMALL(PUAN!$U$6:$V$110,COUNTIF(PUAN!$U$6:$V$110,"<"&F25)+1),PUAN!$U$6:$V$110,2,2)," ")) ->  | I25: 8 | J25: 4X100M-2-8 | K25: =IF(ISERROR(VLOOKUP(J25,#REF!,2,0)),"",(VLOOKUP(J25,#REF!,2,0))) ->  | L25: =IF(ISERROR(VLOOKUP(J25,#REF!,4,0)),"",(VLOOKUP(J25,#REF!,4,0))) ->  | M25: =IF(ISERROR(VLOOKUP(J25,#REF!,5,0)),"",(VLOOKUP(J25,#REF!,5,0))) ->  | N25: =IF(ISERROR(VLOOKUP(J25,#REF!,6,0)),"",(VLOOKUP(J25,#REF!,6,0))) -> 
A26: 19 | G26: =IF(ISTEXT(F26)," ",IFERROR(VLOOKUP(SMALL(PUAN!$U$6:$V$110,COUNTIF(PUAN!$U$6:$V$110,"<"&F26)+1),PUAN!$U$6:$V$110,2,2)," ")) ->  | I26: 3. SERİ
A27: 20 | G27: =IF(ISTEXT(F27)," ",IFERROR(VLOOKUP(SMALL(PUAN!$U$6:$V$110,COUNTIF(PUAN!$U$6:$V$110,"<"&F27)+1),PUAN!$U$6:$V$110,2,2)," ")) ->  | I27: Kulvar | J27: Formül | K27: Göğüs No | L27: Doğum Tarihi | M27: Adı ve Soyadı | N27: Okulu | O27: Elektronik Kronometre | P27: El Kronometre | Q27: Seri Geliş
A28: 21 | G28: =IF(ISTEXT(F28)," ",IFERROR(VLOOKUP(SMALL(PUAN!$U$6:$V$110,COUNTIF(PUAN!$U$6:$V$110,"<"&F28)+1),PUAN!$U$6:$V$110,2,2)," ")) ->  | I28: 1 | J28: 4X100M-3-1 | K28: =IF(ISERROR(VLOOKUP(J28,#REF!,2,0)),"",(VLOOKUP(J28,#REF!,2,0))) ->  | L28: =IF(ISERROR(VLOOKUP(J28,#REF!,4,0)),"",(VLOOKUP(J28,#REF!,4,0))) ->  | M28: =IF(ISERROR(VLOOKUP(J28,#REF!,5,0)),"",(VLOOKUP(J28,#REF!,5,0))) ->  | N28: =IF(ISERROR(VLOOKUP(J28,#REF!,6,0)),"",(VLOOKUP(J28,#REF!,6,0))) ->  | O28: =IF(IF(OR(P28="NM",P28="DNF",P28="DNS",P28="DQ",P28=""),P28,(ROUNDUP(P28,)+24))=0," ",IF(OR(P28="NM",P28="DNF",P28="DNS",P28="DQ",P28=""),P28,(ROUNDUP(P28,)+24))) -> 
A29: 22 | G29: =IF(ISTEXT(F29)," ",IFERROR(VLOOKUP(SMALL(PUAN!$U$6:$V$110,COUNTIF(PUAN!$U$6:$V$110,"<"&F29)+1),PUAN!$U$6:$V$110,2,2)," ")) ->  | I29: 2 | J29: 4X100M-3-2 | K29: =IF(ISERROR(VLOOKUP(J29,#REF!,2,0)),"",(VLOOKUP(J29,#REF!,2,0))) ->  | L29: =IF(ISERROR(VLOOKUP(J29,#REF!,4,0)),"",(VLOOKUP(J29,#REF!,4,0))) ->  | M29: =IF(ISERROR(VLOOKUP(J29,#REF!,5,0)),"",(VLOOKUP(J29,#REF!,5,0))) ->  | N29: =IF(ISERROR(VLOOKUP(J29,#REF!,6,0)),"",(VLOOKUP(J29,#REF!,6,0))) -> 
A30: 23 | G30: =IF(ISTEXT(F30)," ",IFERROR(VLOOKUP(SMALL(PUAN!$U$6:$V$110,COUNTIF(PUAN!$U$6:$V$110,"<"&F30)+1),PUAN!$U$6:$V$110,2,2)," ")) ->  | I30: 3 | J30: 4X100M-3-3 | K30: =IF(ISERROR(VLOOKUP(J30,#REF!,2,0)),"",(VLOOKUP(J30,#REF!,2,0))) ->  | L30: =IF(ISERROR(VLOOKUP(J30,#REF!,4,0)),"",(VLOOKUP(J30,#REF!,4,0))) ->  | M30: =IF(ISERROR(VLOOKUP(J30,#REF!,5,0)),"",(VLOOKUP(J30,#REF!,5,0))) ->  | N30: =IF(ISERROR(VLOOKUP(J30,#REF!,6,0)),"",(VLOOKUP(J30,#REF!,6,0))) -> 
A31: 24 | G31: =IF(ISTEXT(F31)," ",IFERROR(VLOOKUP(SMALL(PUAN!$U$6:$V$110,COUNTIF(PUAN!$U$6:$V$110,"<"&F31)+1),PUAN!$U$6:$V$110,2,2)," ")) ->  | I31: 4 | J31: 4X100M-3-4 | K31: =IF(ISERROR(VLOOKUP(J31,#REF!,2,0)),"",(VLOOKUP(J31,#REF!,2,0))) ->  | L31: =IF(ISERROR(VLOOKUP(J31,#REF!,4,0)),"",(VLOOKUP(J31,#REF!,4,0))) ->  | M31: =IF(ISERROR(VLOOKUP(J31,#REF!,5,0)),"",(VLOOKUP(J31,#REF!,5,0))) ->  | N31: =IF(ISERROR(VLOOKUP(J31,#REF!,6,0)),"",(VLOOKUP(J31,#REF!,6,0))) -> 
A32: 25 | G32: =IF(ISTEXT(F32)," ",IFERROR(VLOOKUP(SMALL(PUAN!$U$6:$V$110,COUNTIF(PUAN!$U$6:$V$110,"<"&F32)+1),PUAN!$U$6:$V$110,2,2)," ")) ->  | I32: 5 | J32: 4X100M-3-5 | K32: =IF(ISERROR(VLOOKUP(J32,#REF!,2,0)),"",(VLOOKUP(J32,#REF!,2,0))) ->  | L32: =IF(ISERROR(VLOOKUP(J32,#REF!,4,0)),"",(VLOOKUP(J32,#REF!,4,0))) ->  | M32: =IF(ISERROR(VLOOKUP(J32,#REF!,5,0)),"",(VLOOKUP(J32,#REF!,5,0))) ->  | N32: =IF(ISERROR(VLOOKUP(J32,#REF!,6,0)),"",(VLOOKUP(J32,#REF!,6,0))) -> 
A33: 26 | G33: =IF(ISTEXT(F33)," ",IFERROR(VLOOKUP(SMALL(PUAN!$U$6:$V$110,COUNTIF(PUAN!$U$6:$V$110,"<"&F33)+1),PUAN!$U$6:$V$110,2,2)," ")) ->  | I33: 6 | J33: 4X100M-3-6 | K33: =IF(ISERROR(VLOOKUP(J33,#REF!,2,0)),"",(VLOOKUP(J33,#REF!,2,0))) ->  | L33: =IF(ISERROR(VLOOKUP(J33,#REF!,4,0)),"",(VLOOKUP(J33,#REF!,4,0))) ->  | M33: =IF(ISERROR(VLOOKUP(J33,#REF!,5,0)),"",(VLOOKUP(J33,#REF!,5,0))) ->  | N33: =IF(ISERROR(VLOOKUP(J33,#REF!,6,0)),"",(VLOOKUP(J33,#REF!,6,0))) -> 
A34: 27 | G34: =IF(ISTEXT(F34)," ",IFERROR(VLOOKUP(SMALL(PUAN!$U$6:$V$110,COUNTIF(PUAN!$U$6:$V$110,"<"&F34)+1),PUAN!$U$6:$V$110,2,2)," ")) ->  | I34: 7 | J34: 4X100M-3-7 | K34: =IF(ISERROR(VLOOKUP(J34,#REF!,2,0)),"",(VLOOKUP(J34,#REF!,2,0))) ->  | L34: =IF(ISERROR(VLOOKUP(J34,#REF!,4,0)),"",(VLOOKUP(J34,#REF!,4,0))) ->  | M34: =IF(ISERROR(VLOOKUP(J34,#REF!,5,0)),"",(VLOOKUP(J34,#REF!,5,0))) ->  | N34: =IF(ISERROR(VLOOKUP(J34,#REF!,6,0)),"",(VLOOKUP(J34,#REF!,6,0))) -> 
A35: 28 | G35: =IF(ISTEXT(F35)," ",IFERROR(VLOOKUP(SMALL(PUAN!$U$6:$V$110,COUNTIF(PUAN!$U$6:$V$110,"<"&F35)+1),PUAN!$U$6:$V$110,2,2)," ")) ->  | I35: 8 | J35: 4X100M-3-8 | K35: =IF(ISERROR(VLOOKUP(J35,#REF!,2,0)),"",(VLOOKUP(J35,#REF!,2,0))) ->  | L35: =IF(ISERROR(VLOOKUP(J35,#REF!,4,0)),"",(VLOOKUP(J35,#REF!,4,0))) ->  | M35: =IF(ISERROR(VLOOKUP(J35,#REF!,5,0)),"",(VLOOKUP(J35,#REF!,5,0))) ->  | N35: =IF(ISERROR(VLOOKUP(J35,#REF!,6,0)),"",(VLOOKUP(J35,#REF!,6,0))) -> 
A37: Müsabakalar Direktörü | E37: Baş Hakem | F37: Lider | H37: Sekreter | M37: Hakem | N37: Hakem | P37: Hakem

Sheet İsveç
A2: ='YARIŞMA BİLGİLERİ'!F19 -> KOÇ TOPLULUĞU SPOR ŞENLİĞİ PUANLI ATLETİZM YARIŞLARI
A3: Yarışma : | D3: ='YARIŞMA PROGRAMI'!C17 -> İsveç Bayrak | I3: ='YARIŞMA PROGRAMI'!D16 -> 0
A4: Kategori : | D4: ='YARIŞMA BİLGİLERİ'!F21 -> Kadınlar | M4: Tarih-Saat : | N4: ='YARIŞMA PROGRAMI'!B16 -> 2017-04-15T15:30:00
N5: =NOW() -> 42842.61208
A6: Sıra No | B6: Göğüs No | C6: Doğum Tarihi Gün/Ay/Yıl | D6: Adı ve Soyadı | E6: TAKIMI | F6: Derece | G6: Puan | I6: 1. SERİ
I7: Kulvar | J7: Formül | K7: Göğüs No | L7: Doğum Tarihi | M7: Adı ve Soyadı | N7: Takımı | O7: Elektronik Kronometre | P7: El Kronometre | Q7: Seri Geliş
A8: 1 | D8: CANAN FİL İNCİ ÖZDEMİR FADİME ÖZKAN JALE YEĞİNER | E8: FORD OTOSAN | F8: 25823 | G8: 11 | I8: 1 | J8: 4X100M-1-1 | K8: =IF(ISERROR(VLOOKUP(J8,#REF!,2,0)),"",(VLOOKUP(J8,#REF!,2,0))) ->  | L8: =IF(ISERROR(VLOOKUP(J8,#REF!,4,0)),"",(VLOOKUP(J8,#REF!,4,0))) ->  | M8: MERVE AKIN AYŞEGÜL BAYRAK DEMET OĞUZTÜRK CEREN ANGILI | N8: YAPI KREDİ | O8: 31848 | Q8: 3
A9: 2 | D9: SİNEM BAŞ ECEM ERERMİŞ ZEYNEP DÜZGÖREN BİNAR KALKANLI | E9: TÜPRAŞ | F9: 31134 | G9: 10 | I9: 2 | J9: 4X100M-1-2 | K9: =IF(ISERROR(VLOOKUP(J9,#REF!,2,0)),"",(VLOOKUP(J9,#REF!,2,0))) ->  | L9: =IF(ISERROR(VLOOKUP(J9,#REF!,4,0)),"",(VLOOKUP(J9,#REF!,4,0))) ->  | M9: SİBEL MOL SEDEF AĞIR SİMGE YURDAGÜL YILMAZ | N9: ARÇELİK | O9: 32418 | Q9: 4
A10: 3 | D10: MERVE AKIN AYŞEGÜL BAYRAK DEMET OĞUZTÜRK CEREN ANGILI | E10: YAPI KREDİ | F10: 31848 | G10: 9 | I10: 3 | J10: 4X100M-1-3 | K10: =IF(ISERROR(VLOOKUP(J10,#REF!,2,0)),"",(VLOOKUP(J10,#REF!,2,0))) ->  | L10: =IF(ISERROR(VLOOKUP(J10,#REF!,4,0)),"",(VLOOKUP(J10,#REF!,4,0))) ->  | M10: CANAN FİL İNCİ ÖZDEMİR FADİME ÖZKAN JALE YEĞİNER | N10: FORD OTOSAN | O10: DQ | Q10: 170\7
A11: 4 | D11: SİBEL MOL SEDEF AĞIR SİMGE YURDAGÜL YILMAZ | E11: ARÇELİK | F11: 32418 | G11: 8 | I11: 4 | J11: 4X100M-1-4 | K11: =IF(ISERROR(VLOOKUP(J11,#REF!,2,0)),"",(VLOOKUP(J11,#REF!,2,0))) ->  | L11: =IF(ISERROR(VLOOKUP(J11,#REF!,4,0)),"",(VLOOKUP(J11,#REF!,4,0))) ->  | M11: SİNEM BAŞ ECEM ERERMİŞ ZEYNEP DÜZGÖREN BİNAR KALKANLI | N11: TÜPRAŞ | O11: 31134 | Q11: 2
A12: 5 | D12: RUKİYE DİNDAR TÜRKAN KORKMAZ DİDEM EREL SERAP YÜKSEK | E12: TOFAŞ | F12: 32460 | G12: 7 | I12: 5 | J12: 4X100M-1-5 | K12: =IF(ISERROR(VLOOKUP(J12,#REF!,2,0)),"",(VLOOKUP(J12,#REF!,2,0))) ->  | L12: =IF(ISERROR(VLOOKUP(J12,#REF!,4,0)),"",(VLOOKUP(J12,#REF!,4,0))) ->  | M12: EZGİ ORAN GİZAY ULUTAŞ HÜLYA ÇALIKOĞLU ÖZLEM KURT | N12: ZER | O12: 35910 | Q12: 6
A13: 6 | D13: EZGİ ORAN GİZAY ULUTAŞ HÜLYA ÇALIKOĞLU ÖZLEM KURT | E13: ZER | F13: 35910 | G13: 6 | I13: 6 | J13: 4X100M-1-6 | K13: =IF(ISERROR(VLOOKUP(J13,#REF!,2,0)),"",(VLOOKUP(J13,#REF!,2,0))) ->  | L13: =IF(ISERROR(VLOOKUP(J13,#REF!,4,0)),"",(VLOOKUP(J13,#REF!,4,0))) ->  | M13: RUKİYE DİNDAR TÜRKAN KORKMAZ DİDEM EREL SERAP YÜKSEK | N13: TOFAŞ | O13: 32460 | Q13: 5
I14: 7 | J14: 4X100M-1-7 | K14: =IF(ISERROR(VLOOKUP(J14,#REF!,2,0)),"",(VLOOKUP(J14,#REF!,2,0))) ->  | L14: =IF(ISERROR(VLOOKUP(J14,#REF!,4,0)),"",(VLOOKUP(J14,#REF!,4,0))) ->  | M14: =IF(ISERROR(VLOOKUP(J14,#REF!,5,0)),"",(VLOOKUP(J14,#REF!,5,0))) ->  | N14: =IF(ISERROR(VLOOKUP(J14,#REF!,6,0)),"",(VLOOKUP(J14,#REF!,6,0))) -> 
I15: 8 | J15: 4X100M-1-8 | K15: =IF(ISERROR(VLOOKUP(J15,#REF!,2,0)),"",(VLOOKUP(J15,#REF!,2,0))) ->  | L15: =IF(ISERROR(VLOOKUP(J15,#REF!,4,0)),"",(VLOOKUP(J15,#REF!,4,0))) ->  | M15: =IF(ISERROR(VLOOKUP(J15,#REF!,5,0)),"",(VLOOKUP(J15,#REF!,5,0))) ->  | N15: =IF(ISERROR(VLOOKUP(J15,#REF!,6,0)),"",(VLOOKUP(J15,#REF!,6,0))) -> 
I16: 2. SERİ
I17: Kulvar | J17: Formül | K17: Göğüs No | L17: Doğum Tarihi | M17: Adı ve Soyadı | N17: Takımı | O17: Elektronik Kronometre | P17: El Kronometre | Q17: Seri Geliş
I18: 1 | J18: 4X100M-2-1 | K18: =IF(ISERROR(VLOOKUP(J18,#REF!,2,0)),"",(VLOOKUP(J18,#REF!,2,0))) ->  | L18: =IF(ISERROR(VLOOKUP(J18,#REF!,4,0)),"",(VLOOKUP(J18,#REF!,4,0))) ->  | M18: =IF(ISERROR(VLOOKUP(J18,#REF!,5,0)),"",(VLOOKUP(J18,#REF!,5,0))) ->  | N18: =IF(ISERROR(VLOOKUP(J18,#REF!,6,0)),"",(VLOOKUP(J18,#REF!,6,0))) -> 
I19: 2 | J19: 4X100M-2-2 | K19: =IF(ISERROR(VLOOKUP(J19,#REF!,2,0)),"",(VLOOKUP(J19,#REF!,2,0))) ->  | L19: =IF(ISERROR(VLOOKUP(J19,#REF!,4,0)),"",(VLOOKUP(J19,#REF!,4,0))) ->  | M19: DİSKALİFİYE SEBEBİYLE 2. KEZ KOŞTURULU.
I20: 3 | J20: 4X100M-2-3 | K20: =IF(ISERROR(VLOOKUP(J20,#REF!,2,0)),"",(VLOOKUP(J20,#REF!,2,0))) ->  | L20: =IF(ISERROR(VLOOKUP(J20,#REF!,4,0)),"",(VLOOKUP(J20,#REF!,4,0))) ->  | M20: CANAN FİL İNCİ ÖZDEMİR FADİME ÖZKAN JALE YEĞİNER | N20: FORD OTOSAN | O20: 25823 | Q20: 1
A21: - | I21: 4 | J21: 4X100M-2-4 | K21: =IF(ISERROR(VLOOKUP(J21,#REF!,2,0)),"",(VLOOKUP(J21,#REF!,2,0))) ->  | L21: =IF(ISERROR(VLOOKUP(J21,#REF!,4,0)),"",(VLOOKUP(J21,#REF!,4,0))) ->  | M21: =IF(ISERROR(VLOOKUP(J21,#REF!,5,0)),"",(VLOOKUP(J21,#REF!,5,0))) -> 
A22: - | I22: 5 | J22: 4X100M-2-5 | K22: =IF(ISERROR(VLOOKUP(J22,#REF!,2,0)),"",(VLOOKUP(J22,#REF!,2,0))) ->  | L22: =IF(ISERROR(VLOOKUP(J22,#REF!,4,0)),"",(VLOOKUP(J22,#REF!,4,0))) -> 
A23: - | I23: 6 | J23: 4X100M-2-6 | K23: =IF(ISERROR(VLOOKUP(J23,#REF!,2,0)),"",(VLOOKUP(J23,#REF!,2,0))) ->  | L23: =IF(ISERROR(VLOOKUP(J23,#REF!,4,0)),"",(VLOOKUP(J23,#REF!,4,0))) -> 
G24: =IF(ISTEXT(F24)," ",IFERROR(VLOOKUP(SMALL(PUAN!$U$6:$V$110,COUNTIF(PUAN!$U$6:$V$110,"<"&F24)+1),PUAN!$U$6:$V$110,2,2)," ")) ->  | I24: 7 | J24: 4X100M-2-7 | K24: =IF(ISERROR(VLOOKUP(J24,#REF!,2,0)),"",(VLOOKUP(J24,#REF!,2,0))) ->  | L24: =IF(ISERROR(VLOOKUP(J24,#REF!,4,0)),"",(VLOOKUP(J24,#REF!,4,0))) ->  | M24: =IF(ISERROR(VLOOKUP(J24,#REF!,5,0)),"",(VLOOKUP(J24,#REF!,5,0))) ->  | N24: =IF(ISERROR(VLOOKUP(J24,#REF!,6,0)),"",(VLOOKUP(J24,#REF!,6,0))) -> 
G25: =IF(ISTEXT(F25)," ",IFERROR(VLOOKUP(SMALL(PUAN!$U$6:$V$110,COUNTIF(PUAN!$U$6:$V$110,"<"&F25)+1),PUAN!$U$6:$V$110,2,2)," ")) ->  | I25: 8 | J25: 4X100M-2-8 | K25: =IF(ISERROR(VLOOKUP(J25,#REF!,2,0)),"",(VLOOKUP(J25,#REF!,2,0))) ->  | L25: =IF(ISERROR(VLOOKUP(J25,#REF!,4,0)),"",(VLOOKUP(J25,#REF!,4,0))) ->  | M25: =IF(ISERROR(VLOOKUP(J25,#REF!,5,0)),"",(VLOOKUP(J25,#REF!,5,0))) ->  | N25: =IF(ISERROR(VLOOKUP(J25,#REF!,6,0)),"",(VLOOKUP(J25,#REF!,6,0))) -> 
A26: 19 | G26: =IF(ISTEXT(F26)," ",IFERROR(VLOOKUP(SMALL(PUAN!$U$6:$V$110,COUNTIF(PUAN!$U$6:$V$110,"<"&F26)+1),PUAN!$U$6:$V$110,2,2)," ")) ->  | I26: 3. SERİ
A27: 20 | G27: =IF(ISTEXT(F27)," ",IFERROR(VLOOKUP(SMALL(PUAN!$U$6:$V$110,COUNTIF(PUAN!$U$6:$V$110,"<"&F27)+1),PUAN!$U$6:$V$110,2,2)," ")) ->  | I27: Kulvar | J27: Formül | K27: Göğüs No | L27: Doğum Tarihi | M27: Adı ve Soyadı | N27: Okulu | O27: Elektronik Kronometre | P27: El Kronometre | Q27: Seri Geliş
A28: 21 | G28: =IF(ISTEXT(F28)," ",IFERROR(VLOOKUP(SMALL(PUAN!$U$6:$V$110,COUNTIF(PUAN!$U$6:$V$110,"<"&F28)+1),PUAN!$U$6:$V$110,2,2)," ")) ->  | I28: 1 | J28: 4X100M-3-1 | K28: =IF(ISERROR(VLOOKUP(J28,#REF!,2,0)),"",(VLOOKUP(J28,#REF!,2,0))) ->  | L28: =IF(ISERROR(VLOOKUP(J28,#REF!,4,0)),"",(VLOOKUP(J28,#REF!,4,0))) ->  | M28: =IF(ISERROR(VLOOKUP(J28,#REF!,5,0)),"",(VLOOKUP(J28,#REF!,5,0))) ->  | N28: =IF(ISERROR(VLOOKUP(J28,#REF!,6,0)),"",(VLOOKUP(J28,#REF!,6,0))) ->  | O28: =IF(IF(OR(P28="NM",P28="DNF",P28="DNS",P28="DQ",P28=""),P28,(ROUNDUP(P28,)+24))=0," ",IF(OR(P28="NM",P28="DNF",P28="DNS",P28="DQ",P28=""),P28,(ROUNDUP(P28,)+24))) -> 
A29: 22 | G29: =IF(ISTEXT(F29)," ",IFERROR(VLOOKUP(SMALL(PUAN!$U$6:$V$110,COUNTIF(PUAN!$U$6:$V$110,"<"&F29)+1),PUAN!$U$6:$V$110,2,2)," ")) ->  | I29: 2 | J29: 4X100M-3-2 | K29: =IF(ISERROR(VLOOKUP(J29,#REF!,2,0)),"",(VLOOKUP(J29,#REF!,2,0))) ->  | L29: =IF(ISERROR(VLOOKUP(J29,#REF!,4,0)),"",(VLOOKUP(J29,#REF!,4,0))) ->  | M29: =IF(ISERROR(VLOOKUP(J29,#REF!,5,0)),"",(VLOOKUP(J29,#REF!,5,0))) ->  | N29: =IF(ISERROR(VLOOKUP(J29,#REF!,6,0)),"",(VLOOKUP(J29,#REF!,6,0))) -> 
A30: 23 | G30: =IF(ISTEXT(F30)," ",IFERROR(VLOOKUP(SMALL(PUAN!$U$6:$V$110,COUNTIF(PUAN!$U$6:$V$110,"<"&F30)+1),PUAN!$U$6:$V$110,2,2)," ")) ->  | I30: 3 | J30: 4X100M-3-3 | K30: =IF(ISERROR(VLOOKUP(J30,#REF!,2,0)),"",(VLOOKUP(J30,#REF!,2,0))) ->  | L30: =IF(ISERROR(VLOOKUP(J30,#REF!,4,0)),"",(VLOOKUP(J30,#REF!,4,0))) ->  | M30: =IF(ISERROR(VLOOKUP(J30,#REF!,5,0)),"",(VLOOKUP(J30,#REF!,5,0))) ->  | N30: =IF(ISERROR(VLOOKUP(J30,#REF!,6,0)),"",(VLOOKUP(J30,#REF!,6,0))) -> 
A31: 24 | G31: =IF(ISTEXT(F31)," ",IFERROR(VLOOKUP(SMALL(PUAN!$U$6:$V$110,COUNTIF(PUAN!$U$6:$V$110,"<"&F31)+1),PUAN!$U$6:$V$110,2,2)," ")) ->  | I31: 4 | J31: 4X100M-3-4 | K31: =IF(ISERROR(VLOOKUP(J31,#REF!,2,0)),"",(VLOOKUP(J31,#REF!,2,0))) ->  | L31: =IF(ISERROR(VLOOKUP(J31,#REF!,4,0)),"",(VLOOKUP(J31,#REF!,4,0))) ->  | M31: =IF(ISERROR(VLOOKUP(J31,#REF!,5,0)),"",(VLOOKUP(J31,#REF!,5,0))) ->  | N31: =IF(ISERROR(VLOOKUP(J31,#REF!,6,0)),"",(VLOOKUP(J31,#REF!,6,0))) -> 
A32: 25 | G32: =IF(ISTEXT(F32)," ",IFERROR(VLOOKUP(SMALL(PUAN!$U$6:$V$110,COUNTIF(PUAN!$U$6:$V$110,"<"&F32)+1),PUAN!$U$6:$V$110,2,2)," ")) ->  | I32: 5 | J32: 4X100M-3-5 | K32: =IF(ISERROR(VLOOKUP(J32,#REF!,2,0)),"",(VLOOKUP(J32,#REF!,2,0))) ->  | L32: =IF(ISERROR(VLOOKUP(J32,#REF!,4,0)),"",(VLOOKUP(J32,#REF!,4,0))) ->  | M32: =IF(ISERROR(VLOOKUP(J32,#REF!,5,0)),"",(VLOOKUP(J32,#REF!,5,0))) ->  | N32: =IF(ISERROR(VLOOKUP(J32,#REF!,6,0)),"",(VLOOKUP(J32,#REF!,6,0))) -> 
A33: 26 | G33: =IF(ISTEXT(F33)," ",IFERROR(VLOOKUP(SMALL(PUAN!$U$6:$V$110,COUNTIF(PUAN!$U$6:$V$110,"<"&F33)+1),PUAN!$U$6:$V$110,2,2)," ")) ->  | I33: 6 | J33: 4X100M-3-6 | K33: =IF(ISERROR(VLOOKUP(J33,#REF!,2,0)),"",(VLOOKUP(J33,#REF!,2,0))) ->  | L33: =IF(ISERROR(VLOOKUP(J33,#REF!,4,0)),"",(VLOOKUP(J33,#REF!,4,0))) ->  | M33: =IF(ISERROR(VLOOKUP(J33,#REF!,5,0)),"",(VLOOKUP(J33,#REF!,5,0))) ->  | N33: =IF(ISERROR(VLOOKUP(J33,#REF!,6,0)),"",(VLOOKUP(J33,#REF!,6,0))) -> 
A34: 27 | G34: =IF(ISTEXT(F34)," ",IFERROR(VLOOKUP(SMALL(PUAN!$U$6:$V$110,COUNTIF(PUAN!$U$6:$V$110,"<"&F34)+1),PUAN!$U$6:$V$110,2,2)," ")) ->  | I34: 7 | J34: 4X100M-3-7 | K34: =IF(ISERROR(VLOOKUP(J34,#REF!,2,0)),"",(VLOOKUP(J34,#REF!,2,0))) ->  | L34: =IF(ISERROR(VLOOKUP(J34,#REF!,4,0)),"",(VLOOKUP(J34,#REF!,4,0))) ->  | M34: =IF(ISERROR(VLOOKUP(J34,#REF!,5,0)),"",(VLOOKUP(J34,#REF!,5,0))) ->  | N34: =IF(ISERROR(VLOOKUP(J34,#REF!,6,0)),"",(VLOOKUP(J34,#REF!,6,0))) -> 
A35: 28 | G35: =IF(ISTEXT(F35)," ",IFERROR(VLOOKUP(SMALL(PUAN!$U$6:$V$110,COUNTIF(PUAN!$U$6:$V$110,"<"&F35)+1),PUAN!$U$6:$V$110,2,2)," ")) ->  | I35: 8 | J35: 4X100M-3-8 | K35: =IF(ISERROR(VLOOKUP(J35,#REF!,2,0)),"",(VLOOKUP(J35,#REF!,2,0))) ->  | L35: =IF(ISERROR(VLOOKUP(J35,#REF!,4,0)),"",(VLOOKUP(J35,#REF!,4,0))) ->  | M35: =IF(ISERROR(VLOOKUP(J35,#REF!,5,0)),"",(VLOOKUP(J35,#REF!,5,0))) ->  | N35: =IF(ISERROR(VLOOKUP(J35,#REF!,6,0)),"",(VLOOKUP(J35,#REF!,6,0))) -> 
A37: Müsabakalar Direktörü | E37: Baş Hakem | F37: Lider | H37: Sekreter | M37: Hakem | N37: Hakem | P37: Hakem

Sheet Genel Puan Tablosu
A2: ='YARIŞMA BİLGİLERİ'!F19 -> KOÇ TOPLULUĞU SPOR ŞENLİĞİ PUANLI ATLETİZM YARIŞLARI
A3: GENEL PUAN TABLOSU
A4: ='YARIŞMA BİLGİLERİ'!F21 -> Kadınlar
N5: ='YARIŞMA PROGRAMI'!B18 -> 2017-04-15T15:30:00
A6: SIRA | B6: TAKIMI | D6: 100 METRE | F6: 200 METRE | H6: 800 METRE | J6: YÜKSEK ATLAMA | L6: GÜLLE ATMA | N6: UZUN ATLAMA | P6: 3000 METRE | R6: 400 METRE | T6: 4X100 METRE | V6: İSVEÇ BAYRAK | X6: GENEL PUAN
D7: DERECE | E7: PUAN | F7: DERECE | G7: PUAN | H7: DERECE | I7: PUAN | J7: DERECE | K7: PUAN | L7: DERECE | M7: PUAN | N7: DERECE | O7: PUAN | P7: DERECE | Q7: PUAN | R7: DERECE | S7: PUAN | T7: DERECE | U7: PUAN | V7: DERECE | W7: PUAN
A8: 1 | B8: FORD OTOSAN | D8: =VLOOKUP(B8,'100m.'!E:F,2,0) -> 1425 | E8: =VLOOKUP(B8,'100m.'!E:G,3,0) -> 11 | F8: =VLOOKUP(B8,'200m.'!E:F,2,0) -> 3365 | G8: =VLOOKUP(B8,'200m.'!E:G,3,0) -> 11 | H8: =VLOOKUP(B8,'800m.'!E:F,2,0) -> 30026 | I8: =VLOOKUP(B8,'800m.'!E:G,3,0) -> 11 | J8: 130 | K8: 11 | L8: 995 | M8: 11 | N8: 502 | O8: 11 | P8: =VLOOKUP(B8,'3000m.'!E:F,2,0) -> 131270 | Q8: =VLOOKUP(B8,'3000m.'!E:G,3,0) -> 11 | R8: =VLOOKUP(B8,'400m.'!E:F,2,0) -> 11460 | S8: =VLOOKUP(B8,'400m.'!E:G,3,0) -> 11 | T8: =VLOOKUP(B8,'4x100m.'!E:F,2,0) -> 10132 | U8: =VLOOKUP(B8,'4x100m.'!E:G,3,0) -> 11 | V8: 25823 | W8: 11 | X8: =SUM(E8,G8,I8,K8,M8,O8,Q8,S8,U8,W8) -> 110
A9: 2 | B9: TÜPRAŞ | D9: =VLOOKUP(B9,'100m.'!E:F,2,0) -> 1596 | E9: 10 | F9: =VLOOKUP(B9,'200m.'!E:F,2,0) -> 3495 | G9: =VLOOKUP(B9,'200m.'!E:G,3,0) -> 10 | H9: =VLOOKUP(B9,'800m.'!E:F,2,0) -> 33081 | I9: =VLOOKUP(B9,'800m.'!E:G,3,0) -> 9 | J9: 127 | K9: 10 | L9: 977 | M9: 10 | N9: 356 | O9: 7 | P9: =VLOOKUP(B9,'3000m.'!E:F,2,0) -> 132626 | Q9: =VLOOKUP(B9,'3000m.'!E:G,3,0) -> 10 | R9: =VLOOKUP(B9,'400m.'!E:F,2,0) -> 12139 | S9: =VLOOKUP(B9,'400m.'!E:G,3,0) -> 9 | T9: =VLOOKUP(B9,'4x100m.'!E:F,2,0) -> 10793 | U9: =VLOOKUP(B9,'4x100m.'!E:G,3,0) -> 9 | V9: 31134 | W9: 10 | X9: 94
A10: 3 | B10: YAPI KREDİ | D10: 1656 | E10: 9 | F10: 3903 | G10: 7 | H10: 32491 | I10: 10 | J10: 110 | K10: 8 | L10: 753 | M10: 7 | N10: 382 | O10: 9 | P10: 143204 | Q10: 9 | R10: 11719 | S10: 10 | T10: 10409 | U10: 10 | V10: 31848 | W10: 9 | X10: 88
A11: 4 | B11: ARÇELİK | D11: =VLOOKUP(B11,'100m.'!E:F,2,0) -> DNS | E11: =VLOOKUP(B11,'100m.'!E:G,3,0) -> 0 | F11: =VLOOKUP(B11,'200m.'!E:F,2,0) -> 4138 | G11: =VLOOKUP(B11,'200m.'!E:G,3,0) -> 6 | H11: =VLOOKUP(B11,'800m.'!E:F,2,0) -> 34494 | I11: =VLOOKUP(B11,'800m.'!E:G,3,0) -> 8 | J11: 124 | K11: 9 | L11: 799 | M11: 9 | N11: 374 | O11: 8 | P11: =VLOOKUP(B11,'3000m.'!E:F,2,0) -> 182902 | Q11: =VLOOKUP(B11,'3000m.'!E:G,3,0) -> 8 | R11: =VLOOKUP(B11,'400m.'!E:F,2,0) -> 12896 | S11: =VLOOKUP(B11,'400m.'!E:G,3,0) -> 8 | T11: =VLOOKUP(B11,'4x100m.'!E:F,2,0) -> 11362 | U11: =VLOOKUP(B11,'4x100m.'!E:G,3,0) -> 7 | V11: 32418 | W11: 8 | X11: 71
A12: 5 | B12: TOFAŞ | D12: =VLOOKUP(B12,'100m.'!E:F,2,0) -> 1938 | E12: 8 | F12: =VLOOKUP(B12,'200m.'!E:F,2,0) -> 3829 | G12: =VLOOKUP(B12,'200m.'!E:G,3,0) -> 8 | H12: =VLOOKUP(B12,'800m.'!E:F,2,0) -> 34973 | I12: =VLOOKUP(B12,'800m.'!E:G,3,0) -> 7 | J12: 105 | K12: 7 | L12: 773 | M12: 8 | N12: 337 | O12: 6 | P12: DNS | Q12: 0 | R12: =VLOOKUP(B12,'400m.'!E:F,2,0) -> DNF | S12: 0 | T12: =VLOOKUP(B12,'4x100m.'!E:F,2,0) -> 11145 | U12: =VLOOKUP(B12,'4x100m.'!E:G,3,0) -> 8 | V12: 32460 | W12: 7 | X12: 59
A13: 6 | B13: ZER | D13: =VLOOKUP(B13,'100m.'!E:F,2,0) -> 1959 | E13: 7 | F13: =VLOOKUP(B13,'200m.'!E:F,2,0) -> 4249 | G13: =VLOOKUP(B13,'200m.'!E:G,3,0) -> 5 | H13: =VLOOKUP(B13,'800m.'!E:F,2,0) -> 35879 | I13: =VLOOKUP(B13,'800m.'!E:G,3,0) -> 6 | J13: 100 | K13: 6 | L13: 536 | M13: 5 | N13: 218 | O13: 4 | P13: =VLOOKUP(B13,'3000m.'!E:F,2,0) -> 193434 | Q13: =VLOOKUP(B13,'3000m.'!E:G,3,0) -> 6 | R13: =VLOOKUP(B13,'400m.'!E:F,2,0) -> 13426 | S13: =VLOOKUP(B13,'400m.'!E:G,3,0) -> 7 | T13: DNS | U13: 0 | V13: 35910 | W13: 6 | X13: 52
A14: 7 | B14: OPET | D14: DNS | E14: 0 | F14: =VLOOKUP(B14,'200m.'!E:F,2,0) -> 4427 | G14: =VLOOKUP(B14,'200m.'!E:G,3,0) -> 4 | H14: =VLOOKUP(B14,'800m.'!E:F,2,0) -> DNS | I14: 0 | J14: DNS | K14: 0 | L14: DNS | M14: 0 | N14: 385 | O14: 10 | P14: DNS | Q14: 0 | R14: =VLOOKUP(B14,'400m.'!E:F,2,0) -> 14991 | S14: =VLOOKUP(B14,'400m.'!E:G,3,0) -> 6 | T14: =VLOOKUP(B14,'4x100m.'!E:F,2,0) -> 11396 | U14: =VLOOKUP(B14,'4x100m.'!E:G,3,0) -> 6 | V14: DNS | W14: 0 | X14: 26
A15: 8 | B15: KOÇ SİSTEM | D15: DNS | E15: 0 | F15: =VLOOKUP(B15,'200m.'!E:F,2,0) -> 3823 | G15: =VLOOKUP(B15,'200m.'!E:G,3,0) -> 9 | H15: DNS | I15: 0 | J15: DNS | K15: 0 | L15: 554 | M15: 6 | N15: 315 | O15: 5 | P15: =VLOOKUP(B15,'3000m.'!E:F,2,0) -> DNS | Q15: 0 | R15: DNS | S15: 0 | T15: DNS | U15: 0 | V15: DNS | W15: 0 | X15: 20
A16: 9 | B16: OTOKAR | D16: DNS | E16: 0 | F16: DNS | G16: 0 | H16: DNS | I16: 0 | J16: DNS | K16: 0 | L16: DNS | M16: 0 | N16: DNS | O16: 0 | P16: =VLOOKUP(B16,'3000m.'!E:F,2,0) -> 192956 | Q16: =VLOOKUP(B16,'3000m.'!E:G,3,0) -> 7 | R16: DNS | S16: 0 | T16: DNS | U16: 0 | V16: DNS | W16: 0 | X16: 7
A17: - | B17: VKV SAĞLIK KURULUŞLARI | D17: DNS | E17: 0 | F17: =VLOOKUP(B17,'200m.'!E:F,2,0) -> DNS | G17: 0 | H17: =VLOOKUP(B17,'800m.'!E:F,2,0) -> DNS | I17: 0 | J17: DNS | K17: 0 | L17: DNS | M17: 0 | N17: DNS | O17: 0 | P17: =VLOOKUP(B17,'3000m.'!E:F,2,0) -> DNS | Q17: 0 | R17: =VLOOKUP(B17,'400m.'!E:F,2,0) -> DNS | S17: 0 | T17: DNS | U17: 0 | V17: DNS | W17: 0 | X17: 0
D18: =IF(ISERROR(VLOOKUP(B18,'100m.'!$E$8:$F$1010,2,0)),"",(VLOOKUP(B18,'100m.'!$E$8:$H$1010,2,0))) ->  | E18: =IF(ISERROR(VLOOKUP(B18,'100m.'!$E$8:$G$1010,3,0)),"",(VLOOKUP(B18,'100m.'!$E$8:$G$1010,3,0))) ->  | F18: =IF(ISERROR(VLOOKUP(B18,'200m.'!$E$8:$F$1000,2,0)),"",(VLOOKUP(B18,'200m.'!$E$8:$H$1000,2,0))) ->  | G18: =IF(ISERROR(VLOOKUP(B18,'200m.'!$E$8:$G$1000,3,0)),"",(VLOOKUP(B18,'200m.'!$E$8:$G$1000,3,0))) ->  | H18: =IF(ISERROR(VLOOKUP(B18,'800m.'!$E$8:$F$979,2,0)),"",(VLOOKUP(B18,'800m.'!$E$8:$H$979,2,0))) ->  | I18: =IF(ISERROR(VLOOKUP(B18,'800m.'!$E$8:$G$979,3,0)),"",(VLOOKUP(B18,'800m.'!$E$8:$G$979,3,0))) ->  | J18: =IF(ISERROR(VLOOKUP(B18,Yüksek!$F$8:$AG$1000,28,0)),"",(VLOOKUP(B18,Yüksek!$F$8:$AG$1000,28,0))) ->  | K18: =IF(ISERROR(VLOOKUP(B18,Yüksek!$F$8:$AH$1000,29,0)),"",(VLOOKUP(B18,Yüksek!$F$8:$AH$1000,29,0))) ->  | L18: =IF(ISERROR(VLOOKUP(B18,#REF!,6,0)),"",(VLOOKUP(B18,#REF!,6,0))) ->  | M18: =IF(ISERROR(VLOOKUP(B18,#REF!,7,0)),"",(VLOOKUP(B18,#REF!,7,0))) ->  | N18: =IF(ISERROR(VLOOKUP(D18,#REF!,6,0)),"",(VLOOKUP(D18,#REF!,6,0))) ->  | O18: =IF(ISERROR(VLOOKUP(D18,#REF!,7,0)),"",(VLOOKUP(D18,#REF!,7,0))) ->  | P18: =IF(ISERROR(VLOOKUP(F18,#REF!,6,0)),"",(VLOOKUP(F18,#REF!,6,0))) ->  | Q18: =IF(ISERROR(VLOOKUP(F18,#REF!,7,0)),"",(VLOOKUP(F18,#REF!,7,0))) ->  | R18: =IF(ISERROR(VLOOKUP(L18,'800m.'!$E$8:$F$979,2,0)),"",(VLOOKUP(L18,'800m.'!$E$8:$H$979,2,0))) ->  | S18: =IF(ISERROR(VLOOKUP(L18,'800m.'!$E$8:$G$979,3,0)),"",(VLOOKUP(L18,'800m.'!$E$8:$G$979,3,0))) ->  | T18: =IF(ISERROR(VLOOKUP(J18,'4x100m.'!$E$8:$F$988,2,0)),"",(VLOOKUP(J18,'4x100m.'!$E$8:$H$988,2,0))) ->  | U18: =IF(ISERROR(VLOOKUP(J18,'4x100m.'!$E$8:$G$988,3,0)),"",(VLOOKUP(J18,'4x100m.'!$E$8:$G$988,3,0))) ->  | V18: =IF(ISERROR(VLOOKUP(L18,'4x100m.'!$E$8:$F$988,2,0)),"",(VLOOKUP(L18,'4x100m.'!$E$8:$H$988,2,0))) ->  | W18: =IF(ISERROR(VLOOKUP(L18,'4x100m.'!$E$8:$G$988,3,0)),"",(VLOOKUP(L18,'4x100m.'!$E$8:$G$988,3,0))) ->  | X18: =SUM(V18,W18) -> 0
D19: =IF(ISERROR(VLOOKUP(B19,'100m.'!$E$8:$F$1010,2,0)),"",(VLOOKUP(B19,'100m.'!$E$8:$H$1010,2,0))) ->  | E19: =IF(ISERROR(VLOOKUP(B19,'100m.'!$E$8:$G$1010,3,0)),"",(VLOOKUP(B19,'100m.'!$E$8:$G$1010,3,0))) ->  | F19: =IF(ISERROR(VLOOKUP(B19,'200m.'!$E$8:$F$1000,2,0)),"",(VLOOKUP(B19,'200m.'!$E$8:$H$1000,2,0))) ->  | G19: =IF(ISERROR(VLOOKUP(B19,'200m.'!$E$8:$G$1000,3,0)),"",(VLOOKUP(B19,'200m.'!$E$8:$G$1000,3,0))) ->  | H19: =IF(ISERROR(VLOOKUP(B19,'800m.'!$E$8:$F$979,2,0)),"",(VLOOKUP(B19,'800m.'!$E$8:$H$979,2,0))) ->  | I19: =IF(ISERROR(VLOOKUP(B19,'800m.'!$E$8:$G$979,3,0)),"",(VLOOKUP(B19,'800m.'!$E$8:$G$979,3,0))) ->  | J19: =IF(ISERROR(VLOOKUP(B19,Yüksek!$F$8:$AG$1000,28,0)),"",(VLOOKUP(B19,Yüksek!$F$8:$AG$1000,28,0))) ->  | K19: =IF(ISERROR(VLOOKUP(B19,Yüksek!$F$8:$AH$1000,29,0)),"",(VLOOKUP(B19,Yüksek!$F$8:$AH$1000,29,0))) ->  | L19: =IF(ISERROR(VLOOKUP(B19,#REF!,6,0)),"",(VLOOKUP(B19,#REF!,6,0))) ->  | M19: =IF(ISERROR(VLOOKUP(B19,#REF!,7,0)),"",(VLOOKUP(B19,#REF!,7,0))) ->  | N19: =IF(ISERROR(VLOOKUP(D19,#REF!,6,0)),"",(VLOOKUP(D19,#REF!,6,0))) ->  | O19: =IF(ISERROR(VLOOKUP(D19,#REF!,7,0)),"",(VLOOKUP(D19,#REF!,7,0))) ->  | P19: =IF(ISERROR(VLOOKUP(F19,#REF!,6,0)),"",(VLOOKUP(F19,#REF!,6,0))) ->  | Q19: =IF(ISERROR(VLOOKUP(F19,#REF!,7,0)),"",(VLOOKUP(F19,#REF!,7,0))) ->  | R19: =IF(ISERROR(VLOOKUP(L19,'800m.'!$E$8:$F$979,2,0)),"",(VLOOKUP(L19,'800m.'!$E$8:$H$979,2,0))) ->  | S19: =IF(ISERROR(VLOOKUP(L19,'800m.'!$E$8:$G$979,3,0)),"",(VLOOKUP(L19,'800m.'!$E$8:$G$979,3,0))) ->  | T19: =IF(ISERROR(VLOOKUP(J19,'4x100m.'!$E$8:$F$988,2,0)),"",(VLOOKUP(J19,'4x100m.'!$E$8:$H$988,2,0))) ->  | U19: =IF(ISERROR(VLOOKUP(J19,'4x100m.'!$E$8:$G$988,3,0)),"",(VLOOKUP(J19,'4x100m.'!$E$8:$G$988,3,0))) ->  | V19: =IF(ISERROR(VLOOKUP(L19,'4x100m.'!$E$8:$F$988,2,0)),"",(VLOOKUP(L19,'4x100m.'!$E$8:$H$988,2,0))) ->  | W19: =IF(ISERROR(VLOOKUP(L19,'4x100m.'!$E$8:$G$988,3,0)),"",(VLOOKUP(L19,'4x100m.'!$E$8:$G$988,3,0))) ->  | X19: =SUM(V19,W19) -> 0
D20: =IF(ISERROR(VLOOKUP(B20,'100m.'!$E$8:$F$1010,2,0)),"",(VLOOKUP(B20,'100m.'!$E$8:$H$1010,2,0))) ->  | E20: =IF(ISERROR(VLOOKUP(B20,'100m.'!$E$8:$G$1010,3,0)),"",(VLOOKUP(B20,'100m.'!$E$8:$G$1010,3,0))) ->  | F20: =IF(ISERROR(VLOOKUP(B20,'200m.'!$E$8:$F$1000,2,0)),"",(VLOOKUP(B20,'200m.'!$E$8:$H$1000,2,0))) ->  | G20: =IF(ISERROR(VLOOKUP(B20,'200m.'!$E$8:$G$1000,3,0)),"",(VLOOKUP(B20,'200m.'!$E$8:$G$1000,3,0))) ->  | H20: =IF(ISERROR(VLOOKUP(B20,'800m.'!$E$8:$F$979,2,0)),"",(VLOOKUP(B20,'800m.'!$E$8:$H$979,2,0))) ->  | I20: =IF(ISERROR(VLOOKUP(B20,'800m.'!$E$8:$G$979,3,0)),"",(VLOOKUP(B20,'800m.'!$E$8:$G$979,3,0))) ->  | J20: =IF(ISERROR(VLOOKUP(B20,Yüksek!$F$8:$AG$1000,28,0)),"",(VLOOKUP(B20,Yüksek!$F$8:$AG$1000,28,0))) ->  | K20: =IF(ISERROR(VLOOKUP(B20,Yüksek!$F$8:$AH$1000,29,0)),"",(VLOOKUP(B20,Yüksek!$F$8:$AH$1000,29,0))) ->  | L20: =IF(ISERROR(VLOOKUP(B20,#REF!,6,0)),"",(VLOOKUP(B20,#REF!,6,0))) ->  | M20: =IF(ISERROR(VLOOKUP(B20,#REF!,7,0)),"",(VLOOKUP(B20,#REF!,7,0))) ->  | N20: =IF(ISERROR(VLOOKUP(D20,#REF!,6,0)),"",(VLOOKUP(D20,#REF!,6,0))) ->  | O20: =IF(ISERROR(VLOOKUP(D20,#REF!,7,0)),"",(VLOOKUP(D20,#REF!,7,0))) ->  | P20: =IF(ISERROR(VLOOKUP(F20,#REF!,6,0)),"",(VLOOKUP(F20,#REF!,6,0))) ->  | Q20: =IF(ISERROR(VLOOKUP(F20,#REF!,7,0)),"",(VLOOKUP(F20,#REF!,7,0))) ->  | R20: =IF(ISERROR(VLOOKUP(L20,'800m.'!$E$8:$F$979,2,0)),"",(VLOOKUP(L20,'800m.'!$E$8:$H$979,2,0))) ->  | S20: =IF(ISERROR(VLOOKUP(L20,'800m.'!$E$8:$G$979,3,0)),"",(VLOOKUP(L20,'800m.'!$E$8:$G$979,3,0))) ->  | T20: =IF(ISERROR(VLOOKUP(J20,'4x100m.'!$E$8:$F$988,2,0)),"",(VLOOKUP(J20,'4x100m.'!$E$8:$H$988,2,0))) ->  | U20: =IF(ISERROR(VLOOKUP(J20,'4x100m.'!$E$8:$G$988,3,0)),"",(VLOOKUP(J20,'4x100m.'!$E$8:$G$988,3,0))) ->  | V20: =IF(ISERROR(VLOOKUP(L20,'4x100m.'!$E$8:$F$988,2,0)),"",(VLOOKUP(L20,'4x100m.'!$E$8:$H$988,2,0))) ->  | W20: =IF(ISERROR(VLOOKUP(L20,'4x100m.'!$E$8:$G$988,3,0)),"",(VLOOKUP(L20,'4x100m.'!$E$8:$G$988,3,0))) ->  | X20: =SUM(V20,W20) -> 0
D21: =IF(ISERROR(VLOOKUP(B21,'100m.'!$E$8:$F$1010,2,0)),"",(VLOOKUP(B21,'100m.'!$E$8:$H$1010,2,0))) ->  | E21: =IF(ISERROR(VLOOKUP(B21,'100m.'!$E$8:$G$1010,3,0)),"",(VLOOKUP(B21,'100m.'!$E$8:$G$1010,3,0))) ->  | F21: =IF(ISERROR(VLOOKUP(B21,'200m.'!$E$8:$F$1000,2,0)),"",(VLOOKUP(B21,'200m.'!$E$8:$H$1000,2,0))) ->  | G21: =IF(ISERROR(VLOOKUP(B21,'200m.'!$E$8:$G$1000,3,0)),"",(VLOOKUP(B21,'200m.'!$E$8:$G$1000,3,0))) ->  | H21: =IF(ISERROR(VLOOKUP(B21,'800m.'!$E$8:$F$979,2,0)),"",(VLOOKUP(B21,'800m.'!$E$8:$H$979,2,0))) ->  | I21: =IF(ISERROR(VLOOKUP(B21,'800m.'!$E$8:$G$979,3,0)),"",(VLOOKUP(B21,'800m.'!$E$8:$G$979,3,0))) ->  | J21: =IF(ISERROR(VLOOKUP(B21,Yüksek!$F$8:$AG$1000,28,0)),"",(VLOOKUP(B21,Yüksek!$F$8:$AG$1000,28,0))) ->  | K21: =IF(ISERROR(VLOOKUP(B21,Yüksek!$F$8:$AH$1000,29,0)),"",(VLOOKUP(B21,Yüksek!$F$8:$AH$1000,29,0))) ->  | L21: =IF(ISERROR(VLOOKUP(B21,#REF!,6,0)),"",(VLOOKUP(B21,#REF!,6,0))) ->  | M21: =IF(ISERROR(VLOOKUP(B21,#REF!,7,0)),"",(VLOOKUP(B21,#REF!,7,0))) ->  | N21: =IF(ISERROR(VLOOKUP(D21,#REF!,6,0)),"",(VLOOKUP(D21,#REF!,6,0))) ->  | O21: =IF(ISERROR(VLOOKUP(D21,#REF!,7,0)),"",(VLOOKUP(D21,#REF!,7,0))) ->  | P21: =IF(ISERROR(VLOOKUP(F21,#REF!,6,0)),"",(VLOOKUP(F21,#REF!,6,0))) ->  | Q21: =IF(ISERROR(VLOOKUP(F21,#REF!,7,0)),"",(VLOOKUP(F21,#REF!,7,0))) ->  | R21: =IF(ISERROR(VLOOKUP(L21,'800m.'!$E$8:$F$979,2,0)),"",(VLOOKUP(L21,'800m.'!$E$8:$H$979,2,0))) ->  | S21: =IF(ISERROR(VLOOKUP(L21,'800m.'!$E$8:$G$979,3,0)),"",(VLOOKUP(L21,'800m.'!$E$8:$G$979,3,0))) ->  | T21: =IF(ISERROR(VLOOKUP(J21,'4x100m.'!$E$8:$F$988,2,0)),"",(VLOOKUP(J21,'4x100m.'!$E$8:$H$988,2,0))) ->  | U21: =IF(ISERROR(VLOOKUP(J21,'4x100m.'!$E$8:$G$988,3,0)),"",(VLOOKUP(J21,'4x100m.'!$E$8:$G$988,3,0))) ->  | V21: =IF(ISERROR(VLOOKUP(L21,'4x100m.'!$E$8:$F$988,2,0)),"",(VLOOKUP(L21,'4x100m.'!$E$8:$H$988,2,0))) ->  | W21: =IF(ISERROR(VLOOKUP(L21,'4x100m.'!$E$8:$G$988,3,0)),"",(VLOOKUP(L21,'4x100m.'!$E$8:$G$988,3,0))) ->  | X21: =SUM(V21,W21) -> 0
D22: =IF(ISERROR(VLOOKUP(B22,'100m.'!$E$8:$F$1010,2,0)),"",(VLOOKUP(B22,'100m.'!$E$8:$H$1010,2,0))) ->  | E22: =IF(ISERROR(VLOOKUP(B22,'100m.'!$E$8:$G$1010,3,0)),"",(VLOOKUP(B22,'100m.'!$E$8:$G$1010,3,0))) ->  | F22: =IF(ISERROR(VLOOKUP(B22,'200m.'!$E$8:$F$1000,2,0)),"",(VLOOKUP(B22,'200m.'!$E$8:$H$1000,2,0))) ->  | G22: =IF(ISERROR(VLOOKUP(B22,'200m.'!$E$8:$G$1000,3,0)),"",(VLOOKUP(B22,'200m.'!$E$8:$G$1000,3,0))) ->  | H22: =IF(ISERROR(VLOOKUP(B22,'800m.'!$E$8:$F$979,2,0)),"",(VLOOKUP(B22,'800m.'!$E$8:$H$979,2,0))) ->  | I22: =IF(ISERROR(VLOOKUP(B22,'800m.'!$E$8:$G$979,3,0)),"",(VLOOKUP(B22,'800m.'!$E$8:$G$979,3,0))) ->  | J22: =IF(ISERROR(VLOOKUP(B22,Yüksek!$F$8:$AG$1000,28,0)),"",(VLOOKUP(B22,Yüksek!$F$8:$AG$1000,28,0))) ->  | K22: =IF(ISERROR(VLOOKUP(B22,Yüksek!$F$8:$AH$1000,29,0)),"",(VLOOKUP(B22,Yüksek!$F$8:$AH$1000,29,0))) ->  | L22: =IF(ISERROR(VLOOKUP(B22,#REF!,6,0)),"",(VLOOKUP(B22,#REF!,6,0))) ->  | M22: =IF(ISERROR(VLOOKUP(B22,#REF!,7,0)),"",(VLOOKUP(B22,#REF!,7,0))) ->  | N22: =IF(ISERROR(VLOOKUP(D22,#REF!,6,0)),"",(VLOOKUP(D22,#REF!,6,0))) ->  | O22: =IF(ISERROR(VLOOKUP(D22,#REF!,7,0)),"",(VLOOKUP(D22,#REF!,7,0))) ->  | P22: =IF(ISERROR(VLOOKUP(F22,#REF!,6,0)),"",(VLOOKUP(F22,#REF!,6,0))) ->  | Q22: =IF(ISERROR(VLOOKUP(F22,#REF!,7,0)),"",(VLOOKUP(F22,#REF!,7,0))) ->  | R22: =IF(ISERROR(VLOOKUP(L22,'800m.'!$E$8:$F$979,2,0)),"",(VLOOKUP(L22,'800m.'!$E$8:$H$979,2,0))) ->  | S22: =IF(ISERROR(VLOOKUP(L22,'800m.'!$E$8:$G$979,3,0)),"",(VLOOKUP(L22,'800m.'!$E$8:$G$979,3,0))) ->  | T22: =IF(ISERROR(VLOOKUP(J22,'4x100m.'!$E$8:$F$988,2,0)),"",(VLOOKUP(J22,'4x100m.'!$E$8:$H$988,2,0))) ->  | U22: =IF(ISERROR(VLOOKUP(J22,'4x100m.'!$E$8:$G$988,3,0)),"",(VLOOKUP(J22,'4x100m.'!$E$8:$G$988,3,0))) ->  | V22: =IF(ISERROR(VLOOKUP(L22,'4x100m.'!$E$8:$F$988,2,0)),"",(VLOOKUP(L22,'4x100m.'!$E$8:$H$988,2,0))) ->  | W22: =IF(ISERROR(VLOOKUP(L22,'4x100m.'!$E$8:$G$988,3,0)),"",(VLOOKUP(L22,'4x100m.'!$E$8:$G$988,3,0))) ->  | X22: =SUM(V22,W22) -> 0
